Workbook

Sheet COVER PAGE
D12: BILL OF QUANTITIES
A15: DATE:
A18: PROJECT TITLE: | C18: PANFONTEIN PROJECTS PACKAGE 3 (3A AND 3B): WORK PACKAGE 3A - EARTHWORKS, PIPE LAYING, JACKING AND ASSOCIATED CIVIL WORKS FOR A 6020M X 626MM OD STEEL PIPELINE FROM VEREENIGING PUMPING STATION TO VAAL RIVER BRIDGE CROSSING IN MACCAUVLEI (SL1 PIPELINE) WORK PACKAGE 3B – DESIGN, MANUFACTURE, SUPPLY, DELIVERY, INSTALLATION, TEST, COMMISSION AND MAINTAIN PIPE LAYING AND CIVIL WORKS FOR THE CONSTRUCTION OF 750m, 694mm ID (8mm THICK) SLUDGE STEEL PIPELINE FROM CENTRAL SLUDGE NO. 2 TO THE CROSS CONNECTION CHAMBER (SL2 PIPELINE)
A21: SAP PROJECT NUMBER: | D21: P.01665
A23: CONTRACT NUMBER | D23: RW10397155/22

Sheet Preamble to the BOQ
A1: PREAMBLE: SCHEDULE OF PRICES
A3: 1. PREAMBLE TO BILL OF QUANTITIES
A4: 1.1 The Bill of Quantities contains only brief descriptions to identify the salient items required and the Tenderer is referred to the Scope of Work, functional specifications, standard specifications and indicative drawings for the full requirements.
A5: 1.2 The prices and rates to be inserted in the Bills of Quantities are to be the full inclusive prices for the work described therein, noting the additional requirement for Priced Schedules under item 1.12. The prices and rates shall cover all costs and expenses that may be required in and for the execution of the work described, and shall cover the cost of all general risks, liabilities, and obligations set forth or implied in the documents on which the tender is based, as well as overhead charges and profit. This shall include any documentation or attendance of mandatory safety induction and further compliance with the Employers Safety, Health, Environmental and Quality requirements. Reasonable prices shall be inserted, as these will be used as a basis for assessment of payment for additional work that may have to be carried out.
A6: 1.3 A price or rate is to be entered against each item in the Bills of Quantities, whether the quantities are stated or not. An item against which no price is entered will be considered to be covered by the other prices or rates in the Bills of Quantities.
A7: 1.4 Except where rates only are required, insert all amounts to be included in the total tendered price in the "Amount" column and show the corresponding total tendered price.
A8: 1.5 The units of measurement described in the Bills of Quantities are in metric units.
A9: 1.6 Transfer the total from each section of the Bill of Quantities through to the Summary of Sections.
A10: 1.7 Transfer the total from each Summary of Sections through to the Summary of Bills.
A11: 1.8 Transfer the total from the Summary of Bills through to the Letter of Tender, as well as the Tender Summary Page.
A12: 1.9 The Tender shall be for the complete work including all design, temporary work, construction, installation, testing and equipment and the price shall be a total price. No financial adjustment will be made to the contract price due to any work covered by the specifications (including functional specifications, design procedure and standardized specifications) and as shown on the drawings being in excess of the quantity allowed by the Tenderer for such work in the tender.
A13: 1.10 The priced Bill of Quantities submitted by the successful tender shall only be used as a guide for interim valuations of work done and to value interim payment certificates.
A14: 1.11 The items included in Bills of Quantities are a guideline to the contractor. It is the Contractor’s responsibility to thoroughly familiarise himself with all of the works information and specifications for this Contact so as to ascertain the scope and extent of the works and ensure that any items that are required to achieve the functional requirements of this Contract are included in the Bill of Quantities.
A15: 1.12 Tenderers shall submit complete and detailed Priced Schedules together with their tenders. These schedules shall be in support of and in addition to the Priced Bills of Quantities submitted under schedule of the tender document.
A16: 1.13 The level of detail required for the Priced Schedules shall be sufficient at least to reflect all items for which the Contractor is required to submit Technical Data Sheets (in terms of the requirements that are set out in the schedules in T2.2.10 or as stated elsewhere in the tender document and specifications).
A17: 1.14 Where no requirement has been stated in the documentation for Technical Data Sheets, Tenderers shall provide for items as reflected in the “measurement and payment” clauses of the applicable standard specification (e.g. SABS 1200 series specifications).
A20: 2.0 Disclaimer on Geotechnical lnformation
A21: The geotechnical report has been compiled to the best of the information available,variances msybe found in the geoelogical conditions of the pipeline route.

Sheet PACKAGE 3A
D12: BILL OF QUANTITIES
A15: DATE:
A18: PROJECT TITLE: | C18: WORK PACKAGE 3A - EARTHWORKS, PIPE LAYING, JACKING AND ASSOCIATED CIVIL WORKS FOR A 6020M X 626MM OD STEEL PIPELINE FROM VEREENIGING PUMPING STATION TO VAAL RIVER BRIDGE CROSSING IN MACCAUVLEI (SL1 PIPELINE)
A21: SAP PROJECT NUMBER: | D21: P.01665
A23: CONTRACT NUMBER | D23: RW10397155/22

Sheet Sch 1 WP 3A P&Gs
G1: VG Sludge Pipeline
A2: Tender No.: | C2: RW10397155/22 | G2: Schedule 1 : Preliminary and General Items
A3: Description: | C3: WP3A - Earthworks, pipe laying, jacking and associated civil works for a 6020m x 626mm OD | G3: 2021-10-01
C4: steel pipeline from Vereeniging Pumping Station to Vaal River Bridge Crossing in Maccauvlei (SL1 Pipeline)
A6: Item | B6: Payment | C6: Description | D6: Unit | E6: Qty | F6: Rate | G6: Amount
A7: No. | B7: Refers | F7: R | G7: R
B9: SABS 1200A | C9: SCHEDULE 1: PRELIMINARY & GENERAL
C10: FIXED CHARGES
A12: 1 | B12: 8.3.1 | C12: Contractual Requirements
A14: 1.1 | C14: Contractual Requirements | D14: Sum | E14: 1
A16: 2 | B16: 8.3.2.1 | C16: Facilities for Engineer (SABS 1200AB)
A18: 2.1 | C18: Provision of Office for the Engineer's Representative as per PSAB 3.2, including toilet facilities as per PSAB 5.2 | D18: Sum | E18: 1
A20: 2.2 | C20: Carports
A21: 2.2.1 | C21: Minimun 2.5m wide covered Car ports at offices | D21: No | E21: 4
A23: 2.3 | C23: Provision of survey equipment as per PSAB 4.2 | D23: Sum | E23: 1
A25: 2.4 | C25: Name Board as per Engineer's instruction, refer to Drawing. | D25: No. | E25: 2
A27: 2.5 | C27: Provision of survey assistants as per PSAB 5.5 | D27: Sum | E27: 1
A29: 3 | C29: Facilities for Contractor
A31: 3.1 | B31: 8.3.2.2 | C31: Offices, storage sheds, fencing, workshops, laboratories, etc. | D31: Sum | E31: 1
A33: 3.2 | B33: 8.3.2.2 | C33: Ablution and latrine facilities | D33: Sum | E33: 1
A35: 3.3 | B35: 8.3.2.2 | C35: Tools and equipment | D35: Sum | E35: 1
A37: 3.4 | B37: 8.3.2.2 | C37: Water supplies, electric power and communications | D37: Sum | E37: 1
A39: 3.5 | B39: 8.3.2.2 | C39: Dealing with water (See PS A 8.8.7 and refer Geotechnical Report) | D39: Sum | E39: 1
A41: 3.6 | B41: 8.3.3 | C41: Other fixed charge obligations, including setting out of works, security of contractor's plant & personnel | D41: Sum | E41: 1
A43: 3.7 | B43: 8.3.4 | C43: Remove all site establishment on completion | D43: Sum | E43: 1
A45: 4 | C45: Temporary Works
A47: 4.1 | B47: 8.2.1 | C47: Access to works including all temporary roads, excavations and ramps, etc. | D47: Sum | E47: 1
A49: 5 | C49: Accommodation of traffic
A51: 5.1 | B51: PSA 8.8.2 | C51: Supply, operate, maintain and remove of traffic control devices, road signs, barricades, warning signs, including signs for construction vehicles and road markings and accommodate traffic (See PSA 5.10 + PS9) | D51: Sum | E51: 1
B55: Carried Forward
B56: Brought Forward
A58: 6 | B58: PSA 8.10 | C58: HIV / AIDS awareness
A60: 6.1 | C60: Conduct HIV/AIDS awareness programme workshops on site for not less than 90% of the workers inclusive of all direct and indirect costs | D60: Sum | E60: 1
A62: 6.1.1 | C62: Provide and maintain condom dispenser | D62: Sum | E62: 1
A64: 6.1.2 | C64: Provide and maintain HIV/AIDS awareness posters | D64: Sum | E64: 1
A66: 6.1.3 | C66: Provide information regarding voluntary testing of construction workers and counselling, support and care in a monthly report. | D66: Sum | E66: 1
A68: 7 | C68: Quality Control
A70: 7.1 | B70: PSA 8.10 | C70: Quality control and all activities necessary to comply with all requirements of the specified quality control system as per PS 5 | D70: Sum | E70: 1
A72: 8 | C72: High Voltage Safe Working Procedures
A74: 8.1 | B74: PSA 8.10 | C74: Comply with Safe Working Procedures for pipeline construction within High Voltage Transmission Lines Servitude (See TS041 in Specification Rand Water Cathodic Protection System Technical Specification) for the duration of the constuction period | D74: Sum | E74: 1
A76: 9 | C76: Compilation of As Built drawings/ information
A78: 9.1 | B78: PSA 8.16 | C78: The provision of detailed as-built drawings of the completed works at end of contract with all information combined as one package as per TS 2.34 | D78: Sum | E78: 1
C80: Access to spoil sites
A82: 1.1 | B82: PSA 8.10 | C82: The identification of spoil sites for the disposal of unsuitable or surplus excavation materials, negotiations and agreement with relevant owners and/or authorities and the provision of access to designated spoil sites as per PS 17 | D82: Sum | E82: 1
A84: 11 | C84: Service Detection as per TS4.3
A86: 11.1 | B86: PSA 8.10 | C86: Undergound service detection by nominated specialist | D86: Sum | E86: 1
B102: Carried Forward
B103: Brought Forward
B105: SABS 1200A | C105: TIME RELATED ITEMS
A107: 1 | B107: 8.4.1 | C107: Contractual Requirements
A109: 1.1 | C109: Contractual Requirements | D109: Month | E109: 18
A111: 2 | B111: 8.4.2.1 | C111: Operate and maintain facilities: Facilities for Engineer for duration of contract (SABS 1200AB)
A113: 2.1 | C113: Provision of office for the Engineer's representative, incl. toilet facilities as per PSAB 3.2 and PSAB 5.2 | D113: Month | E113: 18
A115: 2.2 | C115: Provision of survey equipment as per PSAB 4.2 | D115: Month | E115: 18
A117: 2.3 | C117: Name Board as per Engineer's instruction | D117: Month | E117: 18
A119: 2.4 | C119: Provision of survey assistants as per PSAB 5.5 | D119: Month | E119: 18
A121: 2.5 | C121: Provision of data and network connection as per PSAB 4.1 | D121: Month | E121: 18
A123: 3 | C123: Operate and maintain facilities: Facilities for Contractor for duration of contract
A125: 3.1 | B125: 8.4.2.2 | C125: Offices, storage sheds, fencing, workshops, laboratories, etc. | D125: Month | E125: 18
A127: 3.2 | B127: 8.4.2.2 | C127: Ablution and latrine facilities | D127: Month | E127: 18
A129: 3.3 | B129: 8.4.2.2 | C129: Tools and equipment | D129: Month | E129: 18
A131: 3.4 | B131: 8.4.2.2 | C131: Water supplies, electric power and communications | D131: Month | E131: 18
A133: 3.5 | B133: 8.4.2.2 | C133: Dealing with water (See PS A 8.8.7 and refer Geotechnical Report) | D133: Month | E133: 18
A135: 3.6 | B135: 8.4.3 | C135: Supervision for duration of construction | D135: Month | E135: 18
A137: 3.7 | B137: 8.4.4 | C137: Company and head office overhead costs | D137: Month | E137: 18
A139: 3.8 | B139: 8.4.5 | C139: Other time related charges, including security of contractor's plant & personnel | D139: Month | E139: 18
A141: 4 | C141: Temporary Works
A143: 4.1 | B143: 8.2.1 | C143: Access to works including all temporary roads, excavations and ramps, etc. | D143: Month | E143: 18
A145: 5 | C145: Accommodation of traffic
A147: 5.1 | B147: PSA 8.8.2 | C147: Supply, operate, maintain and remove traffic control devices, road signs, barricades, warning signs, including signs for construction vehicles and road markings (See PSA5-10) and accommodate traffic | D147: Month | E147: 18
B150: Carried Forward
B151: Brought Forward
A153: 6 | C153: Protection of Railway Line
A155: 6.1 | B155: PSA 8.8.3 | C155: Protection of the Railway Line (See PSA5-11) | D155: Sum | E155: 1
A157: 7 | B157: 8.8.4 | C157: Obtain permission, fulfill requirements and maintain facilities to cross, work parallel to or in road surface and to accomodate safe traffic access to various roads:
A159: 7.1 | C159: Major roads | D159: Sum | E159: 1
A161: 7.2 | C161: Minor roads | D161: Sum | E161: 1
A163: 8 | C163: Obtain permissions, fulfill requirements and maintain protection to cross or work parallel to various existing services: | G163: =IF(F163="-","Rate Only",IF(F163="","",ROUND($F163*F163,2))) -> 
A165: 8.1 | C165: Streams and water courses | D165: Sum | E165: 1
A167: 8.2 | C167: Fences, cables, boreholes, waterpipes, sewers, drains, pipes etc | D167: Sum | E167: 1
A169: 8.3 | C169: Overhead powerlines and underground earth straps and cables | D169: Sum | E169: 1
A171: 8.4 | C171: Overhead telephone lines and undergroung connections | D171: Sum | E171: 1
A173: 8.5 | C173: Rand Water's mains | D173: Sum | E173: 1
A175: 8.6 | C175: Gas pipelines | D175: Sum | E175: 1
A177: 8.7 | B177: 8.8.4.a | C177: Existing services:
A179: 8.7.1 | C179: Supply or hire specialist equipment for the detection of underground services | D179: Sum | E179: 1
A181: 8.7.2 | C181: The use of equipment referred to in item (a) above | D181: Sum | E181: 1
A183: 8.7.3 | C183: Excavation by hand in soft material to expose services | D183: m3 | E183: 110
A185: 8.7.4 | C185: Temporary protection | D185: Sum | E185: 1
A187: 9 | C187: HIV / AIDS awareness
A189: 9.1 | B189: PSA 8.10 | C189: Conduct HIV/AIDS awareness programme workshops on site for not less than 90% of the workers inclusive of all direct and indirect costs | D189: Month | E189: 18
A191: 9.1.1 | B191: PSA 8.10 | C191: Provide and maintain condom dispenser | D191: Month | E191: 18
A193: 9.1.2 | B193: PSA 8.10 | C193: Provide and maintain HIV/AIDS awareness posters | D193: Month | E193: 18
A195: 9.1.3 | B195: PSA 8.10 | C195: Provide information regarding voluntary testing of construction workers and counselling, support and care in a monthly report. | D195: Month | E195: 18
B197: Carried Forward
B198: Brought Forward
A200: 10 | C200: Quality Control
A202: 10.1 | B202: PS A 8.10 | C202: Quality control and all activities necessary to comply with all requirements of the specified quality control system as per PS 5 | D202: Month | E202: 18
A204: 11 | C204: High Voltage Safe Working Procedures
A206: 11.1 | B206: PSA 8.10 | C206: Comply with Safe Working Procedures for pipeline construction within High Voltage Transmission Lines Servitude (See TS041 in Specification Rand Water Cathodic Protection System Technical Specification) for the duration of the constuction period | D206: Sum | E206: 1
A208: 13 | C208: Moving of equipment over road crossings and railway lines
A210: 13.1 | B210: PSA 8.8.9 | C210: Spread layer of spoil 300 mm thick over road surfaces and remove when pipe installation has been completed | D210: Sum | E210: 1
A212: 14 | B212: PSA 8.8.11 | C212: Standing time costs | D212: Days | E212: 30
A214: 15 | B214: PSA 8.8.10 | C214: Protection of the Works | D214: Sum | E214: 1
A216: 16 | C216: As Built
A218: 16.1 | B218: PSA 8.16 | C218: The provision of detailed as-built drawings of the completed works with every certificate submitted as per TS 2.34 including photographic evidence | D218: Sum | E218: 1
A220: 17 | C220: Service Detection
A222: 17.1 | B222: PSA 8.10 | C222: Provision for service detection before excavation during the construction to eliminate service disruption | D222: Sum | E222: 1
A242: SCHEDULE 1 CARRIED FORWARD TO SUMMARY

Sheet Sch 2 WP 3A SHERQ
G1: ='Sch 1 WP 3A P&Gs'!G1 -> VG Sludge Pipeline
A2: Contract No.: | C2: ='Sch 1 WP 3A P&Gs'!$C$2 -> RW10397155/22 | G2: Schedule 2: SHERQ
A3: Description: | C3: ='Sch 1 WP 3A P&Gs'!$C$3 -> WP3A - Earthworks, pipe laying, jacking and associated civil works for a 6020m x 626mm OD | G3: ='Sch 1 WP 3A P&Gs'!G3 -> 2021-10-01
C4: ='Sch 1 WP 3A P&Gs'!C4 -> steel pipeline from Vereeniging Pumping Station to Vaal River Bridge Crossing in Maccauvlei (SL1 Pipeline)
A6: Item | B6: Payment | C6: Description | D6: Unit | E6: Qty | F6: Rate | G6: Amount
A7: No. | B7: Refers
B8: PSA 8.11 | C8: SHCEDULE 2: OCCUPATIONAL HEALTH, SAFETY AND QUALITY (SHERQ)
C10: Occupational Health and Safety
A12: 1.1 | B12: 2.4 & 2.5. | C12: Preparation of the Contractor's site specific Health and Safety Plan | D12: lump sum | E12: 1
A14: 1.2 | B14: 3.2 | C14: Principal Contractor's initial obligations in respect of the Occupational Health and Safety Act and Construction Regulations | D14: lump sum | E14: 1
A16: 1.3 | B16: 4 | C16: Principal Contractor's time related obligations in respect of the Occupational Health and Safety Act and Construction Regulations | D16: month | E16: 18
A18: 1.4 | B18: 10.d | C18: Provision of Personal Protective Equipment (PPE) | D18: lump sum | E18: 1
A20: 1.5 | B20: 3.2.1 | C20: Provision of a full-time Construction Health and Safety Officer | D20: month | E20: 18
A22: 1.6 | B22: 15 | C22: Cost of medical certificates and medical surveillance
B24: 15 | C24: (a) Initial (baseline) medical examinations | D24: lump sum | E24: 1
B26: 15 | C26: (b) Periodic examinations | D26: lump sum | E26: 1
B28: 15 | C28: (c)Exit examinations | D28: lump sum | E28: 1
A30: 1.7 | B30: 9.3 | C30: Induction training | D30: lump sum | E30: 1
A32: 1.8 | B32: 16 | C32: Provision of First Aid Boxes to GSR requirements and other emergency safety equipment such as fire extinguishers. | D32: lump sum | E32: 1
A34: 1.9 | B34: 24 C09 | C34: Transportation of Workers | D34: lump sum | E34: 1
A36: 1.1 | B36: 11 | C36: Welfare Facilities | D36: lump sum | E36: 1
A38: 1.11 | B38: 14 | C38: Occupational Hygiene Surveys | D38: lump sum | E38: 1
A40: 1.12 | B40: 10 | C40: Training | D40: lump sum | E40: 1
A42: 1.13 | B42: Part B (Annexure 11.1) | C42: Security requirements including the security risk assessment (before site establishment) | D42: lump sum | E42: 1
A44: 1.14 | B44: 24 C14, 7 | C44: Employee wellness programs | D44: lump sum | E44: 1
A46: 1.15 | B46: 7 | C46: Drug and Alcohol Testing, Policies and Procedures | D46: lump sum | E46: 1
A48: 1.16 | B48: Part B 10 k | C48: Barricading | D48: lump sum | E48: 1
A50: 1.17 | B50: Part B 10 a | C50: Safety notices and signs | D50: lump sum | E50: 1
A52: C1.18 | B52: 8 | C52: SHE Incentives | D52: lump sum | E52: 1
A54: 1.19 | B54: 3.2.1 & 5C | C54: COVID-19 Prevention and Management: The Engineer to advise at the relevant stage after award | D54: PC SUM
B56: Carried Forward
B57: Brought Forward
A59: 1.2 | B59: Part B 10n,6.6 | C59: Adequate ventilation and lighting during construction | D59: lump sum | E59: 1
A61: 1.21 | B61: 2.9 | C61: Submission of the Health and Safety File (hard and soft copies) | D61: lump sum | E61: 1
C63: Quality Control and Assurance
A65: 1 | C65: Preparation of the Contractor's Quality Management plan | D65: Sum | E65: 1
A66: 2 | C66: Provision of all planned tests and inspections | D66: Sum | E66: 1
A68: 3 | C68: Provision of Non destructive testing activities
A69: 3.1 | C69: Ultrasonic Testing | D69: Sum | E69: 1
A70: 3.2 | C70: Radiographic tests | D70: Sum | E70: 1
A71: 3.3 | C71: Magnetic Particle Testing | D71: Sum | E71: 1
A72: 3.4 | C72: Guided Ultrasonic | D72: Sum | E72: 1
A73: 3.5 | C73: Phased Array test | D73: Sum | E73: 1
A74: 3.6 | C74: Liquid Penetration | D74: Sum | E74: 1
A76: 4 | C76: The contractor to provide the qualified welders ,where the welder fails to produce 100% pass rate re-qualification should be conducted Provision of welders qualification and re-qualification
A78: 5 | C78: Provision of welding /Coating inspector | D78: Sum | E78: 1
A80: 6 | C80: Provision of other quality assurance tests as per the Engineer request | D80: Provisional Sum | E80: 1 | F80: 150 000 | G80: 150,000.00
A82: 7 | C82: Document Management ( Data Pack ) | D82: Sum | E82: 1
B93: Carried Forward
B94: Brought Forward
B95: PSA 8.3.14 & PSA 8.12 | C95: ENVIRONMENT
A97: 1 | B97: 9.1 | C97: Administrative requirements as per environmental specification. • Understanding of compliance • Preparation of environmental file and work program approval. • Preparations of method statements (management of all waste, Keeping the site clean and weed free, final clean up of site and campsite). • Maintaining of auditing of site compliances • Reporting of environmental incidence • Signing off of work for payment • Emergency preparedness retainement for external services • Programme scheduling details of administrative matters: | D97: Sum | E97: 1
A99: 2 | B99: 9.2 | C99: Emergency preparedness funding
C100: a) Provision for bee, snake and other fauna removal | D100: Sum | E100: 1
C101: b) Provision for hydrocarbon spillages that require intervention from professional clean up provider
C102: c) Provision to clean up sewage spillages
C103: d) Equipment for fire fighting
C104: e) Call out of fire department
A106: 3 | B106: 9.1.4 | C106: Environmental awareness and training
C107: The rate for this item shall include costs for inductions and environmental awareness and training | D107: Sum | E107: 1
A109: 4 | B109: 9.2 | C109: Social integration of the project to the public
C110: The rate for this item shall include costs for establishment of construction campsite and working areas | D110: Sum | E110: 1
A112: 5 | B112: 9.3 | C112: Establishment of site camp and works area. | D112: Sum | E112: 1
C113: Signage The rate for this item must cover all expenses incurred in preparing signage at the entrance of the site offices indicating the following information
C114: · The contractor’s contact numbers
C115: · ECO details
C116: · Emergency numbers and provision for: – snake removal, bee removal, fire, large hydrocarbon spillages, sewerage spillages
C117: Signage measuring a minimum of 30mmx30mm must also be made available for no go areas.
B120: Carried Forward
B121: Brought Forward
A123: 6 | B123: 9.3.4 to 9.3.4.2 | C123: Barricading and demarcation
C124: a. Screening for unsightly works | D124: Sum | E124: 1
C125: b. Clear demarcating of the working foot print
C126: c. Barricading of sensitive no go areas
A128: 7 | B128: 9.4 to 9.4.6 | C128: Pollution prevention and preservation of environmental resources
A129: 8 | C129: The rate for this item shall include costs for pollution prevention and preservation of environmental resources | D129: Sum | E129: 1
A130: 9 | C130: a) Cleaning the site of litter and rubble | D130: Sum | E130: 1
A131: 10 | C131: b)Weed control on site | D131: Sum | E131: 1
A132: 11 | C132: C) Waste bins and receptacles that comply with the waste clauses of the Environmental specification. | D132: Sum | E132: 1
A133: 12 | C133: c) Appropriate skips for waste separation | D133: Sum | E133: 1
A134: 13 | C134: d)General waste Waste removal | D134: Sum | E134: 1
A135: 14 | C135: e)Hazardous waste Waste removal | D135: Sum | E135: 1
A136: 15 | C136: f)Recycled waste management Waste removal | D136: Sum | E136: 1
A137: 16 | C137: g) Spillage kits to clean up spillages | D137: Sum | E137: 1
A138: 16 | C138: h) Hard impervious surfaces for storage of chemicals | D138: Sum | E138: 1
A139: 17 | C139: i)Bunding facility for hazardous products | D139: Sum | E139: 1
A140: 18 | C140: J) Labelled containers for decanting of liquids | D140: Sum | E140: 1
A141: 19 | C141: K) Drip trays for all vehicles staying on site over night | D141: Sum | E141: 1
B143: 9.5 | C143: Preservation of the environment: fauna ,flora, scenic value, Archaeological artefacts
A144: 20 | B144: 9.5.3 | C144: Erosion control and silt management The amount shall represent the costs associated with the practice of preventing or controlling wind or water erosion during construction. The erosion control measures must effectively prevent water pollution, soil loss, wildlife habitat loss and human property loss. The rate shall also include the costs of silt control where devices shall be designed to keep eroded soil on a construction site, so that it does not wash off and cause water pollution to a nearby stream, river, lake, or dam. | D144: Lump Sum | E144: 1
A146: 21 | C146: Final clean up and rehabilitation of the construction camp to the state in which it was prior to comencement of work | D146: Lump Sum | E146: 1
A147: 22 | C147: Appointment of an environmental officer fot the duration of the work | D147: Sum | E147: 1
A149: 23 | B149: PSA 8.3.14 | C149: HERITAGE IMPACT STUDY UPDATE
A150: 23.1 | C150: Updating the Heritage Impact Assessment study conducted in 2016, for submission to the competent authority. | D150: Prov Sum | E150: 1 | F150: 15,000.00 | G150: =F150 -> 15,000.00
A151: 23.2 | C151: Conducting full public participartion (As per NEMA requirements including site notices, placement of newspaper advert, Background information documents) | D151: Prov Sum | E151: 1 | F151: 50,000.00 | G151: =F151 -> 50,000.00
A152: 23.3 | C152: Submission of updated study to the competent Authority | D152: Prov Sum | E152: 1 | F152: 2,500.00 | G152: =F152 -> 2,500.00
A153: 23.4 | C153: Notification of the IAPs of the HIA ROD. | D153: Prov Sum | E153: 1 | F153: 2,500.00 | G153: =F153 -> 2,500.00
A154: 23.5 | C154: Contractors mark-up on Item 23 | D154: %
A160: SCHEDULE 2 CARRIED FORWARD TO SUMMARY

Sheet Sch 3 WP 3A Prov Sums
G1: ='Sch 1 WP 3A P&Gs'!G1 -> VG Sludge Pipeline
A2: Contract No.: | C2: ='Sch 1 WP 3A P&Gs'!C2 -> RW10397155/22 | G2: Schedule 3: Provisional Sums
A3: Description: | C3: ='Sch 1 WP 3A P&Gs'!C3 -> WP3A - Earthworks, pipe laying, jacking and associated civil works for a 6020m x 626mm OD | G3: ='Sch 1 WP 3A P&Gs'!G3 -> 2021-10-01
C4: ='Sch 1 WP 3A P&Gs'!C4 -> steel pipeline from Vereeniging Pumping Station to Vaal River Bridge Crossing in Maccauvlei (SL1 Pipeline)
A6: Item | B6: Payment | C6: Description | D6: Unit | E6: Qty | F6: Rate | G6: Amount
A7: No. | B7: Refers
B9: SABS 1200A | C9: SCHEDULE 3: PROVISIONAL SUMS, PRIME COSTS AND OTHER COSTS
A11: 1 | B11: SABS | C11: Provisional Sums allowed for by the Client
B12: 1200A
A13: 1.1 | C13: Relocation of existing services
A15: 1.2 | B15: 8.5 (b)(1) | C15: Provisional sum for the relocation of existing services (water mains, overhead or underground electrical, etc) by services utilities | D15: Prov. Sum | E15: 1 | F15: 500,000.00 | G15: 500,000.00
A17: 1.3 | B17: 8.5 (b)(2) | C17: Contractors mark-up on above item | D17: %
A19: 2 | C19: Additional surveys
A21: 2.1 | B21: 8.5 (b)(1) | C21: Additional topographical surveys and underground service detection by nominated specialist as ordered by Engineer | D21: Prov. Sum | E21: 1 | F21: 250,000.00 | G21: =F21*E21 -> 250,000.00
A23: 2.2 | B23: 8.5 (b)(2) | C23: Contractors mark-up on above item | D23: %
A25: 3 | C25: Office equipment
A27: 3.1 | B27: 8.5 (a) | C27: Provisional Sum for supply of office equipment for Engineer's Representative Offices not included under Item 2 of Section 1 of Bill of Quantties | D27: Prov. Sum | E27: 1 | F27: 20,000.00 | G27: =F27*E27 -> 20,000.00
A29: 3.2 | B29: 8.5 (b)(2) | C29: Contractors mark-up on above item | D29: %
A31: 4 | C31: Additional geotechnical investigations
A33: 4.4 | B33: 8.5 (b)(1) | C33: Provisional sum for additional geotechnical investigations and appointment of professional for design of shoring/battering methods for excavation and jacking pits including grading analysis, Compactibility tests, etc. by nominated specialists, where ordered by the Engineer. | D33: Prov. Sum | E33: 1 | F33: 250,000.00 | G33: =F33*E33 -> 250,000.00
A35: 4.2 | B35: 8.5 (b)(2) | C35: Contractors mark-up on above item | D35: %
A37: 5 | C37: Additional non-destructive pipeline testing
A39: 5.1 | B39: 8.5 (b)(1) | C39: Provisional sum for additional non-destructive pipeline testing as directed by Engineer | D39: Prov. Sum | E39: 1 | F39: 100,000.00 | G39: =F39*E39 -> 100,000.00
A41: 5.2 | B41: 8.5 (b)(2) | C41: Contractors mark-up on above item | D41: %
A43: 6 | C43: Designer part time construction supervision
A45: 6.1 | B45: PSA 8.10 | C45: Site Supervision by Designer Engineer as per ECSA for the duration of the contract | D45: Prov. Sum | E45: 1 | F45: 2,903,040.00 | G45: 2,903,040.00
A47: 6.2 | C47: Contractors mark-up on above item | D47: %
A49: 6.3 | B49: PSA 8.10 | C49: Provisional sum for additional design and works as directed by the Engineer | D49: Prov. Sum | E49: 1 | F49: 2,000,000.00 | G49: 2,000,000.00
B52: Carried Forward
B53: Brought Forward
A55: 6.3.1 | C55: Contractors mark-up on above item | D55: %
A57: 7 | B57: PSA 8.10 | C57: Repairs to damaged pipe coating, lining and flanges (not caused by contractor) as ordered by the Engineer | D57: Prov. Sum | E57: 1 | F57: 2,000,000.00 | G57: =F57*E57 -> 2,000,000.00
A59: 7.1 | C59: Contractors mark-up on above item | D59: %
A61: 8 | C61: Other costs
A63: 8.1 | B63: PSA 8.8.8 | C63: Discontinue operations (where instructed by the Engineer due to lack of access) and transfer plant,equipement and labour
A65: 8.1.1 | C65: Over a route distance not exceeding 2km | D65: No | E65: 2
A67: 8.1.2 | B67: PSA 8.8.11 | C67: Standing time costs | D67: Days | E67: 30
A69: 8.1.3 | B69: PSA 8.8.12 | C69: Carry out operations in a confined and reduced working strip width | D69: m | E69: 1000
A71: 9 | C71: Reinstatement of Existing roads
A73: 9.1 | B73: PSA 8.10 | C73: Reinstatement of existing road as per Authorities or Road Owner or Design requirements. | D73: Prov. Sum | E73: 1 | F73: 3,600,000.00 | G73: =F73*E73 -> 3,600,000.00
A75: 9.2 | C75: Contractors mark-up on above item | D75: %
A77: 10 | C77: Traffic Management Plan
A79: 10.1 | B79: PSA 8.10 | C79: Provsional sum for preparation of and adherence to traffic Management Plan as directed by Engineer sum to include provision of traffic signs as per typical drawings | D79: Prov. Sum | E79: 1 | F79: 250,000.00 | G79: =+F79 -> 250,000.00
A81: 10.2 | C81: Contractors mark-up on above item | D81: %
A83: 11 | C83: Provisional Sums allowed for by the Contractor
A85: 11.1 | C85: Inspection requirements
A87: 11.1.1 | B87: PSA 8.10 | C87: Allow Provisional Sum for the attendance of a RW official, or any person as designated by RW, to travel to, inspect manufacturing and testing at the manufacturers premises, to include all travel, accommodation and incidental costs | D87: Prov. Sum | E87: 1 | F87: 250,000.00 | G87: =F87*E87 -> 250,000.00
A89: 11.1.2 | C89: Contractors mark-up on above item | D89: %
A91: 12 | C91: Radiographic/ Non-destructive testing
A93: 12.1 | B93: TS1.16.15 | C93: Allow Provisional Sum for radiographic examination of circumferential welds by nominated Specialist as ordered by the Engineer | D93: Prov. Sum | E93: 1 | F93: 100,000.00 | G93: =F93*E93 -> 100,000.00
A95: 12.2 | C95: Contractors mark-up on above item | D95: %
B97: Carried Forward
B98: Brought Forward
A100: 13 | C100: DCVG surveys
A102: 13.1 | B102: TS1.16.21 | C102: Allow Provisional Sum for DCVG surveys by nominated Specialist as ordered by the Engineer | D102: Prov. Sum | E102: 1 | F102: 100,000.00 | G102: =+F102 -> 100,000.00
A104: 13.2 | C104: Contractors mark-up on above item | D104: %
A106: 14 | B106: PSA 8.10 | C106: Engineer's Provision of Laboratory Equipment and for payment for Specilised Quality Assurance / Control Testing | D106: Prov Sum | E106: 1 | F106: 150,000.00 | G106: =E106*F106 -> 150,000.00
A108: 14.1 | C108: Contractors mark-up on above item | D108: %
A110: 15 | B110: PSA 8.10 | C110: Engineer's Provision for reinstatement headwalls | D110: Prov Sum | E110: 1 | F110: 250,000.00 | G110: =E110*F110 -> 250,000.00
A112: 15.1 | C112: Contractors mark-up on above item | D112: %
A114: 16 | B114: PSA 8.10 | C114: Allow Provisional Sum for pipeline external condition assessment at tie-ins and pipe bridge crossing at Vaal River Bridge Crossing by nominated Specialist as ordered by the Engineer | D114: Prov Sum | E114: 1 | F114: 75,000.00 | G114: =E114*F114 -> 75,000.00
A116: 16.1 | C116: Contractors mark-up on above item | D116: %
A118: 17 | B118: PSA 8.10 | C118: Allow Provisional Sum for repair to pipework or structural work at Vaal River Bridge Crossing due to pipeline external condition assessment at tie-ins and pipe bridge crossing | D118: Prov Sum | E118: 1 | F118: 250,000.00 | G118: =E118*F118 -> 250,000.00
A120: 17.1 | C120: Contractors mark-up on above item | D120: %
A122: 18 | C122: Formalise Lands and Gardens
A124: 18.1 | B124: PSA 8.10 | C124: Formalise lands and gardens by nominated specialist where ordered by Engineer | D124: Prov Sum | E124: 1 | F124: 100,000.00 | G124: =E124*F124 -> 100,000.00
A126: 18.2 | B126: PSA 8.10 | C126: Contractors mark-up on Item 12.1 | D126: %
B143: Carried Forward
B144: Brought Forward
B146: SANS | C146: DAYWORKS
B147: 1200A
A148: 1 | B148: 8.7 | C148: Labour by class
A150: 1.1 | C150: Unskilled Labourers | D150: hrs | E150: 250
A152: 1.2 | C152: Semi Skilled Labourers | D152: hrs | E152: 100
A154: 1.3 | C154: Skilled labour | D154: hrs | E154: 40
A156: 2 | B156: 8.7 | C156: Labour by trade
A158: 2.1 | C158: Construction Hand and Operator | D158: hrs | E158: 100
A160: 2.2 | C160: Carpenter | D160: hrs | E160: 25
A162: 2.3 | C162: Clerk | D162: hrs | E162: 25
A164: 2.4 | C164: Artisans | D164: hrs | E164: 50
A166: 2.5 | C166: Foreman | D166: hrs | E166: 50
A168: 2.6 | C168: Gangers and Section Leaders | D168: hrs | E168: 50
A170: 2.7 | C170: Steel fixer | D170: hrs | E170: 25
A172: 2.8 | C172: Bricklayer or Plasterer | D172: hrs | E172: 25
A174: 2.9 | C174: Welder | D174: hrs | E174: 25
A176: 3 | B176: 8.7 | C176: Materials
A178: 3.1 | C178: Provisional sum for cost of material | D178: Sum | E178: 1 | F178: 150,000.00 | G178: 150,000.00
A180: 3.2 | C180: Contractors mark-up on material | D180: %
A182: 4 | B182: 8.7 | C182: Plant
C184: Tenderers to insert the hire rate at which each item will be charged, which is to cover all relevant costs of plant hire, including operating crew
A186: 4.1 | C186: Lowbed transport of plant to and from site | D186: t.km | E186: 1,000
A188: 4.2 | C188: Bulldozer and ripper (D6 or equivalent) | D188: hrs | E188: 20
A190: 4.3 | C190: Grader (120G or equivalent) | D190: hrs | E190: 20
A192: 4.4 | C192: Front end wheel loaders (Cat 950 or similar) | D192: hrs | E192: 20
B197: Carried Forward
B198: Brought Forward
A201: 4.5 | C201: Back acting excavators (Hitachi EX200 or similar) | D201: hrs | E201: 20
A203: 4.6 | C203: T L B | D203: hrs | E203: 20
A205: 4.7 | C205: Tractors and drawn trailers and rollers | D205: hrs | E205: 20
A207: 4.8 | C207: Compactors (D72Y or equivalent) | D207: hrs | E207: 20
A209: 4.9 | C209: Compressors (250CFM or equivalent) | D209: hrs | E209: 40
A211: 4.10 | C211: Trucks (7t or equivalent) | D211: hrs | E211: 40
A213: 4.11 | C213: Tip Trucks (10t or equivalent) | D213: hrs | E213: 40
A215: 4.12 | C215: Water Tanker | D215: hrs | E215: 40
A217: 4.13 | C217: Plate Compactor | D217: hrs | E217: 40
A219: 4.14 | C219: Light delivery vehicles (1t or equivalent) | D219: km | E219: 3000
A221: 4.15 | C221: Site Boom | D221: No. | E221: 1
A223: 4.16 | C223: Generator to suit the power requirements of the contractor's equipment. | D223: No. | E223: 1
A256: SCHEDULE 3 CARRIED FORWARD TO SUMMARY

Sheet Sch 4 WP 3A Civil
C1: ='Sch 1 WP 3A P&Gs'!$C$1 -> 0 | G1: ='Sch 1 WP 3A P&Gs'!G1 -> VG Sludge Pipeline
A2: Contract No.: | C2: ='Sch 1 WP 3A P&Gs'!$C$2 -> RW10397155/22 | G2: Schedule 4: Civil
A3: Description: | C3: ='Sch 1 WP 3A P&Gs'!$C$3 -> WP3A - Earthworks, pipe laying, jacking and associated civil works for a 6020m x 626mm OD | G3: ='Sch 1 WP 3A P&Gs'!G3 -> 2021-10-01
C4: ='Sch 1 WP 3A P&Gs'!C4 -> steel pipeline from Vereeniging Pumping Station to Vaal River Bridge Crossing in Maccauvlei (SL1 Pipeline)
A6: ITEM NO | B6: PAYMENT REFERS | C6: SHORT DESCRIPTION | D6: UNIT | E6: QUANTITY | F6: RATE | G6: AMOUNT
C8: SCHEDULE 4: CIVIL- VALVE CHAMBERS
A10: 1.1 | B10: SANS 1200 C | C10: SECTION C: SITE CLEARANCE
C12: Clear and grub site and remove any obstruction that may occur. Only areas indicated in writing by Engineer must be cleared:
A14: 1.1.1 | B14: 8.2.1 | C14: Clear and grub site (and remove any obstruction that may occur. Only areas indicated in writing by the Engineer)
A15: 1.1.1.1 | C15: ii) DN600 Sluice Gate Valve Chamber at chainage No. 3050.000m (DRG No. R027304/101) | D15: m2 | E15: 31
A16: 1.1.1.2 | C16: iii) DN600 Sluice Gate Valve Chamber at chainage No. 6010.047m (DRG No. R027304/102) | D16: m2 | E16: 31
A17: 1.1.1.3 | C17: iv) Air Valve Chamber 1, "AV1" at chainage No. 0.000m (DRG No. R027304/103) | D17: m2 | E17: 22
A18: 1.1.1.4 | C18: v) Air Valve Chamber 2, "AV2" at chainage No. 500.000m (DRG No. R027304/103) | D18: m2 | E18: 22
A19: 1.1.1.5 | C19: vi) Air Valve Chamber 3, "AV3" at chainage No. 1100.000m (DRG No. R027304/103) | D19: m2 | E19: 22
A20: 1.1.1.6 | C20: vii) Air Valve Chamber 4, "AV4" at chainage No. 1500.000m (DRG No. R027304/103) | D20: m2 | E20: 22
A21: 1.1.1.7 | C21: viii) Air Valve Chamber 5, "AV5" at chainage No. 2000.000m (DRG No. R027304/103) | D21: m2 | E21: 22
A22: 1.1.1.8 | C22: ix) Air Valve Chamber 6, "AV6" at chainage No. 2500.000m (DRG No. R027304/103) | D22: m2 | E22: 22
A23: 1.1.1.9 | C23: x) Air Valve Chamber 7, "AV7" at chainage No. 3050.000m (DRG No. R027304/103) | D23: m2 | E23: 22
A24: 1.1.1.10 | C24: xi) Air Valve Chamber 8, "AV8" at chainage No. 3500.000m (DRG No. R027304/103) | D24: m2 | E24: 22
A25: 1.1.1.11 | C25: xii) Air Valve Chamber 9, "AV9" at chainage No. 4000.000m (DRG No. R027304/103) | D25: m2 | E25: 22
A26: 1.1.1.12 | C26: xiii) Air Valve Chamber 10, "AV10" at chainage No. 4600.000m (DRG No. R027304/103) | D26: m2 | E26: 22
A27: 1.1.1.13 | C27: xiv) Air Valve Chamber 11, "AV11" at chainage No. 5243.901m (DRG No. R027304/103) | D27: m2 | E27: 22
A28: 1.1.1.14 | C28: xv) Air Valve Chamber 12, "AV12" at chainage No. 5650.000m (DRG No. R027304/103) | D28: m2 | E28: 22
A29: 1.1.1.15 | C29: xvi) Air Valve Chamber 13, "AV13" at chainage No. 6013.864m (DRG No. R027304/103) | D29: m2 | E29: 22
B35: Carried Forward
B36: Brought Forward
A38: 1.2 | B38: SABS 1200DA | C38: SECTION DA: EARTHWORKS
A40: 1.2.1 | B40: 8.3.2 | C40: Excavation
A41: 1.2.1.1 | C41: b) Excavate in all materials and use for embankment or backfill or dispose, as ordered
A42: 1.2.1.1.1 | C42: ii) DN600 Sluice Gate Valve Chamber at chainage No. 3050.000m (DRG No. R027304/101) | D42: m3 | E42: 89
A43: 1.2.1.1.2 | C43: iii) DN600 Sluice Gate Valve Chamber at chainage No. 6010.047m (DRG No. R027304/102) | D43: m3 | E43: 104
A44: 1.2.1.1.3 | C44: iv) Air Valve Chamber 1, "AV1" at chainage No. 0.000m (DRG No. R027304/103) | D44: m3 | E44: 28
A45: 1.2.1.1.4 | C45: v) Air Valve Chamber 2, "AV2" at chainage No. 500.000m (DRG No. R027304/103) | D45: m3 | E45: 57
A46: 1.2.1.1.5 | C46: vi) Air Valve Chamber 3, "AV3" at chainage No. 1100.000m (DRG No. R027304/103) | D46: m3 | E46: 56
A47: 1.2.1.1.6 | C47: vii) Air Valve Chamber 4, "AV4" at chainage No. 1500.000m (DRG No. R027304/103) | D47: m3 | E47: 37
A48: 1.2.1.1.7 | C48: viii) Air Valve Chamber 5, "AV5" at chainage No. 2000.000m (DRG No. R027304/103) | D48: m3 | E48: 38
A49: 1.2.1.1.8 | C49: ix) Air Valve Chamber 6, "AV6" at chainage No. 2500.000m (DRG No. R027304/103) | D49: m3 | E49: 25
A50: 1.2.1.1.9 | C50: x) Air Valve Chamber 7, "AV7" at chainage No. 3050.000m (DRG No. R027304/103) | D50: m3 | E50: 41
A51: 1.2.1.1.10 | C51: xi) Air Valve Chamber 8, "AV8" at chainage No. 3500.000m (DRG No. R027304/103) | D51: m3 | E51: 29
A52: 1.2.1.1.11 | C52: xii) Air Valve Chamber 9, "AV9" at chainage No. 4000.000m (DRG No. R027304/103) | D52: m3 | E52: 28
A53: 1.2.1.1.12 | C53: xiii) Air Valve Chamber 10, "AV10" at chainage No. 4600.000m (DRG No. R027304/103) | D53: m3 | E53: 45
A54: 1.2.1.1.13 | C54: xiv) Air Valve Chamber 11, "AV11" at chainage No. 5243.901m (DRG No. R027304/103) | D54: m3 | E54: 81
A55: 1.2.1.1.14 | C55: xv) Air Valve Chamber 12, "AV12" at chainage No. 5650.000m (DRG No. R027304/103) | D55: m3 | E55: 51
A56: 1.2.1.1.15 | C56: xvi) Air Valve Chamber 13, "AV13" at chainage No. 6013.864m (DRG No. R027304/103) | D56: m3 | E56: 36
A58: 1.2.2 | B58: 8.3.4 | C58: Importing of material from commercial sources of from borrow pits
A59: 1.2.2.1 | C59: a) Importing of backfill G7 Material compacted in layers not exceeding 150mm in thickness compacted to 93% MOD AASHTO density at -1% to +2% OMC
A60: 1.2.2.1.1 | C60: ii) DN600 Sluice Gate Valve Chamber at chainage No. 3050.000m (DRG No. R027304/101) | D60: m3 | E60: 41
A61: 1.2.2.1.2 | C61: iii) DN600 Sluice Gate Valve Chamber at chainage No. 6010.047m (DRG No. R027304/102) | D61: m3 | E61: 48
A62: 1.2.2.1.3 | C62: iv) Air Valve Chamber 1, "AV1" at chainage No. 0.000m (DRG No. R027304/103) | D62: m3 | E62: 11
A63: 1.2.2.1.4 | C63: v) Air Valve Chamber 2, "AV2" at chainage No. 500.000m (DRG No. R027304/103) | D63: m3 | E63: 28
A64: 1.2.2.1.5 | C64: vi) Air Valve Chamber 3, "AV3" at chainage No. 1100.000m (DRG No. R027304/103) | D64: m3 | E64: 28
A65: 1.2.2.1.6 | C65: vii) Air Valve Chamber 4, "AV4" at chainage No. 1500.000m (DRG No. R027304/103) | D65: m3 | E65: 17
A66: 1.2.2.1.7 | C66: viii) Air Valve Chamber 5, "AV5" at chainage No. 2000.000m (DRG No. R027304/103) | D66: m3 | E66: 18
A67: 1.2.2.1.8 | C67: ix) Air Valve Chamber 6, "AV6" at chainage No. 2500.000m (DRG No. R027304/103) | D67: m3 | E67: 10
A68: 1.2.2.1.9 | C68: x) Air Valve Chamber 7, "AV7" at chainage No. 3050.000m (DRG No. R027304/103) | D68: m3 | E68: 19
B70: Carried Forward
B71: Brought Forward
A72: 1.2.2.1.10 | C72: xi) Air Valve Chamber 8, "AV8" at chainage No. 3500.000m (DRG No. R027304/103) | D72: m3 | E72: 12
A73: 1.2.2.1.11 | C73: xii) Air Valve Chamber 9, "AV9" at chainage No. 4000.000m (DRG No. R027304/103) | D73: m3 | E73: 12
A74: 1.2.2.1.12 | C74: xiii) Air Valve Chamber 10, "AV10" at chainage No. 4600.000m (DRG No. R027304/103) | D74: m3 | E74: 21
A75: 1.2.2.1.13 | C75: xiv) Air Valve Chamber 11, "AV11" at chainage No. 5243.901m (DRG No. R027304/103) | D75: m3 | E75: 42
A76: 1.2.2.1.14 | C76: xv) Air Valve Chamber 12, "AV12" at chainage No. 5650.000m (DRG No. R027304/103) | D76: m3 | E76: 25
A77: 1.2.2.1.15 | C77: xvi) Air Valve Chamber 13, "AV13" at chainage No. 6013.864m (DRG No. R027304/103) | D77: m3 | E77: 16
A79: 1.2.2.2 | C79: b) G5 Material compacted in layers not exceeding 100 mm in thickness compacted to 95% MOD AASHTO density AT -1% to +2% OMC
A80: 1.2.2.2.1 | C80: ii) DN600 Sluice Gate Valve Chamber at chainage No. 3050.000m (DRG No. R027304/101) | D80: m3 | E80: 6
A81: 1.2.2.2.2 | C81: iii) DN600 Sluice Gate Valve Chamber at chainage No. 6010.047m (DRG No. R027304/102) | D81: m3 | E81: 6
A82: 1.2.2.2.3 | C82: iv) Air Valve Chamber 1, "AV1" at chainage No. 0.000m (DRG No. R027304/103) | D82: m3 | E82: 7
A83: 1.2.2.2.4 | C83: v) Air Valve Chamber 2, "AV2" at chainage No. 500.000m (DRG No. R027304/103) | D83: m3 | E83: 7
A84: 1.2.2.2.5 | C84: vi) Air Valve Chamber 3, "AV3" at chainage No. 1100.000m (DRG No. R027304/103) | D84: m3 | E84: 7
A85: 1.2.2.2.6 | C85: vii) Air Valve Chamber 4, "AV4" at chainage No. 1500.000m (DRG No. R027304/103) | D85: m3 | E85: 7
A86: 1.2.2.2.7 | C86: viii) Air Valve Chamber 5, "AV5" at chainage No. 2000.000m (DRG No. R027304/103) | D86: m3 | E86: 7
A87: 1.2.2.2.8 | C87: ix) Air Valve Chamber 6, "AV6" at chainage No. 2500.000m (DRG No. R027304/103) | D87: m3 | E87: 7
A88: 1.2.2.2.9 | C88: x) Air Valve Chamber 7, "AV7" at chainage No. 3050.000m (DRG No. R027304/103) | D88: m3 | E88: 7
A89: 1.2.2.2.10 | C89: xi) Air Valve Chamber 8, "AV8" at chainage No. 3500.000m (DRG No. R027304/103) | D89: m3 | E89: 7
A90: 1.2.2.2.11 | C90: xii) Air Valve Chamber 9, "AV9" at chainage No. 4000.000m (DRG No. R027304/103) | D90: m3 | E90: 7
A91: 1.2.2.2.12 | C91: xiii) Air Valve Chamber 10, "AV10" at chainage No. 4600.000m (DRG No. R027304/103) | D91: m3 | E91: 7
A92: 1.2.2.2.13 | C92: xiv) Air Valve Chamber 11, "AV11" at chainage No. 5243.901m (DRG No. R027304/103) | D92: m3 | E92: 7
A93: 1.2.2.2.14 | C93: xv) Air Valve Chamber 12, "AV12" at chainage No. 5650.000m (DRG No. R027304/103) | D93: m3 | E93: 7
A94: 1.2.2.2.15 | C94: xvi) Air Valve Chamber 13, "AV13" at chainage No. 6013.864m (DRG No. R027304/103) | D94: m3 | E94: 7
A96: 1.2.3 | B96: 8.3.10 | C96: Topsoiling
A97: 1.2.3.1 | C97: ii) DN600 Sluice Gate Valve Chamber at chainage No. 3050.000m (DRG No. R027304/101) | D97: m2 | E97: 22
A98: 1.2.3.2 | C98: iii) DN600 Sluice Gate Valve Chamber at chainage No. 6010.047m (DRG No. R027304/102) | D98: m2 | E98: 22
A99: 1.2.3.3 | C99: iv) Air Valve Chamber 1, "AV1" at chainage No. 0.000m (DRG No. R027304/103) | D99: m2 | E99: 17
A100: 1.2.3.4 | C100: v) Air Valve Chamber 2, "AV2" at chainage No. 500.000m (DRG No. R027304/103) | D100: m2 | E100: 17
A101: 1.2.3.5 | C101: vi) Air Valve Chamber 3, "AV3" at chainage No. 1100.000m (DRG No. R027304/103) | D101: m2 | E101: 17
A102: 1.2.3.6 | C102: vii) Air Valve Chamber 4, "AV4" at chainage No. 1500.000m (DRG No. R027304/103) | D102: m2 | E102: 17
A103: 1.2.3.7 | C103: viii) Air Valve Chamber 5, "AV5" at chainage No. 2000.000m (DRG No. R027304/103) | D103: m2 | E103: 17
B104: Carried Forward
B105: Brought Forward
A106: 1.2.3.8 | C106: ix) Air Valve Chamber 6, "AV6" at chainage No. 2500.000m (DRG No. R027304/103) | D106: m2 | E106: 17
A107: 1.2.3.9 | C107: x) Air Valve Chamber 7, "AV7" at chainage No. 3050.000m (DRG No. R027304/103) | D107: m2 | E107: 17
A108: 1.2.3.10 | C108: xi) Air Valve Chamber 8, "AV8" at chainage No. 3500.000m (DRG No. R027304/103) | D108: m2 | E108: 17
A109: 1.2.3.11 | C109: xii) Air Valve Chamber 9, "AV9" at chainage No. 4000.000m (DRG No. R027304/103) | D109: m2 | E109: 17
A110: 1.2.3.12 | C110: xiii) Air Valve Chamber 10, "AV10" at chainage No. 4600.000m (DRG No. R027304/103) | D110: m2 | E110: 17
A111: 1.2.3.13 | C111: xiv) Air Valve Chamber 11, "AV11" at chainage No. 5243.901m (DRG No. R027304/103) | D111: m2 | E111: 17
A112: 1.2.3.14 | C112: xv) Air Valve Chamber 12, "AV12" at chainage No. 5650.000m (DRG No. R027304/103) | D112: m2 | E112: 17
A113: 1.2.3.15 | C113: xvi) Air Valve Chamber 13, "AV13" at chainage No. 6013.864m (DRG No. R027304/103) | D113: m2 | E113: 17
A115: 1.2.4 | C115: Shoring of deep excavations
A116: 1.2.4.1 | C116: ii) DN600 Sluice Gate Valve Chamber at chainage No. 3050.000m (DRG No. R027304/101) | D116: Sum | E116: 1
A117: 1.2.4.2 | C117: iii) DN600 Sluice Gate Valve Chamber at chainage No. 6010.047m (DRG No. R027304/102) | D117: Sum | E117: 1
A118: 1.2.4.3 | C118: iv) Air Valve Chamber 1, "AV1" at chainage No. 0.000m (DRG No. R027304/103) | D118: Sum | E118: 1
A119: 1.2.4.4 | C119: v) Air Valve Chamber 2, "AV2" at chainage No. 500.000m (DRG No. R027304/103) | D119: Sum | E119: 1
A120: 1.2.4.5 | C120: vi) Air Valve Chamber 3, "AV3" at chainage No. 1100.000m (DRG No. R027304/103) | D120: Sum | E120: 1
A121: 1.2.4.6 | C121: vii) Air Valve Chamber 4, "AV4" at chainage No. 1500.000m (DRG No. R027304/103) | D121: Sum | E121: 1
A122: 1.2.4.7 | C122: viii) Air Valve Chamber 5, "AV5" at chainage No. 2000.000m (DRG No. R027304/103) | D122: Sum | E122: 1
A123: 1.2.4.8 | C123: ix) Air Valve Chamber 6, "AV6" at chainage No. 2500.000m (DRG No. R027304/103) | D123: Sum | E123: 1
A124: 1.2.4.9 | C124: x) Air Valve Chamber 7, "AV7" at chainage No. 3050.000m (DRG No. R027304/103) | D124: Sum | E124: 1
A125: 1.2.4.10 | C125: xi) Air Valve Chamber 8, "AV8" at chainage No. 3500.000m (DRG No. R027304/103) | D125: Sum | E125: 1
A126: 1.2.4.11 | C126: xii) Air Valve Chamber 9, "AV9" at chainage No. 4000.000m (DRG No. R027304/103) | D126: Sum | E126: 1
A127: 1.2.4.12 | C127: xiii) Air Valve Chamber 10, "AV10" at chainage No. 4600.000m (DRG No. R027304/103) | D127: Sum | E127: 1
A128: 1.2.4.13 | C128: xiv) Air Valve Chamber 11, "AV11" at chainage No. 5243.901m (DRG No. R027304/103) | D128: Sum | E128: 1
A129: 1.2.4.14 | C129: xv) Air Valve Chamber 12, "AV12" at chainage No. 5650.000m (DRG No. R027304/103) | D129: Sum | E129: 1
A130: 1.2.4.15 | C130: xvi) Air Valve Chamber 13, "AV13" at chainage No. 6013.864m (DRG No. R027304/103) | D130: Sum | E130: 1
B133: Carried Forward
B134: Brought Forward
A135: 1.3 | B135: SABS 1200GA | C135: SECTION GA: CONCRETE (SMALL WORKS)
A137: 1.3.1 | B137: 8.2 | C137: Scheduled Formwork Items
A138: 1.3.1.1 | B138: 8.2.2 | C138: Smooth Formwork
C139: a) To sides of walls
A140: 1.3.1.1.1 | C140: ii) DN600 Sluice Gate Valve Chamber at chainage No. 3050.000m (DRG No. R027304/101) | D140: m2 | E140: 96
A141: 1.3.1.1.2 | C141: iii) DN600 Sluice Gate Valve Chamber at chainage No. 6010.047m (DRG No. R027304/102) | D141: m2 | E141: 113
A143: 1.3.1.2 | B143: 8.2.3 | C143: Narrow widths
A144: 1.3.1.2.1 | C144: a) Sides of roof slab (250mm high)
A145: 1.3.1.2.1.1 | C145: ii) DN600 Sluice Gate Valve Chamber at chainage No. 3050.000m (DRG No. R027304/101) | D145: m | E145: 12
A146: 1.3.1.2.1.2 | C146: iii) DN600 Sluice Gate Valve Chamber at chainage No. 6010.047m (DRG No. R027304/102) | D146: m | E146: 12
A148: 1.3.1.2.2 | C148: b) Sides of base slab (350mm high)
A149: 1.3.1.2.2.1 | C149: ii) DN600 Sluice Gate Valve Chamber at chainage No. 3050.000m (DRG No. R027304/101) | D149: m | E149: 15
A150: 1.3.1.2.2.2 | C150: iii) DN600 Sluice Gate Valve Chamber at chainage No. 6010.047m (DRG No. R027304/102) | D150: m | E150: 15
A152: 1.3.1.2.3 | C152: c) Sides of base slab (200mm high)
A153: 1.3.1.2.3.1 | C153: iv) Air Valve Chamber 1, "AV1" at chainage No. 0.000m (DRG No. R027304/103) | D153: m | E153: 11
A154: 1.3.1.2.3.2 | C154: v) Air Valve Chamber 2, "AV2" at chainage No. 500.000m (DRG No. R027304/103) | D154: m | E154: 11
A155: 1.3.1.2.3.3 | C155: vi) Air Valve Chamber 3, "AV3" at chainage No. 1100.000m (DRG No. R027304/103) | D155: m | E155: 11
A156: 1.3.1.2.3.4 | C156: vii) Air Valve Chamber 4, "AV4" at chainage No. 1500.000m (DRG No. R027304/103) | D156: m | E156: 11
A157: 1.3.1.2.3.5 | C157: viii) Air Valve Chamber 5, "AV5" at chainage No. 2000.000m (DRG No. R027304/103) | D157: m | E157: 11
A158: 1.3.1.2.3.6 | C158: ix) Air Valve Chamber 6, "AV6" at chainage No. 2500.000m (DRG No. R027304/103) | D158: m | E158: 11
A159: 1.3.1.2.3.7 | C159: x) Air Valve Chamber 7, "AV7" at chainage No. 3050.000m (DRG No. R027304/103) | D159: m | E159: 11
A160: 1.3.1.2.3.8 | C160: xi) Air Valve Chamber 8, "AV8" at chainage No. 3500.000m (DRG No. R027304/103) | D160: m | E160: 11
A161: 1.3.1.2.3.9 | C161: xii) Air Valve Chamber 9, "AV9" at chainage No. 4000.000m (DRG No. R027304/103) | D161: m | E161: 11
A162: 1.3.1.2.3.10 | C162: xiii) Air Valve Chamber 10, "AV10" at chainage No. 4600.000m (DRG No. R027304/103) | D162: m | E162: 11
A163: 1.3.1.2.3.11 | C163: xiv) Air Valve Chamber 11, "AV11" at chainage No. 5243.901m (DRG No. R027304/103) | D163: m | E163: 11
A164: 1.3.1.2.3.12 | C164: xv) Air Valve Chamber 12, "AV12" at chainage No. 5650.000m (DRG No. R027304/103) | D164: m | E164: 11
A165: 1.3.1.2.3.13 | C165: xvi) Air Valve Chamber 13, "AV13" at chainage No. 6013.864m (DRG No. R027304/103) | D165: m | E165: 11
B167: Carried Forward
B168: Brought Forward
A170: 1.3.1.3 | B170: 8.2.4 | C170: Box out Holes / Form Voids
A171: 1.3.1.3.1 | C171: a) Box out hole for 500mm x 500mm x 150mm (deep) sump
A172: 1.3.1.3.1.1 | C172: ii) DN600 Sluice Gate Valve Chamber at chainage No. 3050.000m (DRG No. R027304/101) | D172: No. | E172: 1
A173: 1.3.1.3.1.2 | C173: iii) DN600 Sluice Gate Valve Chamber at chainage No. 6010.047m (DRG No. R027304/102) | D173: No. | E173: 1
A175: 1.3.1.3.3 | C175: b) Box out hole for 620mm x 620mm x 300mm (deep)
A176: 1.3.1.3.3.1 | C176: ii) DN600 Sluice Gate Valve Chamber at chainage No. 3050.000m (DRG No. R027304/101) | D176: No. | E176: 2
A177: 1.3.1.3.3.2 | C177: iii) DN600 Sluice Gate Valve Chamber at chainage No. 6010.047m (DRG No. R027304/102) | D177: No. | E177: 2
A179: 1.3.2 | B179: 8.3 | C179: Scheduled Concrete Items
A180: 1.3.2.1 | B180: 8.3.1 | C180: Steel bars
A181: 1.3.2.1.1 | C181: a) Mild steel reinforcement
A182: 1.3.2.1.1.1 | C182: ii) DN600 Sluice Gate Valve Chamber at chainage No. 3050.000m (DRG No. R027304/101) | D182: kg | E182: =0.025*E186 -> 144
A183: 1.3.2.1.1.2 | C183: iii) DN600 Sluice Gate Valve Chamber at chainage No. 6010.047m (DRG No. R027304/102) | D183: kg | E183: =0.025*E187 -> 163
A185: 1.3.2.1.2 | C185: b) High tensile steel reinforcement
A186: 1.3.2.1.2.1 | C186: ii) DN600 Sluice Gate Valve Chamber at chainage No. 3050.000m (DRG No. R027304/101) | D186: kg | E186: =250*(E229+E250) -> 5,750
A187: 1.3.2.1.2.2 | C187: iii) DN600 Sluice Gate Valve Chamber at chainage No. 6010.047m (DRG No. R027304/102) | D187: kg | E187: =250*(E230+E251) -> 6,500
A189: 1.3.2.1.3 | C189: c) Mesh reinforcement
A190: 1.3.2.1.3.1 | C190: iv) Air Valve Chamber 1, "AV1" at chainage No. 0.000m (DRG No. R027304/103) | D190: m2 | E190: 15
A191: 1.3.2.1.3.2 | C191: v) Air Valve Chamber 2, "AV2" at chainage No. 500.000m (DRG No. R027304/103) | D191: m2 | E191: 15
A192: 1.3.2.1.3.3 | C192: vi) Air Valve Chamber 3, "AV3" at chainage No. 1100.000m (DRG No. R027304/103) | D192: m2 | E192: 15
A193: 1.3.2.1.3.4 | C193: vii) Air Valve Chamber 4, "AV4" at chainage No. 1500.000m (DRG No. R027304/103) | D193: m2 | E193: 15
A194: 1.3.2.1.3.5 | C194: viii) Air Valve Chamber 5, "AV5" at chainage No. 2000.000m (DRG No. R027304/103) | D194: m2 | E194: 15
A195: 1.3.2.1.3.6 | C195: ix) Air Valve Chamber 6, "AV6" at chainage No. 2500.000m (DRG No. R027304/103) | D195: m2 | E195: 15
A196: 1.3.2.1.3.7 | C196: x) Air Valve Chamber 7, "AV7" at chainage No. 3050.000m (DRG No. R027304/103) | D196: m2 | E196: 15
A197: 1.3.2.1.3.8 | C197: xi) Air Valve Chamber 8, "AV8" at chainage No. 3500.000m (DRG No. R027304/103) | D197: m2 | E197: 15
A198: 1.3.2.1.3.9 | C198: xii) Air Valve Chamber 9, "AV9" at chainage No. 4000.000m (DRG No. R027304/103) | D198: m2 | E198: 15
B200: Carried Forward
B201: Brought Forward
A202: 1.3.2.1.3.10 | C202: xiii) Air Valve Chamber 10, "AV10" at chainage No. 4600.000m (DRG No. R027304/103) | D202: m2 | E202: 15
A203: 1.3.2.1.3.11 | C203: xiv) Air Valve Chamber 11, "AV11" at chainage No. 5243.901m (DRG No. R027304/103) | D203: m2 | E203: 15
A204: 1.3.2.1.3.12 | C204: xv) Air Valve Chamber 12, "AV12" at chainage No. 5650.000m (DRG No. R027304/103) | D204: m2 | E204: 15
A205: 1.3.2.1.3.13 | C205: xvi) Air Valve Chamber 13, "AV13" at chainage No. 6013.864m (DRG No. R027304/103) | D205: m2 | E205: 15
A207: 1.3.3 | B207: 8.4 | C207: Scheduled Concrete Items
A208: 1.3.3.1 | B208: 8.4.2 | C208: Blinding Layer in ….. Concrete
A209: 1.3.3.1.1 | C209: a) 50mm Class 15/19MPa Blinding Layer
A210: 1.3.3.1.1.1 | C210: ii) DN600 Sluice Gate Valve Chamber at chainage No. 3050.000m (DRG No. R027304/101) | D210: m2 | E210: 13
A211: 1.3.3.1.1.2 | C211: iii) DN600 Sluice Gate Valve Chamber at chainage No. 6010.047m (DRG No. R027304/102) | D211: m2 | E211: 13
A212: 1.3.3.1.1.3 | C212: iv) Air Valve Chamber 1, "AV1" at chainage No. 0.000m (DRG No. R027304/103) | D212: m2 | E212: 8
A213: 1.3.3.1.1.4 | C213: v) Air Valve Chamber 2, "AV2" at chainage No. 500.000m (DRG No. R027304/103) | D213: m2 | E213: 8
A214: 1.3.3.1.1.5 | C214: vi) Air Valve Chamber 3, "AV3" at chainage No. 1100.000m (DRG No. R027304/103) | D214: m2 | E214: 8
A215: 1.3.3.1.1.6 | C215: vii) Air Valve Chamber 4, "AV4" at chainage No. 1500.000m (DRG No. R027304/103) | D215: m2 | E215: 8
A216: 1.3.3.1.1.7 | C216: viii) Air Valve Chamber 5, "AV5" at chainage No. 2000.000m (DRG No. R027304/103) | D216: m2 | E216: 8
A217: 1.3.3.1.1.8 | C217: ix) Air Valve Chamber 6, "AV6" at chainage No. 2500.000m (DRG No. R027304/103) | D217: m2 | E217: 8
A218: 1.3.3.1.1.9 | C218: x) Air Valve Chamber 7, "AV7" at chainage No. 3050.000m (DRG No. R027304/103) | D218: m2 | E218: 8
A219: 1.3.3.1.1.10 | C219: xi) Air Valve Chamber 8, "AV8" at chainage No. 3500.000m (DRG No. R027304/103) | D219: m2 | E219: 8
A220: 1.3.3.1.1.11 | C220: xii) Air Valve Chamber 9, "AV9" at chainage No. 4000.000m (DRG No. R027304/103) | D220: m2 | E220: 8
A221: 1.3.3.1.1.12 | C221: xiii) Air Valve Chamber 10, "AV10" at chainage No. 4600.000m (DRG No. R027304/103) | D221: m2 | E221: 8
A222: 1.3.3.1.1.13 | C222: xiv) Air Valve Chamber 11, "AV11" at chainage No. 5243.901m (DRG No. R027304/103) | D222: m2 | E222: 8
A223: 1.3.3.1.1.14 | C223: xv) Air Valve Chamber 12, "AV12" at chainage No. 5650.000m (DRG No. R027304/103) | D223: m2 | E223: 8
A224: 1.3.3.1.1.15 | C224: xvi) Air Valve Chamber 13, "AV13" at chainage No. 6013.864m (DRG No. R027304/103) | D224: m2 | E224: 8
A226: 1.3.3.2 | B226: 8.4.3 | C226: Strength Concrete
A227: 1.3.3.2.1 | C227: a) Grade 35MPa/19mm
C228: For base and walls.
A229: 1.3.3.2.1.1 | C229: ii) DN600 Sluice Gate Valve Chamber at chainage No. 3050.000m (DRG No. R027304/101) | D229: m3 | E229: 20
A230: 1.3.3.2.1.2 | C230: iii) DN600 Sluice Gate Valve Chamber at chainage No. 6010.047m (DRG No. R027304/102) | D230: m3 | E230: 23
A231: 1.3.3.2.1.3 | C231: iv) Air Valve Chamber 1, "AV1" at chainage No. 0.000m (DRG No. R027304/103) | D231: m3 | E231: 2
A232: 1.3.3.2.1.4 | C232: v) Air Valve Chamber 2, "AV2" at chainage No. 500.000m (DRG No. R027304/103) | D232: m3 | E232: 2
... 219 more rows

Sheet Sch 5 WP 3A Pipelines
G1: ='Sch 1 WP 3A P&Gs'!G1 -> VG Sludge Pipeline
A2: Contract No.: | C2: ='Sch 1 WP 3A P&Gs'!$C$2 -> RW10397155/22 | G2: Schedule 5: Pipeline
A3: Description: | C3: ='Sch 1 WP 3A P&Gs'!$C$3 -> WP3A - Earthworks, pipe laying, jacking and associated civil works for a 6020m x 626mm OD | G3: ='Sch 1 WP 3A P&Gs'!G3 -> 2021-10-01
C4: ='Sch 1 WP 3A P&Gs'!C4 -> steel pipeline from Vereeniging Pumping Station to Vaal River Bridge Crossing in Maccauvlei (SL1 Pipeline)
A6: Item | B6: Payment | C6: Description | D6: Unit | E6: Qty | F6: Rate | G6: Amount
A7: No. | B7: Refers
C9: SCHEDULE 5: PIPELINES
B11: SABS 1200C | C11: SITE CLEARANCE AND REHABILITATION
A13: 1 | C13: Site Clearance
A15: 1.1 | B15: 8.2.1 | C15: Clear and grub the 20m wide working strip including trees of girth up to 1m and provide a pipelaying platform, an access road, excavation stockpiles, pipe storage strip and pipe storage mounds alongside the trench for pipelaying operations (See PS2.6, PSC5.9 & PSC 5.10) | D15: m | E15: 6,020
A17: 1.2 | B17: 8.2.2 | C17: Clear large trees of girth and designated obstacles (See PS2.6, PSC5.9 & PSC 5.10)
A19: 1.2.1 | C19: a) over 1m and up to and including 2m | D19: no | E19: 70
A21: 1.2.2 | C21: b) over 2m m and up to and including 3m | D21: no | E21: 25
A23: 1.2.3 | C23: c) over 3m in steps of 1m | D23: no | E23: 10
A25: 2 | C25: Remove and Stockpile Topsoil
A27: 2.1 | B27: 8.2.10 | C27: Remove and stockpile topsoil to a depth of 150mm along the route of the pipeline (within working servitude) and maintain | D27: m2 | E27: 7,224
A29: 3 | C29: Demolish and Remove Structures including provision of security
A31: 3.1 | B31: 8.2.8 | C31: Demolish and remove existing brick and concrete structures, concrete encasement and foundations.
A33: 3.1.1 | C33: a) Reinforced concrete structures | D33: m3 | E33: 20
A35: 3.1.2 | C35: b) Brick/Masonry structures | D35: m3 | E35: 5
C37: c) Tar pavement along pipeline servitude | D37: m2 | E37: 3,600
A39: 4 | C39: Dealing with Existing Fences and Walls including provision of security
A41: 4.1 | B41: PSC 8.2.11 | C41: Removal of fencing, storage during construction and reinstallation once construction is complete
A43: 4.1.2 | C43: Type 1: Barbed wire fencing up to 1.2m high | D43: m | E43: 20
A45: 4.1.3 | C45: Type 2: Diamond mesh fencing up to 1.2m high | D45: m | E45: 200
A47: 4.1.4 | C47: Type 3: Razor mesh wire fencing up to 2.4m high | D47: m | E47: 50
A49: 4.1.5 | C49: Type 4: Diamond mesh fencing up to 2.4m high | D49: m | E49: 2,800
B52: Carried Forward
B53: Brought Forward
A55: 4.1.6 | C55: Type 5: Concrete Palisade fencing up to 2.4m high | D55: m | E55: 50
A57: 4.1.7 | C57: Type 6: Prefabricated concrete walls up to 2.4m high | D57: m | E57: 10
A59: 4.1.8 | C59: Type 7: Double brick walls up to 2.4m high | D59: m | E59: 10
A61: 4.1.9 | C61: Type 8: Steel Palisade fencing up to 2.4m high | D61: m | E61: 50
A63: 4.1.10 | C63: EO Type 1 to 8: Electrical Fencing | D63: m | E63: 150
A65: 5 | C65: Crossing Existing Fences/Walls
A67: 5.1 | B67: PSC 8.2.12 | C67: Install 5m wide x 2.5m high double gate with 20m refurbished fencing | D67: No | E67: 2
A69: 5.2 | B69: PSC 8.2.12 | C69: Removal of double brick walls up to 2.4m high and reinstatement after construction. | D69: m | E69: 25
A71: 5.3 | B71: PSC 8.2.12 | C71: Removal of concrete palisade walls up to 2.4m high and reinstatement after construction. | D71: m | E71: 5
A73: 6 | C73: Remove Grass Lawn
A75: 6.1 | B75: PSA 8.10 | C75: Remove grass lawn from private properties, maintain and reinstate | D75: m² | E75: 1,500
A77: 7 | C77: Fire Breaks
A79: 7.1 | B79: PSC 8.2.13 | C79: Form fire breaks on Engineer's Instruction | D79: m² | E79: 24,080
A81: 8 | C81: Erosion Protection and Rehabilitation
A83: 8.1 | B83: PSA 8.10 | C83: Storm water deflection berms / cross embankments / erosion control berms for steep slope erosion protection or for the protection of topsoil stockpiles. | D83: m3 | E83: 120
A85: 9 | C85: Final Grading
A87: 9.1 | B87: PSA 8.10 | C87: Ripping of compacted and disturbed areas to 150mm depth | D87: m2 | E87: 48,160
A89: 9.2 | B89: PSA 8.10 | C89: Hand trimming | D89: m2 | E89: 12,040
A91: 10 | C91: Topsoiling
A93: 10.1 | B93: PSDB 8.3.6.2 | C93: Place topsoil to a depth of 150mm | D93: m2 | E93: 48,160
B100: Carried Forward
B101: Brought Forward
A103: 11 | B103: SANS 1200D | C103: Vegetation Re-establishment
A105: 11.1 | B105: 8.3.11 | C105: Hydroseeding with appropriate grass seed mix. (Deemed to be inclusive of soil preparation and improvements, materials and labour). | D105: m2 | E105: 48,160
A107: 11.2 | C107: Reinstatement of grass lawn | D107: m² | E107: 1,500
A111: 12 | C111: Landscape Preservation and Conservation of Fauna and Flora
A113: 12.1 | B113: PSA 8.10 | C113: Transplanting of trees/shrubs within the road reserve, of main stem girth (See PS2.6):
A115: 12.1.1 | C115: a) up to 1500mm | D115: No. | E115: 10
A117: 12.1.2 | C117: b) over 1500mm | D117: No. | E117: 10
B152: Carried Forward
B153: Brought Forward
C155: EARTHWORKS & BEDDING
C157: Excavation for Chambers measured separately under Section 4 - Civil - Valve Chambers
A159: 1 | B159: SABS 1200DA | C159: Excavation for Chambers
C160: Refer to Schedule 4 Civil - Valve Chambers
A162: 2 | B162: SABS 1200DB | C162: Pipeline Trench Excavation
C163: Note: Rate to include for forming joint holes to facilitate welding in the field
A165: 2.1 | B165: 8.3.2 | C165: Machine excavation in all materials for trenches 1.2 m wide, backfill ( Stage 2 material included), compact and dispose of surplus and/or unsuitable material (No additional payment for overhaul), for pipes 600 mm nominal diameter for the depths below (Rate to include for all temporary works, including benching, shoring and dewatering where necessary and adherence to Drg. RA27141 and geotechnical recommendations):
B167: a) | C167: Excavate in all materials for trenches, backfill, compact and dispose of surplus material for 626mm OD Steel pipes (1.2m wide trenches):
A169: 2.1.1 | C169: Depth exceeding 0,0 m but not exceeding 2,0 m | D169: m | E169: 40
A171: 2.1.2 | C171: Depth exceeding 2,0 m but not exceeding 3,0 m | D171: m | E171: 1,484
A173: 2.1.3 | C173: Depth exceeding 3,0 m but not exceeding 4,0 m | D173: m | E173: 2,012
A175: 2.1.4 | C175: Depth exceeding 4,0 m but not exceeding 6,0 m | D175: m | E175: 2,174
A177: 2.1.5 | C177: Depth exceeding 6,0 m | D177: m | E177: 306
A180: 2.1.6 | B180: PSDA 8.3.2 (a) | C180: Restricted trench excavation in all materials | D180: m³ | E180: 1,250
A182: 2.2 | B182: 8.3.2 | C182: Hand excavation in all material for trenches 1.2 m wide, backfill, compact and dispose of surplus and/or unsuitable material (No additional payment for overhaul), for pipes 600mm outside diameter for the depths below (Rate to include for all temporary works, including benching, shoring and dewatering where necessary and adherence to Drg. RA27141 and geotechnical recommendations):
C184: Excavate in all materials for trenches, backfill, compact and dispose of surplus material:
C185: Over Up to and including
A187: 2.2.1 | C187: a) 0m 2.0m | D187: m | E187: 2,000
B188: Carried Forward
B189: Brought Forward
A191: 2.3 | B191: PSDB 8.3.2(b)(2) | C191: Extra over Items 2.1 to 2.2 for excavation in hard rock and boulder excavation | D191: m³ | E191: 50
A193: 2.3.1 | B193: PSDB 8.3.11 | C193: Trial Blasting | D193: Sum | E193: 1
A195: 2.3.2 | B195: PSDB 8.3.12 | C195: Controlled Chemical Blasting | D195: m³ | E195: 50
A197: 2.4 | B197: PSDB 8.3.8 | C197: Hand excavation in all material, backfill and compact, to locate and prove existing services to a maximum depth of 2m (Rate to include for all temporary works including benching, shoring and dewatering where necessary): | D197: m³ | E197: 140
A199: 2.5 | B199: 1200DB 8.3.2 (c) | C199: Excavate unsuitable material from trench bottom and dispose | D199: m³ | E199: 1,053
A201: 2.5.1 | B201: PSA 8.10 | C201: Rip and recompact pipe foundation from trench bottom up to 0.2m depth for unstable in-situ materials | D201: m³ | E201: 650
A203: 2.6 | B203: 8.3.3.1 | C203: Make up deficiency in backfill material:
A205: 2.6.1 | C205: a) From other necesssary excavations on site by blending materials on site (Stage 2) | D205: m³ | E205: 9,983
A207: 2.6.2 | C207: c) By importation from commercial sources (Stage 2) | D207: m³ | E207: 123,120
A209: 3 | C209: Unstable trench bottom
A211: 3.1 | B211: PSA 8.10 | C211: Supply and install 38 mm crushed stone wrapped (Complete as indicated on Drawing R027141) | D211: m³ | E211: 1,053
A213: 3.2 | B213: PSDB 8.3.11 | C213: Supply and install geotextile filter blanket (Grade A4) (Complete as indicated on Drawing R027141) | D213: m2 | E213: 26,328
A215: 4 | B215: 1200DB 8.3.5(a) | C215: Protection of Existing Services that intersect a trench:
A217: 4.1 | C217: Rand Water 900mm ID dia steel pipeline | D217: No | E217: 1
A219: 4.2 | C219: Rand Water 800mm ID dia steel pipeline | D219: No | E219: 1
A221: 4.3 | C221: Rand Water 600mm ID dia steel pipeline | D221: No | E221: 1
A223: 4.4 | C223: Rand Water 1900mm ID dia steel pipeline | D223: No | E223: 1
A225: 4.5 | C225: Rand Water 2000mm ID dia steel pipeline | D225: No | E225: 1
A227: 4.6 | C227: Rand Water 2500mm ID dia steel pipeline | D227: No | E227: 1
A229: 4.7 | C229: Stormwater pipes up to 600m diameter | D229: No | E229: 3
B231: Carried Forward
B232: Brought Forward
A234: 4.8 | C234: Stormwater pipes and culverts larger than 600m diameter | D234: No | E234: 2
A235: 4.9 | C235: Water mains up to 250mm diameter | D235: m | E235: 7
A237: 4.10 | C237: Sewer mains up to 250mm diameter | D237: m | E237: 1
A239: 4.11 | C239: Underground Electrical Cables (LT and HT) | D239: No | E239: 4
A241: 4.12 | C241: Underground Fibre Optic Cables | D241: No | E241: 4
A243: 4.13 | B243: PSDB 8.3.5(b) | C243: Overhead Electrical Cables | D243: No | E243: 5
A245: 4.14 | B245: PSDB 8.3.5(b) | C245: Overhead Communication Cables (incl Telkom) | D245: No | E245: 3
A247: 4.15 | B247: PSDB 8.3.5(b) | C247: Underground Communication Cables (incl Telkom) | D247: No | E247: 1
A249: 4.16 | C249: Gas pipelines | D249: No | E249: 10
A251: 5 | B251: PSDB 8.3.5(b) | C251: Protection of Existing Services that adjoin a trench:
A253: 5.1 | C253: Note: Price tendered for excavation is to include for working close to existing Rand Water pipelines
A255: 5.2 | C255: Rand Water 600mm ID dia steel pipeline | D255: m | E255: 6,020
A257: 5.3 | C257: Water mains up to 250mm diameter | D257: m | E257: 20
A259: 5.4 | C259: Overhead Electrical Cables | D259: m | E259: 600
A261: 5.5 | C261: Overhead Communication Cables (incl Telkom) | D261: m | E261: 100
A263: 5.6 | C263: Gas pipelines | D263: m | E263: 50
A265: 6 | B265: 1200LB | C265: Pipe Bedding
A267: 6.1 | B267: PSLB 8.2.1 | C267: Provision of bedding from trench excavation:
A269: 6.1.1 | C269: a) Selected granular material (Bedding cradle) (Stage 1) | D269: m³ | E269: 50
A271: 6.1.2 | C271: b) Selected fill material (Selected fill blanket) (Stage1) | D271: m³ | E271: 50
A273: 6.2 | B273: PSLB 8.2.2.2 | C273: Provision of bedding by importation from approved borrow pits including all costs for additional handling and transport (provisional):
A275: 6.2.1 | C275: a) Selected granular material (Bedding cradle) (Stage 1) | D275: m³ | E275: 50
A277: 6.2.2 | C277: b) Selected fill material (Selected fill blanket) (Stage 1) | D277: m³ | E277: 50
B279: Carried Forward
B280: Brought Forward
A282: 6.3 | B282: PSLB 8.2.2.3 | C282: Provision of bedding by importation from commercial or off site sources:
A284: 6.3.1 | C284: a) Selected granular material (Bedding cradle) (Stage 1) | D284: m³ | E284: 4,087
A286: 6.3.2 | C286: b) Selected fill material (Selected fill blanket) (Stage 1) | D286: m³ | E286: 2,384
A288: 6.4 | B288: 8.2.4 | C288: Concrete encasement to pipes in Class 25MPa concrete including reinforcement according to Drawing RB18951 as directed by Engineer (Rate to include for any temporary formwork required). | D288: m³ | E288: 98
A290: 6.5 | B290: PSDB 8.2.2.4.1 | C290: Soilcrete encasement to pipes according to Drawing R027141 as directed by the Engineer (Rate to include for any temporary formwork required). | D290: m³ | E290: 50
A292: 6.6 | B292: PSDB 8.2.2.4.2 | C292: Cellular lightweight Concrete encasement to pipes according to Drawing R027141 as directed by the Engineer (Rate to include for any temporary formwork required). | D292: m³ | E292: 50
A294: 7 | B294: SABS 1200DB | C294: Finishing
A296: 7.1 | B296: 8.3.3.3 | C296: Compaction of selected fill material for the main fill to 93% Mod AASHTO in areas subjected to loads from road traffic. | D296: m3 | E296: 780
A298: 7.2 | B298: PSDB 8.3.9 | C298: Supply, mix and place soilcrete with 8% OPC with approved selected fill material in road crossings where instructed by Engineer | D298: m3 | E298: 20
A300: 8 | C300: Photographic records
A302: 8.1 | B302: PSDA 8.3.10 | C302: Take and provide photographic records | D302: sum | E302: 1
B320: Carried Forward
B321: Brought Forward
C322: SUPPLY INSTALLATION OF STEEL PIPES AND PIPE SPECIALS (TS2)
A323: 1 | B323: TS5.1 | C323: Supply and Delivery of Steel Pipes
A324: 1..1 | C324: INSPECTION OF PIPES
A325: 1.2 | B325: TS5.1.2 | C325: Examine the general condition and the coating and lining of all pipes (including inspection of the coating with a suitable Holiday detector for defects )of already manufactured pipes- ID 610mmX 8mm thick ,Grade of steel pipe to be confirmed at Emhlangeni, Sintakote external coating and Epoxy lining (at Rand Water's Emhlangeni Depot and other storage areas to the Engneer's Approval) | D325: m | E325: 6020
A327: 1.3 | B327: TS5.1.2 | C327: Measure, record, reconcile the OD's, ID's , thickness, ovality, grade, coating and lining of all stored pipes/flanges and submit a " Condition assessment report of the pipe inventory Rand Water's Emhlangeni Depot and other storage areas " to the Engineer for approval | D327: m | E327: 6020
A329: 1.4 | B329: PSA8.10 | C329: Refurbishment of coating on damaged pipes after inspection, costs to include all plant, labour, equipment, materials,loading and unloading, transport to the repair plant, cost of lining materials, coating materials and transporting to the point of installation per TS 2.9 | D329: m2 | E329: 7943
A331: 1.5 | B331: PSA8.10 | C331: Refurbishment of lining on damaged pipes after inspection, costs to include all plant, labour, equipment, materials,loading and unloading, transport to the repair plant, cost of lining materials, coating materials and transporting to the point of installation as per TS 2.9 | D331: m2 | E331: 7943
A333: 1.6 | B333: TS5.1.1 | C333: Supply and transport loose flanges to site complete with bolts, nuts and gaskets (refer to Dawing A11791 for flange details).
A335: 1.6.1 | C335: 610mm ID x 845mm OD x 45mm thick flanges (3500kPa) | D335: No | E335: 525
A337: 2 | B337: TS5.2 | C337: Load and Unloading of Pipes as per TS2.3
A339: 2.1 | C339: Supply and operation of plant and the supply of labour to load and unload the pipes from the supplier's vehicles and the laydown of the pipes within the load site and/or in the temporary laydown areas along the pipeline route and/or to certain positions along the route of the pipeline. The cost to supply and to form storage mounds and measures taken to protect the pipes during this procedure will be included in this item.
A341: 2.1.1 | C341: 610mm ID diameter (Grade of steel pipe to be confirmed at Emhlangeni) mild steel pipe, 8mm wall thickness | D341: m | E341: 6,020
B343: Carried Forward
B344: Brought Forward
A346: 3 | B346: TS5.3 | C346: Removal / Installation of Internal Bracing
A348: 3.1 | C348: Removal of the supplier's internal bracing, return the supplier's bracing to the supplier's manufacturing plant, the installation of the Contractor's own temporary bracing and the removal thereof on completion of installation and backfilling. The cost to repair subsequent damage due to the removal and installation of the bracing will be included in this item. Mounds and measures taken to protect the pipes during this procedure will be included in this item.
A350: 3.1.1 | C350: 610mm ID diameter (Grade of steel pipe to be confirmed at Emhlangeni) mild steel pipe, 8mm wall thickness | D350: m | E350: 6,020
A352: 3.1.2 | C352: 610mm ID x 845mm OD x 45mm thick flanges (3500kPa) | D352: No | E352: 525
A354: 4 | B354: TS5.5 | C354: Install Pipes in Trenches
A356: 4.1 | C356: Examine pipes prior to placing in the trench, repair all defects, placing the pipe in the prepared trench including the supply and operation of plant and supply of labour to execute the work, cleaning of joints, vertical and horizontal lining up of the pipe including the supply and operation of plant and supply of labour to execute the work, supply, installation and removal of protective measures and internal welding of the joints.
A358: 4.1.1 | C358: 610mm ID diameter (Grade of steel pipe to be confirmed at Emhlangeni) mild steel pipe, 8mm wall thickness sludge pipe in trench as per Clause TS 2.33. | D358: No | E358: 6,020
A360: 4.1.2 | B360: TS 5.13 | C360: Welding of flanges to 626mm OD steel pipes including coating and ling of the cut back. | D360: No | E360: 525
B375: Carried Forward
B376: Brought Forward
A378: 5 | B378: TS5.6 | C378: Install Pipes through culverts or sleeves (Pipe Jacking)
A380: 5.1 | C380: Examine pipes prior to placing through the culvert or sleeve, repair all defects, prepare the pipes for installation through sleeves, placing the pipe in the existing culvert or sleeve including the supply and operation of plant and supply of labour to execute the work, cleaning of joints, vertical and horizontal lining up of the pipe including the supply and operation of plant and supply of labour to execute the work, supply, installation and removal of protective measures and internal welding of the joints.
A382: 5.1.1 | C382: 610mm ID diameter (Grade of steel pipe to be confirmed at Emhlangeni) mild steel pipe, 8mm wall thickness | D382: m | E382: 359
A384: 6 | B384: TS 5.8 | C384: Flanged Joints Corrosion Protection
A386: 6.1 | C386: Corrosion protection at flanged joints as per Clauses TS 2.33.4 and TS 2.33.5 | D386: No | E386: 525
A388: 7 | B388: TS5.8 | C388: Installation of Internal and External Field Joint Corrosion Protection
A390: 7.1 | C390: Supply and operation of plant and supply of material and cost of labour to install internal and external field joint protection at flanged joints as per Clause TS2.12, for 610 mm diameter (Grade of steel pipe to be confirmed at Emhlangeni) mild steel pipe, 8 mm wall thickness.
A392: 7.1.1 | C392: External field joint protection (Sintakote external coating as on pipe - in accordance with manufacturers field joint protection solution). | D392: No | E392: 525
A394: 7.1.2 | C394: Internal field joint protection (Epoxy coating). | D394: No | E394: 525
A396: 8 | B396: TS 5.9 | C396: Steel Pipe Mitre Bends
A398: 8.1 | C398: Line-up, cut, clean joints and weld, internally and externally, mitres over 1° and up to and including 15° as per Clause TS 2.6. | D398: No | E398: 50
A400: 8.2 | C400: Supply and operate plant and supply of material and labour to apply external field joint corrosion protection to the entire mitre as per Clause TS2.12 | D400: No | E400: 50
A402: 8.3 | C402: Welding of flanges to one side of the mitre bend as well as pipe cuts as per clause TS2.6. | D402: No | E402: 50
B405: Carried Forward
B406: Brought Forward
A408: 9 | B408: TS 5.10 | C408: Steel Fabricated Bends
A410: 9.1 | C410: Supply of complete bends, transport to and unload at point of installation, line up, install, clean joints and joint with flanges as per Clause TS 2.33, bends over 15° and up to inclunding 90°. Supply and operate plant and supply of material and labour to apply internal and external field joint corrosion protection to the entire bend as per Clause TS2.12 (bends to be made up in accordance with the Rand Water standard drawings RA26732). Note: Confirm the number required before manufacturing
A412: 9.1.1 | C412: Lobster bends over 15° up to and including 30° - 2 mitres, 1 full segment.
A414: 9.1.2 | C414: 610mm ID diameter Grade X42 mild steel pipe, 8mm wall thickness | D414: No | E414: 13
A416: 9.1.3 | C416: Lobster bends over 30° up to and including 60° - 2 mitres, 2 full segments.
A418: 9.1.4 | C418: 610mm ID diameter Grade X42 mild steel pipe, 8mm wall thickness | D418: No | E418: 9
A420: 9.1.5 | C420: Lobster bends over 60° up to and including 90° - 2 mitres, 3 full segments.
A422: 9.1.6 | C422: 610mm ID diameter Grade X42 mild steel pipe, 8mm wall thickness | D422: No | E422: 9
A425: 10 | B425: TS 5.16 | C425: Acceptance Tests
A427: 10.1 | C427: Supply and operate all plant, equipment (including temporary 2:1 steel taper and steel dome and or a blank flange welded to pipeline if required) and machinery and the cost of labour to execute pressure tests as per the requirements of TS2.8 + TS2.30 for the pipeline sections and to the test pressure specified by the Engineer.
A429: 10.1.1 | C429: 6020m long X 610mm diameter steel pipeline, 8mm thick (Grade of steel pipe to be confirmed at Emhlangeni) , from Vereeniging Pumping Station to the existing sludge pipeline before the Vaal River crossing | D429: Sum | E429: 1
A431: 10.1.2 | C431: Extra over 10.1.1 for testing of jacked pipes prior to to laying through 900mm dia jacked sleeves | D431: Sum | E431: 1
B436: Carried Forward
B437: Brought Forward
A439: 11 | B439: TS 5.18 | C439: Cleaning and disinfection
A441: 11.1 | C441: Supply and operate plant and labour to keep the entire pipeline clean and disinfection of the pipeline after pressure testing in accordance with the Project Specifications as per Clause TS 2.27 | D441: Sum | E441: 1
A443: 12 | B443: TS 5.19 | C443: Charging of the Pipeline
A445: 12.1 | C445: Charging of Pipeline (Water supplied for pipeline hydraulic testing and disinfection by Rand Water) as per Clause TS 2.28 | D445: Sum | E445: 1
A447: 13 | B447: TS 5.22 | C447: Tie into Existing Pipelines
A449: 13.1 | C449: Planning of all activities required prior to shut down of existing pipes as per Clause TS2.22. Supply, operate plant and supply of material and labour to cut into existing pipe, cleaning of joints, internal and external welding and repair internal and external coating to the joints as per Clause TS2.12. Note: Confirm the dimensions of existing pipe before manufacturing tie-in components
A451: 13.1.1 | C451: Proposed tie in at Chainage 0.000 as per drawing R027304/14/3 | D451: No | E451: 1
... 193 more rows

Sheet Sch 6 WP 3A - CP
G1: ='Sch 1 WP 3A P&Gs'!G1 -> VG Sludge Pipeline
A2: Contract No.: | C2: ='Sch 1 WP 3A P&Gs'!$C$2 -> RW10397155/22 | G2: Schedule 6: Cathodic Protection
A3: Description: | C3: ='Sch 1 WP 3A P&Gs'!$C$3 -> WP3A - Earthworks, pipe laying, jacking and associated civil works for a 6020m x 626mm OD | G3: ='Sch 1 WP 3A P&Gs'!G3 -> 2021-10-01
C4: ='Sch 1 WP 3A P&Gs'!C4 -> steel pipeline from Vereeniging Pumping Station to Vaal River Bridge Crossing in Maccauvlei (SL1 Pipeline)
A6: Item | B6: Payment | C6: Description | D6: Unit | E6: Qty | F6: Rate | G6: Amount
A7: No | B7: Refers
C9: SCHEDULE 6: CATHODIC PROTECTION
C11: Supply Activities
A12: 1 | C12: SACP System
A13: 1.1 | C13: VG Sludge SACP System
A14: 1.1.1 | C14: Supply 10KG high potentials magnesium anodes surrounded by gypsuim/bentonite clay backfill in a cloth bag with 10m long by 10mm² red PVC/PVC cable each | D14: each | E14: 26
A15: 1.1.2 | C15: Supply 36mm steel galvanized conduit with saddles and end plastic caps @ 6m/chamber | D15: m | E15: 40
A16: 1.1.3 | B16: TS044 | C16: Supply concrete mass as per drawing 27645 for cable encasement | D16: m³ | E16: 2.5
A17: 1.1.4 | B17: TS015 | C17: Supply pipe cable connection and coating repair material | D17: each | E17: 13
A18: 1.1.5 | C18: Supply cable lugs and cable to pipe weld | D18: sum | E18: 13
A19: 1.1.6 | B19: Drw. 17300 | C19: Supply chamber monitoring point as per drawing | D19: each | E19: 13
A20: 1.1.7 | B20: Drw. 17300 | C20: Supply chamber marker plate as per drawing | D20: each | E20: 10
A21: Sub-total
A22: 2 | C22: ICCP Supply Activities
A23: 2.1 | C23: VG Sludge TRU (26°41'43.56"S, 28°55'32.45"E)
A24: 2.1.1 | B24: TS001 | C24: Supply 100V/100A Transformer Rectifier Unit (TRU) | D24: each | E24: 1
A25: 2.1.2 | B25: TS037 | C25: Install the electrical power KIOSK as per Rand Water specification. | D25: each | E25: 1
A26: 2.1.3 | B26: TS021 | C26: Supply Ring main Positive Cable of single core red 35mm² double insulated PVC cable. | D26: m | E26: 480
A27: 2.1.4 | B27: TS044 | C27: Supply concrete mass as per drawing 27645 for cable encasement | D27: m³ | E27: 17
A28: 2.1.5 | B28: TS049 | C28: Supply a vandal proof housing, durasafe or the steel structure | D28: each | E28: 1
A29: 2.1.6 | B29: TS049 | C29: Supply a double skin fence or a Clearview fence of around the TRU housing and the kiosk with the following dimension of 4.3m (breath) X 8.3m (length) X 2.4m (height). | D29: each | E29: 1
A30: 2.1.7 | B30: TS021 | C30: Supply 25mm² four core aluminium supply cable | D30: m | E30: 30
A31: 2.1.8 | B31: TS021 | C31: Supply PRE and coupon | D31: sum | E31: 1
A32: 2.1.9 | B32: TS021 | C32: Supply 10mm² monitor cable | D32: m | E32: 75
A33: 2.1.10 | B33: TS021 | C33: Supply 16mm² pipe cable | D33: m | E33: 150
A34: 2.1.11 | B34: TS005 | C34: Supply 70mm² bare copper earth cable to be installed around the TRU and also supply four earth rods. | D34: sum | E34: 1
A35: Sub-total
A36: 2.2 | C36: VG Sludge TRU - Horizontal Anode Groundbed (26°41'43.56"S, 27°55'32.45"E)
A37: 2.2.1 | B37: TS002 | C37: Supply 2m canistor MMO anodes X 200mm diameter with 2m tail cable (ground bed of total length of 151m) and canisters are to be filled with Sasol calcined petroleum coke | D37: each | E37: 50
A38: 2.2.2 | B38: Drg. RA-22675 | C38: Supply 1000mm length X 200mm diameter X 1mm thick galvanized steel canister spacer filled with Sasol calcined petroleum coke, installed before and in between the anodes as per drawing RA 22675. | D38: each | E38: 51
B40: Carried Forward
B41: Brought Forward
A42: 2.2.3 | B42: Drg. RA-22675 | C42: Supply Sasol petrolium calcined coke breeze for anodes bacfilling. | D42: m³ | E42: 13
A43: 2.2.4 | C43: Supply 'Y' splicing kit for anode tail connections to the ring main cable | D43: each | E43: 50
A44: 2.2.5 | C44: Supply all horizontal ground bed installation consumables | D44: sum | E44: 1
A46: Sub-total
A47: 3 | C47: Supply Monitoring Points
A48: 3.1 | C48: Valve Chamber Monitoring Point
A49: 3.1.1 | C49: Supply 36mm steel galvanized conduit with saddles and end plastic caps @ 6m/chamber | D49: m | E49: 80
A50: 3.1.2 | B50: Drg. RA_27645 | C50: Supply connection link panel for all valve chamber connections as per Drawing No RA_27645 | D50: no | E50: 13
A51: 3.1.3 | B51: TS021 | C51: Supply 2X16mm² black PVC/PVC pipe cable for pipe monitoring and cross bonding. | D51: m | E51: 260
A52: 3.1.4 | B52: TS044 | C52: Supply concrete mass as per Drawing No RA_27646 for cable encasement | D52: m³ | E52: 4
A53: 3.1.6 | B53: TS015 | C53: Supply cable lugs, pipe connection metarials and coating make good material | D53: sum | E53: 13
A54: 3.1.7 | B54: Drg. RA_17300 | C54: Supply chamber monitoring point and marker plate as per drawing | D54: no | E54: 13
A56: Sub-total
A57: 3.2 | C57: Cross Bonding Facilities to other Rand Water Pipelines at Chainage 950, 4350, 5350, 5400 (A03, A02, A11, A07.A15,A21,A09,A05, B5,B11)
A58: 3.2.1 | B58: TS013 | C58: Supply Crossbond Facility as per Rand Water Specification | D58: each | E58: 4
A59: 3.2.2 | B59: TS014 | C59: Supply PRE and Coupon | D59: sum | E59: 4
A60: 3.2.3 | B60: TS021 | C60: Supply 10mm² monitor cable | D60: m | E60: 90
A61: 3.2.4 | B61: TS021 | C61: Supply 16mm² pipe cable | D61: m | E61: 416
A62: 3.2.5 | B62: TS019 | C62: Service Detection, Excavation, Trenching and Backfilling | D62: sum | E62: 4
A63: 3.2.6 | B63: TS015 | C63: Supply cable lugs, coating make good materials and consumables | D63: sum | E63: 4
A64: Sub-total
A65: 4 | C65: Cross Bonding Facilities to Foreign Pipelines
A66: 4.1 | C66: Cross Bonding Facilities to Air Product Pipeline at chainagr 5100 and 5650
A67: 4.1.1 | C67: Supply Crossbond Facility as per Air Product's Specification | D67: each | E67: 2
A68: 4.1.2 | B68: TS013 | C68: Supply Crossbond Facility as per Rand Water's Specification | D68: each | E68: 2
A69: 4.1.3 | B69: TS014 | C69: Supply PRE and Coupon | D69: sum | E69: 2
A70: 4.1.4 | B70: TS011 | C70: Supply resistor bond as per Air Product's specification | D70: each | E70: 2
A71: 4.1.5 | B71: TS011 | C71: Supply resistor bond as per Rand Water's specification | D71: each | E71: 2
A72: 4.1.6 | B72: TS015 | C72: Supply cable lugs, coating make good materials and consumables | D72: sum | E72: 2
A73: Sub-total
A74: 4.2 | C74: Cross Bonding Facilities to Sasol Pipeline at chainage 4400
A75: 4.2.1 | B75: TS013 | C75: Supply Crossbond Facility as per Sasol's Specification | D75: each | E75: 1
A76: 4.2.2 | B76: TS013 | C76: Supply Crossbond Facility as per Rand Water Specification | D76: each | E76: 1
A77: 4.2.3 | B77: TS014 | C77: Supply PRE and Coupon | D77: sum | E77: 1
B79: Carried Forward
B80: Brought Forward
A81: 4.2.4 | B81: TS011 | C81: Supply resistor bond as per Sasol's specification | D81: each | E81: 1
A82: 4.2.5 | B82: TS011 | C82: Supply resistor bond as per Rand Water's specification | D82: each | E82: 1
A83: 4.2.6 | B83: TS015 | C83: Supply cable lugs, coating make good materials and consumables | D83: sum | E83: 1
A84: Sub-total
A85: 5 | C85: AC Mitigation System
A86: 5.1 | C86: Sypply AC Mitigation System
A87: 5.1.1 | B87: TS032 | C87: Supply DC De-couplers | D87: sum | E87: 2
A88: 5.1.2 | B88: TS032 | C88: Supply Zinc ribbon | D88: m | E88: 820
A89: 5.1.3 | B89: TS032 | C89: Supply Chamber earth mat | D89: sum | E89: 5
C90: Supply cable lugs and consumables | D90: sum | E90: 5
A91: Sub-total
A93: 6 | C93: Insulation Flange Kit
C94: Supply Insulation Flange Kits as per Rand Water Specification and drawing No. A 9548 on the pipeline's out let and inlet and both sides of the megflow meter.
A95: 6.1 | B95: TS034 | C95: Supply full Insulation Flange Kit on the inlet and out let of the pipeline | D95: each | E95: 2
A96: Sub-total
A97: 7 | C97: Installation Activities
A98: 7.1 | C98: VG Sludge TRU (26°41'43.56"S, 28°55'32.45"E)
A99: 7.1.1 | B99: TS049 | C99: Install a vandal proof housing, durasafe or the steel structure | D99: sum | E99: 1
A100: 7.1.2 | B100: TS001 | C100: Install 100V/100A Transformer Rectifier Unit (TRU) | D100: sum | E100: 1
A101: 7.1.3 | B101: TS049 | C101: Install double skin fence or Clearview fence of around the TRU housing and the kiosk with the following dimension of 4.3m (breath) X 8.3m (length) X 2.4m (height). | D101: sum | E101: 1
A102: 7.1.4 | B102: TS037 | C102: Install the electrical power KIOSK as per Rand Water specification. | D102: sum | E102: 1
A103: 7.1.5 | B103: TS021 | C103: Excavate a trench of 1.5m deep X 0.5m width X 80m long to install the ring main positive cable of single core red 35mm² double insulated PVC cable. | D103: sum | E103: 1
A104: 7.1.6 | B104: TS021 | C104: Excavate a trench and install a pipe cable of 2X 16mm² single core copper cable of 1.5m deep X 0.5m width X 70m long | D104: sum | E104: 1
A105: 7.1.7 | B105: TS021 | C105: Excavate a trench and install a supply cable of 25mm² four core aluminium cable of 1.5m deep X 0.5m width X 40m long | D105: sum | E105: 1
A106: 7.1.8 | B106: TS021 | C106: Install PRE and coupon | D106: sum | E106: 1
A107: 7.1.9 | B107: TS021 | C107: Install 10mm² monitor cable | D107: sum | E107: 1
A108: 7.1.10 | B108: TS021 | C108: Install 2X16mm² pipe cable | D108: sum | E108: 1
A109: 7.1.11 | B109: TS044 | C109: Incase the cable in a concrete mass as per drawing 27645. | D109: sum | E109: 1
A110: 7.1.12 | B110: TS015 | C110: Install cable lugs, consumables and repair coating | D110: sum | E110: 1
B112: Carried Forward
B113: Brought Forward
A114: 7.1.13 | B114: TS019 | C114: Service Detection, Backfilling and Rehabilitation of the area | D114: sum | E114: 1
A115: 7.1.14 | B115: TS036 | C115: Power application and installation, and the applcation of servitude. | D115: sum | E115: 1
A116: 7.1.15 | B116: TS005 | C116: Install 70mm² bare copper earth cable around the TRU and also install four earth rods around the TRU. | D116: sum | E116: 1
A117: Sub-total
A118: 7.2 | C118: VG Sudge TRU - Horizontal Anode Groundbed (26°33'31.99"S, 28° 4'11.18"E)
A119: 7.2.1 | B119: TS002 | C119: Excavate a trench of 2.5m deep X 0.5m width X 151m long for the ground bed installation. | D119: sum | E119: 1
A120: 7.2.2 | B120: Drg. RA-22675 | C120: Install 50 MMO anodes and 51 spacers as per drawing RA 22675. | D120: sum | E120: 1
A121: 7.2.3 | B121: Drg. RA-22675 | C121: Backfill the anodes with Sasol calcined petroleum coke breeze. | D121: sum | E121: 1
A122: 7.2.4 | C122: Connect the anodes tail cable to the ring main using the 'Y' splicing kit. | D122: sum | E122: 1
A123: 7.2.5 | B123: TS019 | C123: Service Detection, Backfilling and Rehabilitation of the area. | D123: sum | E123: 1
A124: Sub-total
A125: 8 | C125: Installation of Monitoring Points
A126: 8.1 | C126: Valve Chamber Monitoring Point
A127: 8.1.1 | C127: Install 36mm steel galvanized conduit with saddles and end plastic caps @ 6m/chamber | D127: sum | E127: 13
A128: 8.1.2 | B128: Drg. R0_27645 | C128: Install connection link panel for all valve chamber connections as per Drawing No R0_27645 | D128: sum | E128: 13
A129: 8.1.3 | C129: Install 2X16mm² black PVC/PVC pipe cable | D129: sum | E129: 13
A130: 8.1.4 | B130: TS044 | C130: Install concrete mass as per Drawing No RA_27376 for cable encasement | D130: sum | E130: 13
A131: 8.1.5 | B131: TS015 | C131: Install pipe cable connection and coating repair material | D131: sum | E131: 13
A132: 8.1.6 | C132: Install cable lugs and cable to pipe stud welding | D132: sum | E132: 13
A133: 8.1.7 | B133: Drg. RA_17300 | C133: Install chamber monitoring point and marker plate as per drawing | D133: sum | E133: 13
A134: 8.1.8 | B134: Drg. RA_17300 | C134: Install chamber marker plate as per drawing | D134: sum | E134: 13
A135: 8.1.9 | B135: TS019 | C135: Service Detection, Excavation, Trenching and Backfilling | D135: sum | E135: 13
A137: Sub-total
A138: 8.2 | C138: Cross Bonding Facilities to Air Product Pipeline at chainage 5100 and 5100
A139: 8.2.1 | B139: TS013 | C139: Install Crossbond Facility as per Air Product Specification at chainage 5100 and 5650 | D139: sum | E139: 3
A140: 8.2.2 | B140: TS013 | C140: Install crossbond facility as per Rand Water's Specification at chainage 4400, 5100 and chainage 5650 | D140: sum | E140: 3
A141: 8.2.3 | B141: TS014 | C141: Install PRE and Coupon as per Drw 27374 | D141: sum | E141: 3
A142: 8.2.4 | B142: TS011 | C142: Liase with Foreign service owners and perfom inteference test | D142: sum | E142: 3
A143: 8.2.5 | B143: TS019 | C143: Service Detection, Excavation, Trenching and Backfilling | D143: sum | E143: 3
A144: Sub-total
A145: 8.3 | C145: Cross Bonding Facilities to Sasol at chainage 4400
A146: 8.3.1 | B146: TS013 | C146: Install Crossbond Facility as per Sasol's Specification | D146: each | E146: 1
A147: 8.3.2 | B147: TS013 | C147: Install Crossbond Facility as per Rand Water Specification | D147: each | E147: 1
A148: 8.3.3 | B148: TS014 | C148: Install PRE and Coupon | D148: sum | E148: 1
B150: Carried Forward
B151: Brought Forward
A152: 8.3.4 | B152: TS011 | C152: Install resistor bond as per Sasol's specification | D152: each | E152: 1
A153: 8.3.5 | B153: TS011 | C153: Install resistor bond as per Rand Water's specification | D153: each | E153: 1
A154: 8.3.6 | B154: TS015 | C154: Install cable lugs, coating make good materials and consumables | D154: sum | E154: 1
A155: Sub-total
A156: 9 | C156: Installtion of AC mitigation System
A157: 9.1 | C157: AC mitigation System
A158: 9.1.1 | B158: TS032 | C158: Install DC De-couplers at chainage 5244 and 6013 | D158: sum | E158: 1
A159: 9.1.2 | B159: TS032 | C159: Install Zinc Ribbon from chainage 5200 to 6020 | D159: m | E159: 820
A160: 9.1.3 | B160: TS032 | C160: Install Valve Chamber Earth mat from (in valve chambers between chainage 4200 to 6016) as per Drawing No RA_27375 | D160: sum | E160: 1
A161: 9.1.4 | B161: TS019 | C161: Service Detection, Excavation, Trenching and Backfilling | D161: sum | E161: 1
A162: Sub-total
A163: 10 | C163: Insulation Flange Kit
C164: Install Insulation Flange Kits as per Rand Water Specification and drawing No. A 9548 on the pipeline's out let and inlet and both sides of the megflow meter.
A165: 10.1 | B165: TS034 | C165: Install full Insulation Flange Kit on the inlet and out let of the pipeline ( | D165: each | E165: 2
A166: Sub-total
A167: 11 | C167: Commission and Testing
A168: 11.1.1 | B168: TS035 | C168: Perform DCVG Survey to be done as soon as backfilling is done. | D168: m | E168: 6037.2
A169: 11.1.2 | C169: Perform CIPS survey and compile a report as soon as the ICCP system has been switched on, | D169: m | E169: 6037.2
A170: 11.1.3 | B170: TS023 | C170: Commissioning and Interference Testing | D170: sum | E170: 1
A171: 11.1.4 | B171: TS030 | C171: Final Documentation and Handover | D171: sum | E171: 1
A172: Sub-total
A173: 12 | C173: Cross Bonding of the Flanges
A174: 12.1 | C174: Supply and install cross bonding steel plates on all pipe flanges using welding methods | D174: No. | E174: =#REF! -> 
A175: Sub-total
A180: SCHEDULE 6 CARRIED FORWARD TO SUMMARY

Sheet Sch 7 WP 3A SED
C1: ='Sch 1 WP 3A P&Gs'!$C$1 -> 0 | G1: ='Sch 1 WP 3A P&Gs'!G1 -> VG Sludge Pipeline
A2: Contract No.: | C2: ='Sch 1 WP 3A P&Gs'!$C$2 -> RW10397155/22 | G2: Schedule 7: Socio Economic Development
A3: Description: | C3: ='Sch 1 WP 3A P&Gs'!$C$3 -> WP3A - Earthworks, pipe laying, jacking and associated civil works for a 6020m x 626mm OD | G3: ='Sch 1 WP 3A P&Gs'!G3 -> 2021-10-01
C4: ='Sch 1 WP 3A P&Gs'!C4 -> steel pipeline from Vereeniging Pumping Station to Vaal River Bridge Crossing in Maccauvlei (SL1 Pipeline)
A6: Item | B6: Payment | C6: Description | D6: Unit | E6: Qty | F6: Rate | G6: Amount
A7: No. | B7: Refers
C9: SCHEDULE 7 : SOCIO ECONOMIC DEVELOPMENT
A11: 1 | C11: SKILLS DEVELOPMENT PROGRAM
A13: 1.1 | B13: PS SED 8.5 | C13: Accredited training programmes are targeted which will provide the beneficiaries with significant and recognized credit value in accordance with the National Qualification Framework (NQF). | D13: % | E13: SUMMARY SUBTOTAL A | F13: 2%
A15: 1.2 | C15: Contractors mark-up on Items 8.1.1 | D15: % | E15: Amount of 1.1
A17: 2 | C17: CORPORATE SOCIAL RESPONSIBILITY PROGRAM
A19: 2.1 | B19: PS SED 8.5 | C19: Corporate Social Responsibility programs aimed at improving the livelihood of the community | D19: % | E19: SUMMARY SUBTOTAL A | F19: 1%
A21: 2.2 | C21: Contractors mark-up on Items 8. 2.1 | D21: % | E21: Amount of 2.1
A23: 3 | C23: COMMUNITY LIASON OFFICER
A25: 3.1 | B25: PS SED 8.5 | C25: Community Liaison Officer. A key component in aiding the realisation of the SED objectives is effective community liaison with all the relevant role-players, structures, civic organisations and the community at large. | D25: Sum | E25: 1
A27: 3.2 | C27: Contractors mark-up on Items 8.3.1 | D27: % | E27: Amount of 3.1
A28: 4 | C28: SED Administration
A30: 4.1 | B30: PS SED 8.5 | C30: Labour Management Services | D30: % | E30: SUMMARY SUBTOTAL A | F30: 1%
A31: 4.2 | C31: Contractors mark-up on Items 8.4.1 | D31: % | E31: Amount of 4.1
A50: SCHEDULE 7 CARRIED FORWARD TO SUMMARY

Sheet Summary - W3A
C1: ='Sch 1 WP 3A P&Gs'!G1 -> VG Sludge Pipeline
A2: Tender No.: | B2: ='Sch 1 WP 3A P&Gs'!$C$2 -> RW10397155/22 | C2: Summary
A3: Description: | B3: ='Sch 1 WP 3A P&Gs'!$C$3 -> WP3A - Earthworks, pipe laying, jacking and associated civil works for a 6020m x 626mm OD | C3: ='Sch 1 WP 3A P&Gs'!G3 -> 2021-10-01
B4: ='Sch 1 WP 3A P&Gs'!C4 -> steel pipeline from Vereeniging Pumping Station to Vaal River Bridge Crossing in Maccauvlei (SL1 Pipeline)
B7: SUMMARY - WORK PACKAGE 3A
A9: Schedule | B9: Description | C9: Amount
B11: PACKAGE 3A
A13: 1 | B13: PRELIMINARY AND GENERAL : FIXED CHARGES + TIME RELATED
A15: 2 | B15: OCCUPATIONAL HEALTH, SAFETY, ENVIRONMENT AND QUALITY (SHERQ)
A17: 3 | B17: PROVISIONAL SUMS, PRIME COSTS AND DAYWORKS
A19: 4 | B19: CIVIL SCOPE
A21: 5 | B21: PIPELINE SCOPE
A23: 6 | B23: CATHODIC PROTECTION SCOPE
A25: 7 | B25: SOCIO ECONOMIC DEVELOPMENT
A28: SUBTOTAL A (W3A) ……………………………………..……………………………………………
A31: VALUE ADDED TAX
A32: Add 15% of Subtotal A ………..…….……………………..………...……..………………
A33: (Provisional sum based on current rate of VAT)
A36: TOTAL
A40: SIGNED ON BEHALF OF TENDERER: ……………………………………………..…………………………………………….

Sheet PACKAGE 3B
D12: BILL OF QUANTITIES
A15: DATE: | D15: Oct-21
A18: PROJECT TITLE: | C18: WORK PACKAGE 3B – DESIGN, MANUFACTURE, SUPPLY, DELIVERY, INSTALLATION, TEST, COMMISSION AND MAINTAIN PIPE LAYING AND CIVIL WORKS FOR THE CONSTRUCTION OF 750m, 694mm ID (8mm THICK) SLUDGE STEEL PIPELINE FROM CENTRAL SLUDGE NO. 2 TO THE CROSS CONNECTION CHAMBER (SL2 PIPELINE)
A21: SAP PROJECT NUMBER: | D21: P.01665
A23: CONTRACT NUMBER | D23: RW10397155/22

Sheet Sch 1 WP 3B P&Gs
G1: ZB Sludge Pipeline
A2: Tender No.: | C2: RW10397155/22 | G2: Section 1 : P&G Time Related
A3: Description: | C3: DESIGN, MANUFACTURE, SUPPLY, DELIVERY, INSTALLATION, TEST, COMMISSION AND MAINTAIN PIPE LAYING AND CIVIL WORKS FOR THE CONSTRUCTION OF 750m, 694mm ID (8mm THICK) SLUDGE STEEL PIPELINE FROM CENTRAL SLUDGE NO. 2 TO THE CROSS CONNECTION CHAMBER (SL2 PIPELINE) | G3: 2021-10-01
C6: SCHEDULE 1: PRELIMINARY AND GENERAL
A7: Item | B7: Payment | C7: Description | D7: Unit | E7: Qty | F7: Rate | G7: Amount
A8: No. | B8: Refers
B10: SABS 1200A | C10: PRELIMINARY & GENERAL
A11: 1.1 | C11: FIXED CHARGES
A13: 1.1.1 | B13: 8.3.1 | C13: Contractual Requirements
A15: 1.1.1.1 | C15: Contractual Requirements | D15: Sum | E15: 1
A17: 1.1.2 | B17: 8.3.2.1 | C17: Facilities for Engineer (SABS 1200AB)
A19: 1.1.2.1 | C19: Provision of Office for the Engineer's Representative as per PSAB 3.2, including toilet facilities as per PSAB 5.2 | D19: Sum | E19: 1
A21: 1.1.2.2 | C21: Provision of cellular phone as per PSAB 4.1 | D21: Sum | E21: 1
A23: 1.1.2.3 | C23: Provision of survey equipment as per PSAB 4.2 | D23: Sum | E23: 1
A25: 1.1.2.4 | C25: Name Board as per Engineer's instruction | D25: No. | E25: 2
A27: 1.1.2.5 | C27: Provision of survey assistants as per PSAB 5.5 | D27: Sum | E27: 1
A29: 1.1.3 | C29: Facilities for Contractor
A31: 1.1.3.1 | B31: 8.3.2.2 | C31: Offices, storage sheds, fencing, workshops, laboratories, etc. | D31: Sum | E31: 1
A33: 1.1.3.2 | B33: 8.3.2.2 | C33: Ablution and latrine facilities | D33: Sum | E33: 1
A35: 1.1.3.3 | B35: 8.3.2.2 | C35: Tools and equipment | D35: Sum | E35: 1
A37: 1.1.3.4 | B37: 8.3.2.2 | C37: Water supplies, electric power and communications | D37: Sum | E37: 1
A39: 1.1.3.5 | B39: 8.3.2.2 | C39: Dealing with water (See PS A 8.8.7) | D39: Sum | E39: 1
A41: 1.1.3.6 | B41: 8.3.3 | C41: Other fixed charge obligations, including setting out of works, security of contractor's plant & personnel | D41: Sum | E41: 1
A43: 1.1.3.7 | B43: 8.3.4 | C43: Remove all site establishment on completion | D43: Sum | E43: 1
A45: 1.1.4 | C45: Temporary Works
A47: 1.1.4.1 | B47: 8.2.1 | C47: Access to works including all temporary roads, excavations and ramps, etc. | D47: Sum | E47: 1
A49: 1.1.5 | C49: Accommodation of traffic
A51: 1.1.5.1 | B51: PSA 8.8.2 | C51: Supply, operate, maintain and remove of traffic control devices, road signs, barricades, warning signs, including signs for construction vehicles and road markings and accommodate traffic (See PS A 5-10) | D51: Sum | E51: 1
B55: Carried Forward
B56: Brought Forward
A59: 1.1.6 | B59: PSA 8.10 | C59: HIV / AIDS awareness
A61: 1.1.6.1 | C61: Conduct HIV/AIDS awareness programme workshops on site for not less than 90% of the workers inclusive of all direct and indirect costs | D61: Sum | E61: 1
A63: 1.1.6.1.1 | C63: Provide and maintain condom dispenser | D63: Sum | E63: 1
A65: 1.1.6.1.2 | C65: Provide and maintain HIV/AIDS awareness posters | D65: Sum | E65: 1
A67: 1.1.6.1.3 | C67: Provide information regarding voluntary testing of construction workers and counselling, support and care in a monthly report. | D67: Sum | E67: 1
A69: 1.1.7 | C69: Quality Control
A71: 1.1.7.1 | B71: PS A 8.10 | C71: Quality control and all activities necessary to comply with all requirements of the specified quality control system as per PS 5. | D71: Sum | E71: 1
A73: 1.1.8 | C73: High Voltage Safe Working Procedures
A75: 1.1.8.1 | B75: PSA 8.10 | C75: Comply with Safe Working Procedures for pipeline construction within High Voltage Transmission Lines Servitude (See TS041 in Specification Rand Water Cathodic Protection System Technical Specification) | D75: Sum | E75: 1
A78: 1.2 | B78: SABS 1200A | C78: PRELIMINARY & GENERAL TIME RELATED ITEMS
A80: 1.2.1 | B80: 8.4.1 | C80: Contractual Requirements
A82: 1.2.1.1 | C82: Contractual Requirements | D82: Month | E82: 18
A84: 1.2.2 | B84: 8.4.2.1 | C84: Operate and maintain facilities: Facilities for Engineer for duration of contract
A86: 1.2.2.1 | C86: Provision of office for the Engineer's representative, incl. toilet facilities as per PSAB 3.2 and PSAB 5.2 | D86: Month | E86: 18
A88: 1.2.2.2 | C88: Provision of cellular phone as per PSAB 4.1 | D88: Month | E88: 18
A90: 1.2.2.3 | C90: Provision of survey equipment as per PSAB 4.2 | D90: Month | E90: 18
A92: 1.2.2.4 | C92: Name Board as per Engineer's instruction | D92: Month | E92: 18
B94: Carried Forward
B95: Brought Forward
A97: 1.2.2.5 | C97: Provision of survey assistants as per PSAB 5.5 | D97: Month | E97: 18
A99: 1.2.3 | C99: Operate and maintain facilities: Facilities for Contractor for duration of contract
A101: 1.2.3.1 | B101: 8.4.2.2 | C101: Offices, storage sheds, fencing, workshops, laboratories, etc. | D101: Month | E101: 18
A103: 1.2.3.2 | B103: 8.4.2.2 | C103: Ablution and latrine facilities | D103: Month | E103: 18
A105: 1.2.3.3 | B105: 8.4.2.2 | C105: Tools and equipment | D105: Month | E105: 18
A107: 1.2.3.4 | B107: 8.4.2.2 | C107: Water supplies, electric power and communications | D107: Month | E107: 18
A109: 1.2.3.5 | B109: 8.4.2.2 | C109: Dealing with water (See PS A 8.8.7) | D109: Month | E109: 18
A111: 1.2.3.6 | B111: 8.4.3 | C111: Supervision for duration of construction | D111: Month | E111: 18
A113: 1.2.3.7 | B113: 8.4.4 | C113: Company and head office overhead costs | D113: Month | E113: 18
A115: 1.2.3.8 | B115: 8.4.5 | C115: Other time related charges, including security of contractor's plant & personnel | D115: Month | E115: 18
A117: 1.2.4 | C117: Temporary Works
A119: 1.2.4.1 | B119: 8.2.1 | C119: Access to works including all temporary roads, excavations and ramps, etc. | D119: Month | E119: 18
A121: 1.2.5 | C121: Accommodation of traffic
A123: 1.2.5.1 | B123: PSA 8.8.2 | C123: Supply, operate, maintain and remove traffic control devices, road signs, barricades, warning signs, including signs for construction vehicles and road markings (See PSA5-10) and accommodate traffic. | D123: Month | E123: 18
A125: 1.2.6 | C125: HIV / AIDS awareness
A127: 1.2.6.1 | B127: PSA 8.10 | C127: Conduct HIV/AIDS awareness programme workshops on site for not less than 90% of the workers inclusive of all direct and indirect costs | D127: Month | E127: 18
A129: 1.2.6.2 | B129: PSA 8.10 | C129: Provide and maintain condom dispenser | D129: Month | E129: 18
A131: 1.2.6.3 | B131: PSA 8.10 | C131: Provide and maintain HIV/AIDS awareness posters | D131: Month | E131: 18
A133: 1.2.6.4 | B133: PSA 8.10 | C133: Provide information regarding voluntary testing of construction workers and counselling, support and care in a monthly report. | D133: Month | E133: 18
B135: Carried Forward
B136: Brought Forward
A138: 1.2.7 | C138: Quality Control
A140: 1.2.7.1 | B140: PS A 8.10 | C140: Quality control and all activities necessary to comply with all requirements of the specified quality control system as per PS 5. | D140: Month | E140: 18
A142: 1.2.8 | C142: High Voltage Safe Working Procedures
A144: 1.2.8.1 | B144: PSA 8.10 | C144: Comply with Safe Working Procedures for pipeline construction within High Voltage Transmission Lines Servitude (See TS041 in Specification Rand Water Cathodic Protection System Technical Specification) | D144: Sum | E144: 1
A146: 1.2.9 | B146: PSA 8.8.11 | C146: Standing time costs | D146: Days | E146: 30
C172: SCHEDULE 1 CARRIED FORWARD TO SUMMARY

Sheet Sch 2 WP 3B SHERQ
G1: ='Sch 1 WP 3B P&Gs'!G1 -> ZB Sludge Pipeline
A2: Contract No.: | C2: ='Sch 1 WP 3B P&Gs'!$C$2 -> RW10397155/22 | G2: Schedule 2
A3: Description: | C3: ='Sch 1 WP 3B P&Gs'!C3:F5 -> DESIGN, MANUFACTURE, SUPPLY, DELIVERY, INSTALLATION, TEST, COMMISSION AND MAINTAIN PIPE LAYING AND CIVIL WORKS FOR THE CONSTRUCTION OF 750m, 694mm ID (8mm THICK) SLUDGE STEEL PIPELINE FROM CENTRAL SLUDGE NO. 2 TO THE CROSS CONNECTION CHAMBER (SL2 PIPELINE) | G3: 2021-10-01
C9: SCHEDULE 2: OHS, QUALITY, SED & ENVIRONMENT
A10: Item | B10: Payment | C10: Description | D10: Unit | E10: Qty | F10: Rate | G10: Amount
A11: No. | B11: Refers
A12: 2.1 | B12: PSA 8.11 | C12: OCCUPATIONAL HEALTH AND SAFETY
A14: 2.1.1 | B14: 2.4 & 2.5. | C14: Preparation of the Contractor's site specific Health and Safety Plan | D14: lump sum | E14: 1
A16: 2.1.2 | B16: 3.2 | C16: Principal Contractor's initial obligations in respect of the Occupational Health and Safety Act and Construction Regulations | D16: lump sum | E16: 1
A18: 2.1.3 | B18: 4 | C18: Principal Contractor's time related obligations in respect of the Occupational Health and Safety Act and Construction Regulations | D18: month | E18: 18
A20: 2.1.4 | B20: 10.d | C20: Provision of Personal Protective Equipment (PPE) | E20: 1
A22: 2.1.5 | B22: 3.2.1 | C22: Provision of a full-time Construction Health and Safety Officer | D22: month | E22: 18
A24: 2.1.6 | B24: 15 | C24: Cost of medical certificates and medical surveillance
B26: 15 | C26: (a) Initial (baseline) medical examinations | D26: lump sum | E26: 1
B28: 15 | C28: (b) Periodic examinations | D28: lump sum | E28: 1
B30: 15 | C30: (c)Exit examinations | D30: lump sum | E30: 1
A32: 2.1.7 | B32: 9.3 | C32: Induction training | D32: lump sum | E32: 1
A34: 2.1.8 | B34: 16 | C34: Provision of First Aid Boxes to GSR requirements and other emergency safety equipment such as fire extinguishers. | D34: lump sum | E34: 1
A36: 2.1.9 | B36: 24 C09 | C36: Transportation of Workers | D36: lump sum | E36: 1
A38: 2.1.10 | B38: 11 | C38: Welfare Facilities | D38: lump sum | E38: 1
A40: 2.1.11 | B40: 14 | C40: Occupational Hygiene Surveys | D40: lump sum | E40: 1
A42: 2.1.12 | B42: 10 | C42: Training | D42: lump sum | E42: 1
A44: 2.1.13 | B44: Part B (Annexure 11.1) | C44: Security requirements including the security risk assessment (before site establishment) | D44: lump sum | E44: 1
A46: 2.1.14 | B46: 24 C14, 7 | C46: Employee wellness programs | D46: lump sum | E46: 1
A48: 2.1.15 | B48: 7 | C48: Drug and Alcohol Testing, Policies and Procedures | D48: lump sum | E48: 1
A50: 2.1.16 | B50: Part B 10 k | C50: Barricading | D50: lump sum | E50: 1
A52: 2.1.17 | B52: Part B 10 a | C52: Safety notices and signs | D52: lump sum
A54: 2.1.18 | B54: 8 | C54: SHE Incentives | D54: lump sum
A56: 2.1.19 | B56: 3.2.1 & 5C | C56: COVID-19 Prevention and Management: The Engineer to advise at the relevant stage after award | D56: PC SUM
A58: 2.1.20 | B58: Part B 10n,6.6 | C58: Adequate ventilation and lighting during construction | D58: lump sum
B60: Carried Forward
B61: Brought Forward
A63: 2.1.21 | B63: 2.9 | C63: Submission of the Health and Safety File (hard and soft copies) | D63: lump sum
A66: 2.2. | B66: PSA 8.3.14 | C66: ENVIRONMENT
A68: 2.2.1 | B68: 8 | C68: Administrative requirements as per the approved EMPr. Submission and Maintanance of the Contractors environmental file based on RW's environmental file approval checklist. | D68: Sum | E68: 1
A70: 2.2.2 | B70: 9.2 | C70: Emergency preparedness funding
C71: a) Provision for bee, snake and other fauna removal | D71: Sum | E71: 1
C72: b) Provision for hydrocarbon spillages that require intervention from professional clean up provider
C73: c) Provision to clean up sewage spillages
C74: d) Equipment for fire fighting
C75: e) Call out of fire department
A76: 2.2.3 | B76: 9.1.4 | C76: Environmental awareness and training
C77: The rate for this item shall include costs for inductions and environmental awareness and training | D77: Sum | E77: 1
A78: 2.2.4 | B78: 9.2 | C78: Social integration of the project to the public
C79: The rate for this item shall include costs for establishment of construction campsite and working areas | D79: Sum | E79: 1
A80: 2.2.5 | B80: 9.3 | C80: Establishment of site camp and works area. | D80: Sum | E80: 1
C81: Signage The rate for this item must cover all expenses incurred in preparing signage at the entrance of the site offices indicating the following information
C82: · The contractor’s contact numbers
C83: · ECO details
C84: · Emergency numbers and provision for: – snake removal, bee removal, fire, large hydrocarbon spillages, sewerage spillages
C85: Identiying the PPE required before entering a specific area
C86: Signage measuring a minimum of 30mmx30mm must also be made available for no go areas.
C87: speed limits signage
C88: no go area signage
B89: 10.8 | C89: marking of no go areas (topsoil and water courses)
A90: 2.2.6 | B90: 9.3.4 to 9.3.4.2, & 10.8.2 | C90: Barricading and demarcation
C91: a. Screening for unsightly works | D91: sum | E91: 1
C92: b. Clear fencing and demarcating of the working foot print
C93: c. Barricading and fencing of sensitive no go areas
A95: 2.2.7 | B95: 12 | C95: Pollution prevention and preservation of environmental resources
C96: The rate for this item shall include costs for pollution prevention and preservation of environmental resources | D96: sum | E96: 1
C97: a) Cleaning the site of litter and rubble | D97: sum | E97: 1
C98: b)Weed control on site | D98: sum | E98: 1
C99: c) Labbelled waste bins and receptacles that comply with the waste clauses of the Environmental specification. | D99: sum | E99: 1
C100: d, Servicing and safe disposal at a waste facility of ablution facilities | D100: sum
C101: e, Provision of water carts (twice a day or as per EMP) | D101: sum
C102: f) Appropriate skips for waste separation | D102: sum | E102: 1
C103: g) General waste Waste removal | D103: sum | E103: 1
C104: h)Bunding facility for hazardous products | D104: sum | E104: 1
C105: i) Recycled waste management Waste removal | D105: sum | E105: 1
C106: j) Spillage kits to clean up spillages | D106: sum | E106: 1
C107: k) Hard impervious surfaces for storage of chemicals | D107: sum | E107: 1
C108: l)Bunding facility for hazardous products | D108: sum | E108: 1
C109: m) Labelled containers for decanting of liquids | D109: sum | E109: 1
C110: n) Drip trays for all vehicles staying on site over night | D110: sum | E110: 1
B112: Carried Forward
B113: Brought Forward
A114: 2.2.8 | B114: 9.5 | C114: Preservation of the environment: fauna ,flora, scenic value, Archaeological artefacts
A115: 2.2.9 | B115: 9.5.3 | C115: Erosion control and silt management The amount shall represent the costs associated with the practice of preventing or controlling wind or water erosion during construction. The erosion control measures must effectively prevent water pollution, soil loss, wildlife habitat loss and human property loss. The rate shall also include the costs of silt control where devices shall be designed to keep eroded soil on a construction site, so that it does not wash off and cause water pollution to a nearby stream, river, lake, or dam. | D115: Lump Sum | E115: 1
C116: construction of berms
C117: Sediment control structures
C118: Silt fences
A119: 2.2.10 | C119: Final clean up and rehabilitation of the construction camp to the state in which it was prior to comencement of work | D119: Lump Sum | E119: 1
A120: 2.2.11 | C120: Appointment of the contractor's environmental officer for the duration of the Project | D120: sum | E120: 1
A122: 2.3 | C122: QUALITY CONTROL AND ASSURANCE
A124: 2.3.1 | B124: 8.4.3 | C124: Supervision for duration of construction including Quality Assurance as per TS 3.2 and TS2.33 including equipment factory acceptance tests | D124: Sum | E124: 1
A126: 2.3.2 | C126: Provision of Quality Control Plans | D126: Sum | E126: 1
A128: 2.3.3 | C128: Provision of Welding, Coating and NDT inspection personel | D128: Sum | E128: 1
A130: 2.3.5 | C130: Maintenance of Testing equipments ( Calibration of Equipment ) | D130: Rate | E130: 1
A132: 2.3.6 | B132: PS A 8.10 | C132: Quality control and all activities necessary to comply with all requirements of the specified quality control system as per PS 5 & TS2.32. | D132: Sum | E132: 1
A134: 2.3.7 | C134: Provision for Training of Quality control personel | D134: Sum | E134: 1
A136: 2.3.8 | C136: Maintenance of Testing and Inspection documentation (Data Pack Management) and handing over to Rand Water prior to the commencement of the Defects Liability Period. | D136: Sum | E136: 1
A161: SCHEDULE 2 CARRIED FORWARD TO SUMMARY

Sheet Sch 3 WP 3B Prov Sums
G1: ='Sch 1 WP 3B P&Gs'!G1 -> ZB Sludge Pipeline
A2: Contract No.: | C2: ='Sch 1 WP 3B P&Gs'!C2 -> RW10397155/22 | G2: Schedule 3
A3: Description: | C3: ='Sch 2 WP 3B SHERQ'!C3:E7 -> DESIGN, MANUFACTURE, SUPPLY, DELIVERY, INSTALLATION, TEST, COMMISSION AND MAINTAIN PIPE LAYING AND CIVIL WORKS FOR THE CONSTRUCTION OF 750m, 694mm ID (8mm THICK) SLUDGE STEEL PIPELINE FROM CENTRAL SLUDGE NO. 2 TO THE CROSS CONNECTION CHAMBER (SL2 PIPELINE) | G3: ='Sch 1 WP 3B P&Gs'!G3 -> 2021-10-01
C8: SCHEDULE 3: PROVISIONAL SUMS AND DAYWORKS
A9: Item | B9: Payment | C9: Description | D9: Unit | E9: Qty | F9: Rate | G9: Amount
A10: No. | B10: Refers
A12: 3.1 | B12: SABS 1200A | C12: PROVISIONAL SUMS, PRIME COSTS AND OTHER COSTS
A14: 3.1.1 | C14: As Builts
A16: 3.1.1.1 | B16: TS 4.23 | C16: The provision of detailed as-built drawings of the completed works as per PS 19, TS 2.34 | D16: Sum | E16: 1
A18: 3.1.2 | C18: Access to spoil sites
A20: 3.1.2.1 | B20: PSA 8.10 | C20: The identification of spoil sites for the disposal of unsuitable or surplus excavation materials, negotiations and agreement with relevant owners and/or authorities and the provision of access to designated spoil sites as per PS 17 | D20: Sum | E20: 1
A22: 3.1.3 | B22: SABS | C22: Provisional Sums allowed for by the Client
B23: 1200A
A24: 3.1.3.1 | C24: Relocation of existing services
A26: 3.1.3.1.1 | B26: 8.5 (b)(1) PS. 9.7.1 | C26: Provisional sum for the identification and relocation of existing services (water mains, overhead or underground electrical, etc) by services utilities | D26: Prov. Sum | E26: 1 | F26: R500,000.00 | G26: =F26 -> R500,000.00
A28: 3.1.3.1.2 | B28: 8.5 (b)(2) | C28: Contractors mark-up on Item 3.1.3.1.1 | D28: %
A30: 3.1.3.2 | C30: Additional surveys
A32: 3.1.3.2.1 | B32: 8.5 (b)(1) | C32: Additional topographical surveys by nominated specialist as ordered by Engineer | D32: Prov. Sum | E32: 1 | F32: R20,000.00 | G32: =F32*E32 -> R20,000.00
A34: 3.1.3.2.2 | B34: 8.5 (b)(2) | C34: Contractors mark-up on Item 3.1.3.2.1 | D34: %
A36: 3.1.3.3 | C36: Office equipment
A38: 3.1.3.3.1 | B38: 8.5 (a) | C38: Provisional Sum for supply of office equipment for Engineer's Representative Offices not included under Item 2 of Section 1 of Bill of Quantties | D38: Prov. Sum | E38: 1 | F38: R10,000.00 | G38: =F38*E38 -> R10,000.00
A40: 3.1.3.3.2 | B40: 8.5 (b)(2) | C40: Contractor's mark up on Item 3.1.3.3.1 | D40: %
A42: 3.1.3.4 | C42: Additional geotechnical investigations & Tests
A44: 3.1.3.4.1 | B44: 8.5 (b)(1) | C44: Provisional sum for additional geotechnical investigations (including grading analysis, compactibility tests, etc) by nominated specialists, where ordered by the Engineer. | D44: Prov. Sum | E44: 1 | F44: R50,000.00 | G44: =F44*E44 -> R50,000.00
A46: 3.1.3.4.2 | B46: 8.5 (b)(2) | C46: Contractors mark-up on Items 3.1.3.4.1 | D46: %
A48: 3.1.3.4.1 | C48: Additional non-destructive pipeline testing
A50: 3.1.3.4.1.1 | B50: 8.5 (b)(1) | C50: Provisional sum for additional non-destructive pipeline testing as directed by Engineer | D50: Prov. Sum | E50: 1 | F50: R50,000.00 | G50: =F50*E50 -> R50,000.00
B52: Carried Forward
B53: Brought Forward
A55: 3.1.3.4.1.2 | B55: 8.5 (b)(2) | C55: Contractors mark-up on Items 3.1.3.5.1 | D55: %
A57: 3.1.3.5 | C57: Dosing Point and Sampling Point Chambers
A59: 3.1.3.5.1 | C59: Provisional Sum for the construction of 2 Access Chambers (~2.5x2.5m each) for the PH Dosing Point and Sampling Point should the Existing Pipe be used. Including Sump Pumps, Electrification and and the Automation of the Sump Pump on each Chamber. Chambers to be cast insitu. | D59: Prov. Sum | E59: 1
A60: 3.1.3.5.2 | C60: Contractors mark-up on Items 3.1.3.5.1 | D60: %
A62: 3.1.3.6 | B62: PSA 8.10 | C62: Access Road
A64: 3.1.3.6.1 | C64: Allow Provisional Sum for paving of access road | D64: Prov. Sum | E64: 0
A66: 3.1.3.6.2 | B66: PSA 8.10 | C66: Contractors mark-up on Item 3.1.3.6.1 | D66: %
A68: 3.1.3.6.3 | B68: PSA 8.10 | C68: Provisional sum for additional design and works as directed by the Engineer | D68: Prov. Sum | E68: 1 | F68: R2,000,000.00 | G68: R2,000,000.00
A70: 3.1.3.6.4 | C70: Contractors mark-up on Item 3.1.3.6.3 | D70: %
A72: 3.1.4 | C72: Other costs
A74: 3.1.4.1 | B74: PSA 8.8.8 | C74: Discontinue operations (where instructed by the Engineer due to lack of access) and transfer plant,equipement and labour
A76: 3.1.4.1.1 | C76: Over a route distance not exceeding 1 km | D76: No | E76: 1
A78: 3.1.4.2 | B78: PSA 8.8.11 | C78: Standing time costs | D78: Days | E78: 30
A80: 3.1.4.3 | B80: PSA 8.8.12 | C80: Carry out operations in a confined and reduced working strip width | D80: m | E80: 600
A83: 3.1.3.1 | B83: TS1.16.20 | C83: Inspection requirements
A85: 3.1.3.1.1 | B85: TS1.16.20 | C85: Allow / Sum for the attendance of a RW official, or any person as designated by RW, to travel to, inspect manufacturing and testing at the manufacturers premises, to include all travel, accommodation and incidental costs | D85: Sum | E85: 1
A87: 3.1.3.1.2 | C87: Radiographic/ Non-destructive testing
A89: 3.1.3.1.2.1 | B89: TS1.16.15 | C89: Allow / Sum for radiographic examination of circumferential welds by nominated Specialist as ordered by the Engineer | D89: Sum | E89: 1
A91: 3.1.6 | B91: PSA 8.10 | C91: Reinstatement of Existing roads
A93: 3.1.6.1 | C93: Reinstatement of exisitng road as per Authorities or Road Owner or Design requirements. | D93: Prov. Sum | E93: 1 | F93: R100,000.00 | G93: =F93*E93 -> R100,000.00
B95: Carried Forward
B96: Brought Forward
A98: 3.1.7 | C98: Testing of Materials
A100: 3.1.7.1 | B100: PSDB 8.3.13 | C100: Testing of materialsof on site | D100: Prov sum | E100: 1 | F100: R25,000.00 | G100: =F100*E100 -> R25,000.00
A102: 3.1.7.2 | B102: PSA 8.10 | C102: Contractors mark-up on Item 3.1.7.1 | D102: %
A104: 3.1.8 | C104: Removing/dealing existing structures
A106: 3.1.8.1 | B106: PSA 5.14 | C106: Removing existing pipe | D106: m | E106: 600
A108: 3.1.8.1 | B108: PSA 5.14 | C108: Fill existing pipe with sludge | D108: m³ | E108: 57
A110: 3.2 | B110: SANS | C110: DAYWORKS
B111: 1200A
A112: 3.2.1 | B112: 8.7 | C112: Labour by class
A114: 3.2.1.1 | C114: Unskilled Labourers | D114: hrs | E114: 250
A116: 3.2.1.2 | C116: Semi Skilled Labourers | D116: hrs | E116: 100
A118: 3.2.1.3 | C118: Skilled labour | D118: hrs | E118: 40
A120: 3.2.2 | B120: 8.7 | C120: Labour by trade
A122: 3.2.2.1 | C122: Construction Hand and Operator | D122: hrs | E122: 100
A124: 3.2.2.2 | C124: Carpenter | D124: hrs | E124: 25
A126: 3.2.2.3 | C126: Clerk | D126: hrs | E126: 25
A128: 3.2.2.4 | C128: Artisans | D128: hrs | E128: 50
A130: 3.2.2.5 | C130: Foreman | D130: hrs | E130: 50
A132: 3.2.2.3.2 | C132: Gangers and Section Leaders | D132: hrs | E132: 50
A134: 3.2.2.7 | C134: Steel fixer | D134: hrs | E134: 25
A136: 3.2.2.8 | C136: Bricklayer or Plasterer | D136: hrs | E136: 25
A138: 3.2.2.9 | C138: Welder | D138: hrs | E138: 25
A140: 3.2.3 | B140: 8.7 | C140: Materials
A142: 3.2.3.1 | C142: Provisional sum for cost of material | D142: Sum | E142: 1 | F142: R75,000.00 | G142: R75,000.00
A144: 3.2.3.2 | C144: Contractors mark-up on material | D144: %
A146: 3.2.4 | B146: 8.7 | C146: Plant
C148: Tenderers to insert the hire rate at which each item will be charged, which is to cover all relevant costs of plant hire, including operating crew
B150: Carried Forward
B151: Brought Forward
A153: 3.2.4.1 | C153: Lowbed transport of plant to and from site | D153: t.km | E153: 1,000
A155: 3.2.4.2 | C155: Bulldozer and ripper (D6 or equivalent) | D155: hrs | E155: 20
A157: 3.2.4.3 | C157: Grader (120G or equivalent) | D157: hrs | E157: 20
A159: 3.2.4.4 | C159: Front end wheel loaders (Cat 950 or similar) | D159: hrs | E159: 20
A161: 3.2.4.5 | C161: Back acting excavators (Hitachi EX200 or similar) | D161: hrs | E161: 20
A163: 3.2.4.3.2 | C163: T L B | D163: hrs | E163: 20
A165: 3.2.4.7 | C165: Tractors and drawn trailers and rollers | D165: hrs | E165: 20
A167: 3.2.4.8 | C167: Compactors (D72Y or equivalent) | D167: hrs | E167: 20
A169: 3.2.4.9 | C169: Compressors (250CFM or equivalent) | D169: hrs | E169: 40
A171: 3.2.4.10 | C171: Trucks (7t or equivalent) | D171: hrs | E171: 40
A173: 3.2.4.11 | C173: Tip Trucks (10t or equivalent) | D173: hrs | E173: 40
A175: 3.2.4.12 | C175: Water Tanker | D175: hrs | E175: 40
A177: 3.2.4.13 | C177: Plate Compactor | D177: hrs | E177: 40
A179: 3.2.4.14 | C179: Light delivery vehicles (1t or equivalent) | D179: km | E179: 3,000
A181: 3.2.4.15 | C181: Site Boom | D181: No. | E181: 1
A183: 3.2.4.13.2 | C183: Generator | D183: No. | E183: 1
A186: SCHEDULE 3 CARRIED FORWARD TO SUMMARY

Sheet Sch 4 WP 3B Automation
G1: ='Sch 1 WP 3B P&Gs'!G1 -> ZB Sludge Pipeline
A2: Contract No.: | C2: ='Sch 1 WP 3B P&Gs'!$C$2 -> RW10397155/22 | G2: Schedule 4
A3: Description: | C3: ='Sch 1 WP 3B P&Gs'!$C$3 -> DESIGN, MANUFACTURE, SUPPLY, DELIVERY, INSTALLATION, TEST, COMMISSION AND MAINTAIN PIPE LAYING AND CIVIL WORKS FOR THE CONSTRUCTION OF 750m, 694mm ID (8mm THICK) SLUDGE STEEL PIPELINE FROM CENTRAL SLUDGE NO. 2 TO THE CROSS CONNECTION CHAMBER (SL2 PIPELINE) | G3: ='Sch 1 WP 3B P&Gs'!G3 -> 2021-10-01
A8: SCHEDULE 4: AUTOMATION.
A9: Price Schedule 4: Bill of Quantities for Automation (Refer to Automation System Specification for details)
A10: Item | B10: System Spec | C10: Description | D10: Unit | E10: Qty | F10: Rate | G10: Amount
A11: No. | B11: Refers
A12: 4.1. | B12: 3.1. | C12: Design Pack
A13: 4.1.1. | B13: 3.1.1. | C13: Complete design pack
A14: 4.2. | B14: 3.2. | C14: Valve Control
A15: 4.2.1. | B15: 3.2.1. | C15: The Contractor shall put into operation complete communication wiring to the Sludge pipeline cross connection valve actuators and sludge bypass valve actuators | D15: sum
A16: 4.3 | B16: 3.3. | C16: PLC
A17: 4.3.1 | B17: 3.3.1. | C17: The Contractor shall put into operation set of PLC with all modules and ancillary item | D17: each | E17: 3
A18: 4.4. | B18: 3.4. | C18: Flow Measurement
A19: 4.4.1. | B19: 3.4.1. | C19: The Contractor shall put into operation Profibus DP copper compatible magnetic flow meter for Sludge Pipeline | D19: each | E19: 1
A20: 4.5. | B20: 3.5. | C20: HMI
A21: 4.5.1 | B21: 3.5.1. | C21: The Contractor shall put into operation HMIs for the kiosks | D21: each | E21: 3
A22: 4.5.2 | B22: 3.5.2. | C22: The Contractor shall put into operation HMI applications | D22: each | E22: 3
A23: 4.6. | B23: 3.6. | C23: SCADA
A24: 4.6.1 | B24: 3.6.1 | C24: The Contractor shall put into operation SCADA application | D24: each | E24: 1
A25: 4.6.2. | B25: 3.6.2. | C25: The Contractor shall put into operation SCADA computer tower | D25: each | E25: 2
A26: 4.6.3. | B26: 3.6.3. | C26: The Contractor shall put into operation SCADA display screens. | D26: each | E26: 4
A27: 4.6.4. | B27: 3.6.4. | C27: The Contractor shall put into operation sets of mouse and keyboard. | D27: each | E27: 4
A28: 4.7. | B28: 3.7. | C28: Panels
A29: 4.7.1. | B29: 3.7.1. | C29: The Contractor shall put into operation galvanized kiosks | D29: each | E29: 3
A30: 4.7.2. | B30: 3.7.2. | C30: The Contractor shall put into operation Earthing and Lightning protection for kiosks | D30: each | E30: 3
A31: 4.7.3. | B31: 3.7.3. | C31: The Contractor shall put into operation complete chassis plate with equipment for kiosks | D31: each | E31: 3
A32: 4.8. | B32: 3.8. | C32: Ethernet
A33: 4.8.1. | B33: 3.8.1. | C33: The Contractor shall put into operation Ethernet switches | D33: each | E33: 6
A34: 4.8.2. | B34: 3.8.2. | C34: The Contractor shall put into operation complete Ethernet cable patch leads for each kiosk | D34: sum
A35: 4.9. | B35: 3.9. | C35: Din Rail UPS and Batteries
A36: 4.9.1. | B36: 3.9.1. | C36: The Contractor shall put into operation sets din rail mount UPS with batteries | D36: each | E36: 3
A37: 4.10. | B37: 3.10. | C37: Profibus
A38: 4.10.1. | B38: 3.10.1. | C38: The Contractor shall put into operation OLM | D38: each | E38: 3
A39: 4.10.2. | B39: 3.10.2. | C39: The Contractor shall put into operation PRM modules | D39: each | E39: 3
A40: 4.10.3. | B40: 3.10.3. | C40: The Contractor shall put into operation Profibus DP fiber cable | D40: m | E40: 500
A41: 4.10.4. | B41: 3.10.4. | C41: he Contractor shall put into operation Profibus DP fiber FDU | D41: each | E41: 10
B43: Carried Forward
B44: Brought Forward
A45: 4.11. | B45: 3.11. | C45: Sump pump control panel cabling
A46: 4.11.1. | B46: 3.11.1. | C46: The Contractor shall put into operation multicore cable | D46: m | E46: 500
A47: 4.12. | B47: 3.12. | C47: Ethernet Radio
A48: 4.12.1. | B48: 3.12.1. | C48: The Contractor shall put into operation Ethernet Radios | D48: each | E48: 8
C50: OTHER PLEASE SPECIFY IN FULL BELOW:
A69: SCHEDULE 4 CARRIED FORWARD TO SUMMARY

Sheet Sch 5 WP 3B Civil
G1: ='[6]Sch 1 WP 3B P&Gs'!G1 -> ZB Sludge Pipeline
A2: Contract No.: | C2: ='Sch 4 WP 3B Automation'!C2 -> RW10397155/22 | G2: Schedule 5
A3: Description: | C3: ='Sch 4 WP 3B Automation'!C3:F6 -> DESIGN, MANUFACTURE, SUPPLY, DELIVERY, INSTALLATION, TEST, COMMISSION AND MAINTAIN PIPE LAYING AND CIVIL WORKS FOR THE CONSTRUCTION OF 750m, 694mm ID (8mm THICK) SLUDGE STEEL PIPELINE FROM CENTRAL SLUDGE NO. 2 TO THE CROSS CONNECTION CHAMBER (SL2 PIPELINE) | G3: ='[6]Sch 1 WP 3B P&Gs'!G3 -> 2021-10-01
C8: SCHEDULE 5: VALVE CHAMBERS: EARTHWORKS, CONCRETE AND STEELWORK
A9: Item | B9: Payment | C9: Description | D9: Unit | E9: Qty | F9: Rate | G9: Amount
A10: No. | B10: Refers
A11: 5.1 | B11: SANS 1200 C | C11: SECTION C: SITE CLEARANCE
A13: 5.1.1 | B13: 8.2.1 | C13: Clear and grub | D13: ha | E13: 0.00350
A15: 5.1.2 | B15: 8.2.4 | C15: Reclear surfaces (only on instructions from the engineer) | D15: ha | E15: 0.00350
A17: 5.1.3 | B17: 8.2.10 | C17: Remove topsoil to nominal depth of 150mm and stockpile | D17: m² | E17: 10
A20: 5.2 | C20: EARTHWORKS
A22: 5.2.1 | B22: SABS 1200DA | C22: Excavation for chambers
A24: 5.2.1.1 | B24: 8.3.2(a) | C24: Excavation in all materials for chambers and other minor structures outside the limits of the trench excavation, backfill, compact and dispose of surplus / unsuitable material, Including shoring. | D24: m³ | E24: 150
A26: 5.2.1.2 | B26: 8.3.2(b) | C26: Extra over Item 5.1.1.1 for excavation in hard rock. | D26: m³ | E26: 20
A28: 5.2.1.3 | B28: 1200DB 8.3.2 (c) | C28: Excavate unsuitable material from chamber bottom and dispose. | D28: m³ | E28: 15
A30: 5.2.1.4 | C30: a) Imported layerworks material compacted in layers not exceeding 100 mm in thickness compacted to 95%MOD AASHTO Density at -1% to +2% OMC. | D30: m³ | E30: 15
A32: 5.3 | C32: VALVE CHAMBERS - CONCRETE AND STEELWORK
B34: SABS 1200GA | C34: Isolation -, Cross connection Valve Chambers:
A36: 5.3.1 | C36: Concrete
A38: 5.3.1.1 | B38: 8.4.2 | C38: 50mm Class 15/19MPa Blinding Layer | D38: m³ | E38: =ROUNDUP(((6.1*6.1*0.05)*1.15),0) -> 3
A40: 5.3.1.2 | B40: 8.4.3 | C40: Strength concrete Grade 35MPa/19mm for floor slab, walls and roof | D40: m³ | E40: =ROUNDUP(((K40)*1.1),1) -> 0
A42: 5.3.2 | C42: Formwork
C44: Supply all materials, install and remove formwork (rate to include for forming of 20 x 20 chamfers to all exposed edges for:
A46: 5.3.2.1 | B46: 8.2.3 | C46: Narrow Widths
A48: 5.3.2.1.1 | C48: Sides of roof slab 180mm high | D48: m | E48: 26
A50: 5.3.2.1.2 | C50: Sides of downstand beams 180mm high | D50: m | E50: =ROUNDUP((2*(2*(1.4+1))),0) -> 10
A52: 5.3.2.1.3 | C52: Sides of base slab 400mm high | D52: m | E52: =ROUNDUP((2*5.1+2*5.1),0) -> 21
A54: 5.3.2.2 | B54: 8.2.6 | C54: Box out Holes / Form Voids
B56: Carried Forward
B57: Brought Forward
A59: 5.3.2.2.1 | C59: To box out hole for 0.6m diameter pipe for depth not exceeding 400mm thick | D59: No. | E59: 0
A61: 5.3.2.2.2 | C61: To box out hole for 1.0m diameter pipe for depth exceeding 400mm thick | D61: No. | E61: 0
A63: 5.3.2.2.3 | C63: To box out hole for 0.8m diameter pipe for depth exceeding 400mm thick | D63: No. | E63: 0
A65: 5.3.2.2.4 | C65: To box out hole for 0.6m diameter pipe for depth exceeding 400mm thick | D65: No. | E65: 3
A67: 5.3.2.2.5 | C67: To box out hole for 0.2m diameter pipe for depth exceeding 400mm thick | D67: No. | E67: 0
A69: 5.3.2.2.6 | C69: To box out hole for 0.1m diameter pipe for depth in roof (including sleeve) exceeding 400mm thick | D69: No. | E69: 3
A71: 5.3.2.2.7 | C71: To box out hole in floor 500mm x 500mm x 200mm (Sump) | D71: No. | E71: 1
A73: 5.3.2.2.8 | C73: To box out hole for1.3x1.3x 0.2m thick cover slab in the roof slab | D73: No. | E73: 1
A75: 5.3.2.3 | B75: 8.2.2 | C75: Smooth Formwork
A77: 5.3.2.3.1 | C77: To walls | D77: m² | E77: =I77 -> 0
A79: 5.3.2.3.2 | C79: To underside of roof slab | D79: m² | E79: 11
A81: 5.3.2.4 | B81: 8.4.4 | C81: Unformed surface finishes
A83: 5.3.2.4.1 | C83: Wood floated finish to top of floor slab | D83: m² | E83: =4.4*4.4 -> 19
A85: 5.3.3 | B85: 8.1.2 | C85: Reinforcement
A87: 5.3.3.1 | B87: 8.3.4 | C87: High Tensile Steel Bars | D87: t | E87: =$E$63*0.2 -> 0
A89: 5.3.3.2 | B89: 8.3.1 | C89: Mild Steel Bars | D89: t | E89: =$E$63*0.05 -> 0
A91: 5.4 | C91: Concrete Plinths: (see drawing number RA27786/16/04) Supply, deliver and install complete with fittings and sealants
A93: 5.4.1 | C93: Concrete
A95: 5.4.1.1 | B95: 8.4.2 | C95: 50mm Class 15/19MPa Blinding Layer | D95: m³ | E95: =80*(3.6*2.25*0.05)*1.1 -> 36
A97: 5.4.1.2 | B97: 8.4.3 | C97: Strength concrete Grade 30MPa/19mm | D97: m³ | E97: =ROUNDUP((80*(1.25*2.6*0.4+1.25*2*0.4)*1.1),0) -> 203
A99: 5.4.2 | C99: Formwork
C101: Supply all materials, install and remove Class 3A shuttering (rate to include for forming of 20 x 20 chamfers to all exposed edges for:
A103: 5.4.2.1 | B103: 8.2.3 | C103: Narrow Widths
A105: 5.4.2.1.1 | C105: Sides of base slab 400mm high | D105: m | E105: =80*(2*1.25+2*2.6) -> 616
A107: 5.4.2.2 | B107: 8.4.4 | C107: Unformed surface finishes
A109: 5.4.2.2.1 | C109: Wood floated finish to top of floor slab | D109: m² | E109: =80*(1.2*1.25) -> 120
A111: 5.4.2.3 | B111: 8.2.2 | C111: Smooth Formwork
B113: Carried Forward
B114: Brought Forward
A116: 5.4.2.3.1 | C116: Plinth walls | D116: m² | E116: =80*(2*2*1.25+2*2*0.4) -> 528
A118: 5.4.3 | B118: 8.1.2 | C118: Reinforcement
A120: 5.4.3.1 | B120: 8.3.4 | C120: High Tensile Steel Bars | D120: t | E120: =$E$125*0.2 -> 0
A122: 5.4.3.2 | B122: 8.3.1 | C122: Mild Steel Bars | D122: t | E122: =$E$125*0.05 -> 0
A124: 5.4.3.3 | B124: 8.2.6 | C124: Box out Holes / Form Voids
A126: 5.4.3.3.1 | C126: To box out hole for 0.7m diameter pipe for depth not exceeding 400mm | D126: No. | E126: 80
A128: 5.4.4 | C128: Miscellaneous
C130: Supply all materials and install galvanised steel ladders complete as detailed on Rand Water Detail Drg A7406 with lengths of:
A132: 5.4.4.1 | C132: 3,5m - 4,0m | D132: No. | E132: 2
A134: 5.4.4.2 | C134: Mass concrete stairs as per drawing RA27329 | D134: No. | E134: 2
A136: 5.4.4.3 | B136: SANS 1200 HA 8.3.10 | C136: Collect from Rand Water Supply and install 590 x 490mm square steel fibre concrete lockable manhole cover as per Rand Water Detail Drg 11860 | D136: No. | E136: 2
A138: 5.5 | C138: Supply and install hold down straps complete with gussets, hold down bolts, rubber insertion and malthoid for protection of pipeline as per drawing RA27786/16/04
A140: 5.5.1 | C140: Hold down straps etc | D140: No. | E140: 100 | G140: =E140*F140 -> 0
A142: 5.6 | B142: SANS 1200 HA 8.3.12 | C142: Steel valve supports as detailed on Rand Water Detail Drg A12210:
A144: 5.6.1 | C144: DN 600 | D144: No | E144: 2 | G144: =E144*F144 -> 0
A146: 5.6.2 | C146: DN 150 | D146: No | E146: 1
A148: 5.7 | B148: PSA 8.10 | C148: Survey pegs and marking
A150: 5.7.1 | C150: Supply and install survey reference and benchmark details on pipeline route as per Rand Water Standards | D150: No. | E150: 3 | G150: =E150*F150 -> 0
A152: 5.7.2 | C152: Marking of concrete chambers. Chamber names/numbers stencilled in 100mm high black paint on all chambers | D152: No. | E152: 2 | G152: =E152*F152 -> 0
A154: 5.8 | C154: Flow Meter Chamber (Provisional)
A156: 5.8.1 | C156: Provisional sum for chamber to house the 400mm diameter Flow meter in case the existing 700mm is to be used | D156: Prov. Sum | E156: 1 | F156: R1,500,000 | G156: R1,500,000
A158: 5.8.2 | C158: Contractors mark-up on Item 44 | D158: % | E158: =F156 -> R1,500,000
A160: 5.9 | B160: PSA 8-10 | C160: Water Tightness Test
B162: Carried Forward
B163: Brought Forward
A165: 5.9.1 | B165: SANS 2001-CC1- 5.1.6 | C165: Water tightness Test of all concrete chambers (excluding air valves) according to the Civil Specification | D165: No. | E165: 1 | G165: =E165*F165 -> 0
A167: 5.10 | C167: Grab rails and platforms
A169: 5.10.1 | B169: PSHA 8.3.7 | C169: Supply and install Grab Rails as detailed on Rand Water Detail Drg. A9858 | D169: No. | E169: 2 | G169: =E169*F169 -> 0
A171: 5.11 | C171: Pipe markers
A173: 5.11.1 | B173: PSGA 8.15 | C173: Collect from Rand Water and install pipe markers/beacons on pipeline route as per Rand Water Standards. | D173: No. | E173: 4 | G173: =E173*F173 -> 0
A175: 5.12 | C175: Steel Platforms
A177: 5.12.1 | C177: Supply, deliver and install platforms as per the design details on the Isolation Valve chamber drawing | D177: No. | E177: 1
A179: 5.13 | C179: Stairs, Landings and Handrails
B181: PSA 8.10 | C181: Remove existing stairs and landings, Modify and fabricate to suite site conditions, paint and reposition the stairs and landings over pipes.
A183: 5.13.1 | C183: Stairs and landings | D183: No. | E183: 22 | G183: =E183*F183 -> 0
A185: 5.13.2 | C185: Handrails | D185: No. | E185: 11 | G185: =E185*F185 -> 0
A197: SCHEDULE 4 CARRIED FORWARD TO SUMMARY

Sheet Sch 6 WP 3B Electrical
G1: ='[6]Sch 1 WP 3B P&Gs'!G1 -> ZB Sludge Pipeline
A2: Contract No.: | C2: ='Sch 4 WP 3B Automation'!C2 -> RW10397155/22 | G2: Schedule 6
A3: Description: | C3: ='Sch 5 WP 3B Civil'!C3:F6 -> DESIGN, MANUFACTURE, SUPPLY, DELIVERY, INSTALLATION, TEST, COMMISSION AND MAINTAIN PIPE LAYING AND CIVIL WORKS FOR THE CONSTRUCTION OF 750m, 694mm ID (8mm THICK) SLUDGE STEEL PIPELINE FROM CENTRAL SLUDGE NO. 2 TO THE CROSS CONNECTION CHAMBER (SL2 PIPELINE) | G3: ='[6]Sch 1 WP 3B P&Gs'!G3 -> 2021-10-01
C8: SCHEDULE 6: ELECTRICAL.
A9: Item | B9: Payment | C9: Description | D9: Unit | E9: Qty | F9: Rate | G9: Amount
A10: No | B10: Refers
A11: 6.1 | B11: 2 | C11: ELECTRICAL DESIGN
C12: Design electrical installation (and all plant components) in accordance with the design criteria. To include preparation of drawings and documents, as-built (record) drawings, reports and certificates
A13: 6.1.1 | C13: Complete Distribution Board as per the System Specification | D13: 3 | E13: Each
A14: 6.1.2 | C14: Complete motor and valve isolating panels as per the System Specification | D14: 1 | E14: Sum
A15: 6.1.3 | C15: Complete Sump Pump Control & isolating panels as per the System Specification | D15: 1 | E15: Sum
A16: 6.1.4 | C16: Verify possible power supply point at Central Sludge 2 Pumphouse and existing flow meter south of the Filter Block, or other sources, including capacities. | D16: 1 | E16: Sum
A17: 6.1.5 | C17: Power supply point design for all power supplies | D17: 1 | E17: Sum
A18: 6.1.6 | C18: Complete cable installation including routing and cable schedules, cable numbering for a complete installation at the Sludge Cross Connection Valve Chamber | D18: 1 | E18: Sum
A19: 6.1.7 | C19: Complete cable entry and racking systems at the Sludge Cross Connection Valve Chamber and where required along the routes from the supply points | D19: 1 | E19: Sum
A20: 6.1.8 | C20: Earthing and Lightning Protection Systems at the Sludge Cross Connection Valve Chamber | D20: 1 | E20: Sum
A21: 6.1.9 | C21: Service detection along route from the proposed power supply points to the Sludge Cross Connection Valve Chamber and new magnetic flowmeter | D21: 1 | E21: Sum
A22: 6.1.10 | C22: Complete small power and lighiting in all four chambers | D22: 4 | E22: Each
A23: 6.1.11 | C23: Other (details to be provided) | D23: 1 | E23: Sum
A25: 6.2 | B25: 4 | C25: SUPPLY POINT FROM EXISTING DISTRIBUTION
A26: 6.2.0 | C26: EQUIP SUPPLY POINTS
A27: 6.2.1 | C27: Supply and install a 63 A 3 phase and neutral supply point for the Valve Chamber at the proposed supply point, as directed by the Engineer, inclusive of all requirements in the document, all other materials, isolation permits to work, testing and commissioning of the installation | D27: 2 | E27: No
A28: 6.2.2 | C28: Supply and install a single phase and neutral supply point for the magnetic flowmeter at the proposed supply point, as directed by the Engineer, inclusive of all requirements in the document, all other materials, isolation permits to work, testing and commissioning of the installation | D28: 1 | E28: No
B30: Carried Forward
B31: Brought Forward
A33: 6.3 | B33: 5 | C33: Valve Distribution Boards
A34: 6.3.0 | C34: Complete valve distribution boards fully equipped as per the System specification and specific requirements in accordance with Rand Water specification
A35: 6.3.1 | C35: Manufacture and Factory test complete valve distribution boards | D35: 2 | E35: No
A36: 6.3.2 | C36: Supply, Deliver and off load to site complete valve distribution boards | D36: 2 | E36: No
A37: 6.3.3 | C37: Install on site a wall mounted valve distribution board outside the chambers | D37: 2 | E37: No
A38: 6.3.4 | C38: Test and commission a valve distribution board | D38: 2 | E38: No
A40: 6.4 | B40: 5 | C40: Flow Meter Distribution Board
A41: 6.4.0 | C41: Complete Flow meter distribution board fully equipped as per the System Specification and specific requirements in accordance with Rand Water specification
A42: 6.4.1 | C42: Manufacture and Factory test complete valve distribution boards | D42: 1 | E42: No
A43: 6.4.2 | C43: Supply, Deliver and off load to site complete Flow Meter distribution boards | D43: 1 | E43: No
A44: 6.4.3 | C44: Install on site a wall mounted Flow Meter distribution board outside the chambers | D44: 1 | E44: No
A45: 6.4.4 | C45: Test and commission a Flow Meter distribution board | D45: 1 | E45: No
A47: 6.5 | B47: 8 | C47: VALVE ISOLATING PANELS
A48: 6.5.0 | C48: Design, supply and manufacture a valve isolating panel fully equipped as per the system specification and in accordance with Rand Water specification | D48: 11 | E48: No
A49: 6.5.1 | C49: Manufacture and Factory test complete valve isolation panel | D49: 11 | E49: No
A50: 6.5.2 | C50: Supply, Deliver and off load to site complete valve isolation panel | D50: 11 | E50: No
A51: 6.5.3 | C51: Install complete valve isolation panels | D51: 11 | E51: No
A52: 6.5.4 | C52: Test and commission a complete valve isolation panels | D52: 11 | E52: No
A54: 6.6 | B54: 6 | C54: SUMP PUMP CONTROL & ISOLATING PANEL
A55: 6.6.0 | C55: Design, supply and manufacture a valve isolating panel fully equipped as per the system specification and in accordance with Rand Water specification | D55: 4 | E55: No
A56: 6.6.1 | C56: Manufacture and Factory test complete valve isolation panel | D56: 4 | E56: No
A57: 6.6.2 | C57: Supply, Deliver and off load to site complete valve isolation panel | D57: 4 | E57: No
A58: 6.6.3 | C58: Install complete valve isolation panels | D58: 4 | E58: No
A59: 6.6.4 | C59: Test and commission a complete valve isolation panels | D59: 4 | E59: No
B61: Carried Forward
B62: Brought Forward
A64: 6.7 | B64: 8 | C64: CABLES AND CABLE INSTALLATION
A65: 6.7.1 | C65: SUPPLY CABLE
A66: 6.7.1.1 | C66: 35 mm2, 4 core 600/1000V PVCPVCSWAPVC Cu cable to SANS 1507 | D66: 1 | E66: sum
A67: 6.7.1.2 | C67: 4 mm2, 4 core 600/1000V PVCPVCSWAPVC Cu cable to SANS 1507 | D67: 1 | E67: sum
A68: 6.7.1.3 | C68: 2,5 mm2, 4 core 600/1000V PVCPVCSWAPVC Cu cable to SANS 1507 | D68: 1 | E68: sum
A69: 6.7.1.4 | C69: 1,5 mm2, 7 core 600/1000V PVCPVCSWAPVC Cu cable to SANS 1507 | D69: 1 | E69: sum
A70: 6.7.1.5 | C70: 10 mm2 copper coated steel conductor to SANS specifications | D70: 1 | E70: sum
A71: 6.7.1.6 | C71: 2,5 mm2 copper coated steel conductor to SANS specifications | D71: 1 | E71: sum
A72: 6.7.2 | C72: INSTALL THE FOLLOWING CABLES IN DUCTS, TRENCHES, ON CABLE LADDER AND THROUGH CABLE SLEEVES ON SITE
A73: 6.7.2.1 | C73: 35 mm2, 4 core 600/1000V PVCPVCSWAPVC Cu cable to SANS 1507 | D73: 1 | E73: sum
A74: 6.7.2.1 | C74: 4 mm2, 4 core 600/1000V PVCPVCSWAPVC Cu cable to SANS 1507 | D74: 1 | E74: sum
A75: 6.7.2.1 | C75: 2,5 mm2, 4 core 600/1000V PVCPVCSWAPVC Cu cable to SANS 1507 | D75: 1 | E75: sum
A76: 6.7.2.1 | C76: 1,5 mm2, 7 core 600/1000V PVCPVCSWAPVC Cu cable to SANS 1507 | D76: 1 | E76: sum
A77: 6.7.2.1 | C77: 10 mm2 copper coated steel conductor to SANS specifications | D77: 1 | E77: sum
A78: 6.7.2.1 | C78: 2,5 mm2 copper coated steel conductor to SANS specifications | D78: 1 | E78: sum
A79: 6.7.3 | C79: CABLE TERMINATIONS
A80: 6.7.3.0 | C80: Supply and install cable terminations for 600/1 000 V PVC PVC SWA PVC cable with Cu conductors. Refer to preamble item.
A81: 6.7.3.1 | C81: 35 mm2, 4 core 600/1000V PVCPVCSWAPVC Cu cable to SANS 1507 | D81: 1 | E81: sum
A82: 6.7.3.2 | C82: 4 mm2, 4 core 600/1000V PVCPVCSWAPVC Cu cable to SANS 1507 | D82: 1 | E82: sum
A83: 6.7.3.3 | C83: 2,5 mm2, 4 core 600/1000V PVCPVCSWAPVC Cu cable to SANS 1507 | D83: 1 | E83: sum
A84: 6.7.3.4 | C84: 1,5 mm2, 7 core 600/1000V PVCPVCSWAPVC Cu cable to SANS 1507 | D84: 1 | E84: sum
A85: 6.7.3.5 | C85: 10 mm2 copper coated steel conductor to SANS specifications | D85: 1 | E85: sum
A86: 6.7.3.6 | C86: 2,5 mm2 copper coated steel conductor to SANS specifications | D86: 1 | E86: sum
B88: Carried Forward
B89: Brought Forward
A90: 6.7.4 | C90: CARRY OUT CONTINUITY AND INSULATION RESISTANCE TESTS ON ALL CORES OF A 600/1000V PVCPVCSWAPVC CABLE AND PROVIDE SIGNED TEST CERTIFICATE
A91: 6.7.4.1 | C91: 35 mm2, 4 core 600/1000V PVCPVCSWAPVC Cu cable to SANS 1507 | D91: 1 | E91: sum
A92: 6.7.4.2 | C92: 4 mm2, 4 core 600/1000V PVCPVCSWAPVC Cu cable to SANS 1507 | D92: 1 | E92: sum
A93: 6.7.4.3 | C93: 2,5 mm2, 4 core 600/1000V PVCPVCSWAPVC Cu cable to SANS 1507 | D93: 1 | E93: sum
A94: 6.7.4.4 | C94: 1,5 mm2, 7 core 600/1000V PVCPVCSWAPVC Cu cable to SANS 1507 | D94: 1 | E94: sum
A95: 6.7.5 | C95: CARRY OUT CONTINUITY TESTS ON EARTH CONDUCTORS AND PROVIDE SIGNED TEST CERTIFICATE
A96: 6.7.5.1 | C96: 10 mm2 copper coated steel conductor to SANS specifications | D96: 1 | E96: sum
A97: 6.7.5.2 | C97: 2,5 mm2 copper coated steel conductor to SANS specifications | D97: 1 | E97: sum
A99: 6.8 | C99: ASSOCIATED WORKS FOR THE CABLE INSTALLATION
A100: 6.8.1 | C100: CABLE TRENCHING
A101: 6.8.1.1 | C101: Trench by hand in Soft Pickable (Class 1) soil and prepare trench (700 D x 500 W) and protect cable trench by barricading and against the ingress of water | D101: 1 | E101: Sum
A102: 6.8.1.2 | C102: Trench in Hard Rock (Class 2) and prepare trench (700 D x 500 W) | D102: 1 | E102: Sum
A103: 6.8.2 | C103: PREPARE AND BACKFILL TRENCHES
A104: 6.8.2.1 | C104: Backfill 100 mm deep bedding layer with 5 mm sifted material and compact layer to MODAASHTO 93% density | D104: 1 | E104: Sum
A105: 6.8.2.2 | C105: Backfill 600 mm deep layer to normal ground level and compact entire layer to MODAASHTO 90% density | D105: 1 | E105: Sum
A106: 6.8.3 | C106: SUPPLY, DELIVER AND INSTALL OTHER
A107: 6.8.3.1 | C107: Supply, manufacture, delivery, assembly and installation of a Unistrut support frame for valve isolation panels | D107: 1 | E107: Sum
A108: 6.8.3.2 | C108: Reinforcing bar detection before core drilling for a reinforced concrete valve chamber | D108: 1 | E108: Sum
A109: 6.8.3.3 | C109: 110 mm diameter core drilling in 400 mm deep reinforced concrete floors or walls | D109: 1 | E109: Sum
B111: Carried Forward
B112: Brought Forward
A113: 6.8.3.4 | C113: Supply and install foam sealing of core drilling holes of 110 mm diameter sleeves for cables after cable installation | D113: 1 | E113: Sum
A114: 6.8.3.5 | C114: Cut and prepare a 10 000 long x 1 800 wide existing tar road | D114: 1 | E114: Sum
A115: 6.8.3.6 | C115: Prepare bed for road crossing as per specification; 300 mm deep excavation below installation level, 150 layer of excavated material compacted to MODAASHTO 90% density and then 150 layer of G6 material compacted to MODAASHTO 93% density | D115: 1 | E115: Sum
A116: 6.8.3.7 | C116: 110 mm diameter 6 000 long heavy duty HDPE or PVC pipes to SANS 791 | D116: 1 | E116: Sum
A117: 6.8.3.8 | C117: 110 mm diameter heavy duty HDPE or PVC pipe couplings to make up 12 000 lengths to SANS 791 | D117: 1 | E117: Sum
A118: 6.8.3.9 | C118: Mass concrete to 25 MPa at 28 days | D118: 1 | E118: Sum
A119: 6.8.3.10 | C119: Re-instate tar road as per Rand Water drawing B6477 | D119: 1 | E119: Sum
A120: 6.8.3.11 | C120: Danger warning tape | D120: 1 | E120: Sum
A121: 6.8.4 | C121: SUPPLY AND INSTALL O-LINE HEAVY DUTY GALVANISED LADDER TYPE CABLE RACKING
A122: 6.8.4.1 | C122: 100 mm wide straight run | D122: 1 | E122: sum
A123: 6.8.4.2 | C123: 100 mm wide 90° internal bends | D123: 1 | E123: sum
A124: 6.8.4.3 | C124: 100 mm wide 90° external bends | D124: 1 | E124: sum
A125: 6.8.4.4 | C125: 100 mm wide tee unit | D125: 1 | E125: sum
A126: 6.8.5 | C126: SUPPLY AND INSTALL ANGLE IRON BRACKETS FOR SUPPORTING ACTUATOR CABLES AS PER RAND WATER SPECIFICATION
A127: 6.8.5.1 | C127: 25 x 25 x 3 angle iron painted as per Rand Water specifications and supported to valve structure or concrete wall | D127: 1 | E127: sum
A128: 6.8.5.2 | C128: 30 x 30 x 3 angle iron painted as per Rand Water specifications and supported to valve structure or concrete wall | D128: 1 | E128: sum
A129: 6.8.5.3 | C129: 40 x 40 x 3 angle iron painted as per Rand Water specifications and supported to valve structure or concrete wall | D129: 1 | E129: sum
A130: 6.8.6 | C130: SUPPLY AND INSTALL ANGLE IRON 90˚ BENDS FOR SUPPORTING ACTUATOR CABLES AS PER RAND WATER SPECIFICATION
A131: 6.8.6.1 | C131: 25 x 25 x 3 angle iron painted as per Rand Water specifications and supported to valve structure or concrete wall | D131: 1 | E131: sum
A132: 6.8.6.2 | C132: 30 x 30 x 3 angle iron painted as per Rand Water specifications and supported to valve structure or concrete wall | D132: 1 | E132: sum
A133: 6.8.6.3 | C133: 40 x 40 x 3 angle iron painted as per Rand Water specifications and supported to valve structure or concrete wall | D133: 1 | E133: sum
B135: Carried Forward
B136: Brought Forward
A137: 6.9 | B137: 7 | C137: VALVE CHAMBER LIGHTING INSTALLATION
A138: 6.9.1 | C138: Supply and install surface mounted IP65 LED Bulkhead or equivalent light fitting complete with lamp, terminated and connected | D138: 8 | E138: Each
A139: 6.9.2 | C139: 20 mm galvanised steel conduit mounted on a reinforced concrete surface complete with galvanised saddles at 400 mm intervals | D139: 60 | E139: meter
A140: 6.9.3 | C140: 25 mm galvanised steel conduit mounted on a reinforced concrete surface complete with galvanised saddles at 400 mm intervals | D140: 20 | E140: meter
A141: 6.9.4 | C141: IP 65 waterproof single lever surface mounted light switches mounted on reinforced concrete | D141: 6 | E141: Each
A142: 6.9.5 | C142: 2,5 mm2 wiring (live neutral and earth conductors) for the lighting points | D142: 500 | E142: meter
A144: 6.1 | B144: 14 | C144: VALVE CHAMBER EARTHING SYSTEM
A145: 6.10.1 | C145: Earth resistivity survey at Sludge cross connection valve chamber | D145: 1 | E145: sum
A146: 6.10.2 | C146: Complete earth electrode design for the above | D146: 1 | E146: sum
A147: 6.10.3 | C147: Installation of 2 off 4 m deep copper earth electrode at Sludge cross connection valve chamber and interconnect with 15 m of 70 mm2 copper coated steel conductor to SANS specifications | D147: 1 | E147: sum
A149: 6.11 | C149: RATES FOR ADDITIONAL WORK TO BE CARRIED OUT
A150: 6.11.0 | C150: Work specifically ordered at the sole discretion of the Engineer
A151: 6.11.1 | C151: Electrician | D151: 24 | E151: hour
A152: 6.11.2 | C152: Instrument Technician | D152: 8 | E152: hour
A153: 6.11.3 | C153: Skilled labourer | D153: 48 | E153: hour
A154: 6.11.4 | C154: Semi-skilled labourer | D154: 96 | E154: hour
A155: 6.11.5 | C155: Labourer | D155: 192 | E155: hour
A157: 6.12 | C157: COMMISSIONING THE INSTALLATIONS
A158: 6.12.0 | C158: Inclusive of the supply of skilled persons, test equipment and completion of test and commissioning certificates
A159: 6.12.1 | C159: Commissioning of completed installation at the incoming valve chamber including lighting | D159: 1 | E159: Lot
A160: 6.12.2 | C160: Commissioning of completed installation at the outgoing valve chamber including lighting | D160: 1 | E160: Lot
A161: 6.12.3 | C161: Commissioning of the power supply for the magnetic flowmeter including lighting | D161: 1 | E161: Lot
B164: Carried Forward
B165: Brought Forward
A166: 6.13 | B166: 15 | C166: DOCUMENTATION
A167: 6.13.1 | C167: Supply of all As-Built (Supplied and generated) general arrangement and schematic drawings in electronic and hard copy formats, all test certificates and maintenance and operating instructions for all equipment supplied | D167: 1 | E167: Lot
A168: 6.13.2 | C168: Provide Assembly Assessors Certificate for all distribution boards, valve isolating panels and the sump pump control panel. | D168: 1 | E168: Lot
A169: 6.13.3 | C169: Provide COC for the completed installations at Sludge Cross Connection valve chamber | D169: 1 | E169: No
A171: 6.14 | C171: OTHER
C172: Please state any other item that is not specifically listed, but may be required to complete the installation | D172: 1 | E172: Lot
A190: SCHEDULE 6 CARRIED FORWARD TO SUMMARY

Sheet Sch 7 WP 3B Mech
G1: ='Sch 1 WP 3B P&Gs'!G1 -> ZB Sludge Pipeline
A2: Tender No.: | C2: ='Sch 1 WP 3B P&Gs'!$C$2 -> RW10397155/22 | G2: Schedule 7
A3: Description: | C3: ='Sch 1 WP 3B P&Gs'!$C$3 -> DESIGN, MANUFACTURE, SUPPLY, DELIVERY, INSTALLATION, TEST, COMMISSION AND MAINTAIN PIPE LAYING AND CIVIL WORKS FOR THE CONSTRUCTION OF 750m, 694mm ID (8mm THICK) SLUDGE STEEL PIPELINE FROM CENTRAL SLUDGE NO. 2 TO THE CROSS CONNECTION CHAMBER (SL2 PIPELINE) | G3: ='Sch 1 WP 3B P&Gs'!G3 -> 2021-10-01
C8: SCHEDULE 7: PROCESS & MECHANICAL
A9: Item | B9: Payment refers to: RW10397155/21 -Mech-Spec | C9: Description | D9: Unit | E9: Qty | F9: Rate | G9: Amount
A10: No
A11: 7 | C11: Manufature, Delivery, Supply , Installation and Put into Operation of aActutors and Submersible Pumps
A13: 7.1 | B13: 3 | C13: Manufacture, test and supply of electrically operated actuators complete with gearbox, actuator extension and fitting as per system specification RC 01108-Rev1 for Valve :
A14: 7.1.1 | C14: Gate valve, diameter 600 mm TP 1500 kPa | D14: EA | E14: 2
A16: 7.1.2 | C16: Butterfly valve, diameter 700 mm TP3500 kPa | D16: EA | E16: 5
A18: 7.1.2 | C18: Supply and deliver gearboxes for replacement of open spur valve gears | D18: EA | E18: 5
A20: 7.2 | B20: 4 | C20: Supply and deliver sump sumps complete with impellor, motor, strainer, fittings and delivery steel pipe complete with hold down U- bolts, flex connector and hose connector .
A22: 7.2.1 | C22: Pump: 20 litre/sec flow with a 7 m head | D22: EA | E22: 4
A24: 7.2 | C24: CONSTRUCTION, INSTALLATION AND COMMISSIONING & PUTTING INTO OPERATION
A26: 7.2.1 | C26: Removal of open spur gears and installation of enclosed valve gearboxes | D26: Each | E26: 4
A28: 7.2.2 | C28: Installations of Electric actuators, complete with extensions, gearboxes and fitting | D28: Each | E28: 7
A30: 7.2.3 | C30: Installation of Electric motor driven sump pumps complete with valves, delivery and fittings etc. | D30: Set | E30: 4
A32: 7.2.7 | C32: Commissioning of actuators complete with extensions, gear-boxes and fittings etc. | D32: Set | E32: 7
A34: 7.2.5 | C34: Commissioning of electric motor driven submersible pumps completed valves, delivery and fittings etc. | D34: Set | E34: 4
A36: 7.3 | C36: Maintenance during the defects & liability period. | D36: Sum | E36: 1
A38: 7.4 | C38: Documentation, Training & Updating of Drawings
B41: Carried Forward
B42: Brought Forward
A45: 7.4.1 | C45: Training of Rand Water Personnel | D45: Sum | E45: 1
A47: 7.4.2 | C47: Operation & Maintenance Manuals (six copies) | D47: Sum | E47: 1
A49: 7.4.3 | C49: Updating of Drawings | D49: Sum | E49: 1
A51: 7.5 | C51: All other equipment /consumables/service not stated above which are required to complete and hand over the Installation
A64: SCHEDULE 7 CARRIED FORWARD TO SUMMARY
H151: SUPPORTS ARE MEASURE SEPARATELY ON THIS SECTION AND ON SECTION 11 ARE INCLUDED WITH SPECIALS. DECIDE WHERE TO INCLUDE THEM

Sheet Sch 8 WP 3B Pipelines
G1: ='Sch 1 WP 3B P&Gs'!G1 -> ZB Sludge Pipeline
A2: Tender No.: | C2: ='Sch 1 WP 3B P&Gs'!C2 -> RW10397155/22 | G2: Schedule 7
A3: Description: | C3: ='Sch 1 WP 3B P&Gs'!$C$3 -> DESIGN, MANUFACTURE, SUPPLY, DELIVERY, INSTALLATION, TEST, COMMISSION AND MAINTAIN PIPE LAYING AND CIVIL WORKS FOR THE CONSTRUCTION OF 750m, 694mm ID (8mm THICK) SLUDGE STEEL PIPELINE FROM CENTRAL SLUDGE NO. 2 TO THE CROSS CONNECTION CHAMBER (SL2 PIPELINE) | G3: ='Sch 1 WP 3B P&Gs'!G3 -> 2021-10-01
C8: SCHEDULE 8: PIPELINE AND PIPE SPECIALS
A9: Item | B9: Payment | C9: Description | D9: Unit | E9: Qty | F9: Rate | G9: Amount
A10: No | B10: Refers
A12: 8.1 | B12: SABS 1200C | C12: SITE CLEARANCE AND REHABILITATION
A14: 8.1.1 | C14: Site Clearance
A16: 8.1.1.1 | B16: 8.2.1 | C16: Clear and grub vegetation and trees of girth up to 2 m along the route of the mainline (Within working servitude and excluding trees to be relocated) (See PS2.6 & PSC 5.9) | D16: m | E16: 750 | G16: 0
A18: 8.1.1.2 | B18: 8.2.2 | C18: Clear large trees of girth and designated obstacles (See PS2.6, PSC5.9 & PSC 5.10)
A20: 8.1.1.2.1 | C20: a) over 1m and up to and including 2m | D20: no | E20: 1 | G20: 0
A22: 8.1.1.2.2 | C22: b) over 2m m and up to and including 3m | D22: no | E22: 1 | G22: 0
A24: 8.1.1.2.3 | C24: c) over 3m in steps of 1m | D24: no | E24: 1 | G24: 0
A26: 8.1.2 | C26: Remove and Stockpile Topsoil
A28: 8.1.2.1 | B28: 8.2.10 | C28: Remove and stockpile topsoil to a depth of 150mm along the route of the pipeline (within working servitude) and maintain | D28: m2 | E28: 1800 | G28: 0
A30: 8.1.3 | C30: Demolish and Remove Structures
A32: 8.1.3.1 | B32: 8.2.8 | C32: Demolish and remove existing brick and concrete structures and foundations.
A34: 8.1.3.1.1 | C34: a) Concrete pavement entrance to property | D34: no | E34: 1 | G34: 0
A36: 8.1.3.1.2 | C36: b) Brick paving entrance to property | D36: no | E36: 1 | G36: 0
A38: 8.1.3.1.3 | C38: c) Tar pavement entrance to property | D38: no | E38: 1 | G38: 0
A40: 8.1.3.1.4 | C40: d) Concrete pavement on property | D40: m2 | E40: 50
G41: 0
A42: 8.1.3.1.5 | C42: e) Pipe culvert below property entrance | D42: no | E42: 0
A44: 8.1.3.1.6 | C44: d) Concrete v-drain | D44: no | E44: 0 | G44: 0
A46: 8.1.3.1.7 | C46: e) Concrete catchpit | D46: no | E46: 0 | G46: 0
A48: 8.1.4 | C48: Dealing with Existing Fences and Walls
A50: 7.4.1 | B50: PSC 8.2.11 | C50: Removal of fencing, storage during construction and reinstallation once construction is complete
A52: 8.1.4.1.2 | C52: Type 1: Barbed wire fencing up to 1.2m high | D52: m | E52: 0
A54: 8.1.4.1.3 | C54: Type 2: Diamond mesh fencing up to 1.2m high | D54: m | E54: 0
A56: 8.1.4.1.4 | C56: Type 3: Razor mesh wire fencing up to 2.4m high | D56: m | E56: 0
A58: 8.1.4.1.5 | C58: Type 4: Diamond mesh fencing up to 2.4m high | D58: m | E58: 0
B60: Carried Forward
B61: Brought Forward
A62: 8.1.4.1.6 | C62: Type 5: Concrete Palisade fencing up to 2.4m high | D62: m | E62: 0 | G62: 0
A64: 8.1.4.1.7 | C64: Type 6: Prefabricated concrete walls up to 2.4m high | D64: m | E64: 0 | G64: 0
A66: 8.1.4.1.8.1 | C66: Type 7: Double brick walls up to 2.4m high | D66: m | E66: 0 | G66: 0
A68: 8.1.4.1.9 | C68: Type 8: Steel Palisade fencing up to 2.4m high | D68: m | E68: 0 | G68: 0
A70: 8.1.4.1.10 | C70: EO Type 1 to 8: Electrical Fencing | D70: m | E70: 0 | G70: 0
A72: 8.1.5 | C72: Crossing Existing Fences/Walls
A74: 8.1.5.1 | B74: PSC 8.2.12 | C74: Install 5m wide x 1.2m high double gate with 20m refurbished fencing | D74: No | E74: 0 | G74: 0
A76: 8.1.5.2 | B76: PSC 8.2.12 | C76: Removal of double brick walls up to 2.4m high and reinstatement after construction. | D76: m | E76: 0
A78: 8.1.5.3 | B78: PSC 8.2.12 | C78: Removal of concrete palisade walls up to 2.4m high and reinstatement after construction. | D78: m | E78: 0
A80: 8.1.5.4 | B80: PSC 8.2.12 | C80: Removal of Steel Palisade fencing up to 2.4m high and reinstatement after construction. | D80: m | E80: 0
A82: 8.1.6 | C82: Fire Breaks
A84: 8.1.6.1 | B84: PSC 8.2.13 | C84: Form fire breaks on Engineer's Instruction | D84: m² | E84: 375 | G84: 0
A86: 8.1.7 | C86: Erosion Protection and Rehabilitation
A88: 8.1.7.1 | B88: PSA 8.10 | C88: Storm water deflection berms / cross embankments / erosion control berms for steep slope erosion protection or for the protection of topsoil stockpiles. | D88: m³ | E88: 100 | G88: 0
A90: 8.1.8 | C90: Landscape Preservation and Conservation of Fauna and Flora
A92: 8.1.8.1 | B92: PSA 8.10 | C92: Transplanting of trees/shrubs within the road reserve, of main stem girth (See PS2.6):
A94: 8.1.8.1.1 | C94: a) up to 1500mm | D94: No. | E94: 3 | G94: 0
A96: 8.1.8.1.2 | C96: b) over 1500mm | D96: No. | E96: 3 | G96: 0
A98: 8.1.9 | C98: Final Grading
A100: 8.1.9.1 | B100: PSA 8.10 | C100: Ripping of compacted and disturbed areas to 150mm depth | D100: m² | E100: 0
A102: 8.1.9.2 | B102: PSA 8.10 | C102: Hand trimming | D102: m² | E102: 0
A104: 8.1.10 | C104: Topsoiling
A106: 8.1.10.1 | B106: PSDB 8.3.6.2 | C106: Place topsoil to a depth of 150mm | D106: m² | E106: 1800 | G106: 0
B110: Carried Forward
B111: Brought Forward
A112: 8.1.11 | B112: SANS 1200D | C112: Vegetation Re-establishment
A114: 8.1.11.1 | B114: 8.3.11 | C114: Hydroseeding with appropriate grass seed mix. (Deemed to be inclusive of soil preparation and improvements, materials and labour). | D114: m² | E114: 1800
A116: 8.1.13 | C116: Detection of Services
A118: 8.1.13.1 | B118: TS 3.2, PSA 8.10 | C118: Service detection by specialist before commencement of Works | D118: Sum | E118: 1
A121: 8.2 | C121: EARTHWORKS & BEDDING
A123: 8.2.1 | B123: SABS 1200DB | C123: Pipeline Trench Excavation
C124: Note: Rate to include for forming joint holes to facilitate welding in the field
A126: 8.2.1 | B126: 8.3.2 | C126: Machine excavation in all materials for trenches 1.75 m wide, backfill, compact and dispose of surplus and/or unsuitable material (No additional payment for overhaul, rate to include for all temporary works, including benching, shoring and dewatering where necessary):
C128: Over Up to and including
A130: 8.2.1.1 | C130: a) 0m 2,0m | D130: m | E130: 200
A132: 8.2.1.2 | C132: b) 2,0m 3m | D132: m | E132: 100
A135: 8.2.2 | B135: 8.3.2 | C135: Hand excavation in all material for trenches 1.75 m wide, backfill, compact and dispose of surplus and/or unsuitable material (No additional payment for overhaul, rate to include for all temporary works including benching, shoring and dewatering where necessary):
C137: Over Up to and including
A139: 8.2.2.1 | C139: a) 0m 1.5m | D139: m | E139: 200
A141: 8.2.3 | B141: PSDB 8.3.2(b)(2) | C141: Extra over Items 2.1 to 2.2 for excavation in hard rock and boulder excavation | D141: m³ | E141: =(E139*0.45) -> 90
A143: 8.2.4 | B143: PSDB 8.3.8 | C143: Hand excavation in all material, backfill and compact, to locate and prove existing services to a maximum depth of 2m (Rate to include for all temporary works including benching, shoring and dewatering where necessary): | D143: m³ | E143: =2*1*1*75 -> 150
A145: 8.2.5 | B145: 1200DB 8.3.2 (c) | C145: Excavate unsuitable material from trench bottom and dispose | D145: m³ | E145: =190*1.75*0.2 -> 67
A147: 8.2.6 | B147: 8.3.3.1 | C147: Make up deficiency in backfill material:
A149: 8.2.6.1 | C149: a) From other necessary excavations on site (Stage 2) | D149: m³ | E149: =E145*0.315 -> 21
B151: Carried Forward
B152: Brought Forward
A154: 8.2.6.3 | C154: c) By importation from commercial sources (Stage 2) | D154: m³ | E154: =(E130+E132)*1.75*0.25 -> 131
A156: 8.2.3 | C156: Unstable trench bottom
A158: 8.2.3.1 | B158: PSA 8.10 | C158: Supply and install 19 mm crushed stone (Complete as indicated on Drawing R027141) | D158: m³ | E158: =H158*0.3*1.3 -> 0
A160: 8.2.3.2 | B160: PSDB 8.3.11 | C160: Supply and install geotextile filter blanket (Grade A4) (Complete as indicated on Drawing R027141) | D160: m2 | E160: =H158*(1.3*2+0.3*2) -> 0
A162: 8.2.4 | B162: 1200DB 8.3.5(a) | C162: Existing Services that intersect a trench:
A164: 8.2.4.1 | C164: Rand Water 500-600mm ID dia steel pipeline | D164: No | E164: 2
A166: 8.2.4.2 | C166: Rand Water 700-900mm ID dia steel pipeline | D166: No | E166: 4
A168: 8.2.4.3 | C168: Stormwater pipes up to 600m diameter | D168: No | E168: 1
A170: 8.2.4.4 | C170: Stormwater pipes and culverts larger than 600m diameter | D170: No | E170: 0
A172: 8.2.4.5 | C172: Water mains larger than 250mm diameter | D172: m | E172: 100
A174: 8.2.4.6 | C174: Sewer mains up to 250mm diameter | D174: m | E174: 100
A176: 8.2.4.7 | C176: Sewer mains larger than 250mm diameter | D176: m | E176: 100
A178: 8.2.4.8 | C178: Underground Electrical Cables (LT and HT) | D178: No | E178: 10
A180: 8.2.4.9 | B180: PSDB 8.3.5(b) | C180: Overhead Electrical Cables | D180: No | E180: 0
A182: 8.2.4.10 | B182: PSDB 8.3.5(b) | C182: Overhead Communication Cables (incl Telkom) | D182: No | E182: 0
A184: 8.2.4.11 | B184: PSDB 8.3.5(b) | C184: Underground Communication Cables (incl Telkom) | D184: No | E184: 2
A186: 8.2.5 | B186: 1200DB 8.3.5(b) | C186: Existing Services that adjoin a trench:
C188: Note: Price tendered for excavation is to include for working close to existing Rand Water pipelines
A190: 8.2.5.1 | C190: Stormwater pipes up to 600m diameter | D190: m | E190: 50
A192: 8.2.5.2 | C192: Stormwater pipes and culverts larger than 600m diameter | D192: m | E192: 20
A194: 8.2.5.3 | C194: Water mains up to 250mm diameter | D194: m | E194: 50
A196: 8.2.5.4 | C196: Water mains larger than 250mm diameter | D196: m | E196: 20
A198: 8.2.5.5 | C198: Sewer mains up to 250mm diameter | D198: m | E198: 20
A200: 8.2.5.6 | C200: Sewer mains larger than 250mm diameter | D200: m | E200: 20
A202: 8.2.5.7 | C202: Underground Electrical Cables (LT and HT) | D202: m | E202: 50
A204: 8.2.5.8 | C204: Overhead Electrical Cables | D204: m | E204: 0
B206: Carried Forward
B207: Brought Forward
A209: 8.2.5.9 | C209: Overhead Communication Cables (incl Telkom) | D209: m | E209: 0
A211: 8.2.5.10 | C211: Underground Communication Cables (incl Telkom) | D211: m | E211: 3
A213: 8.2.5.11 | C213: Rand Water 500-600mm ID dia steel pipeline | D213: m | E213: 100
A215: 8.2.5.12 | C215: Rand Water 700-900mm ID dia steel pipeline | D215: m | E215: =60+465 -> 525
A217: 8.2.5.13 | C217: Rand Water 1800mm ID dia steel pipeline | D217: m | E217: 465
A219: 8.2.6 | B219: 1200LB | C219: Pipe Bedding
A221: 8.2.6.1 | B221: PSLB 8.2.1 | C221: Provision of bedding from trench excavation:
A223: 8.2.6.1.1 | C223: a) Selected granular and selected fill material (Bedding cradle and fill blanket) (Stage 1) | D223: m³ | E223: 430
A225: 8.2.6.2 | B225: PSLB 8.2.2.2 | C225: Provision of bedding by importation from approved borrow pits including all costs for additional handling and transport (provisional):
A227: 8.2.6.2.1 | C227: a) Selected granular and selected fill material (Bedding cradle and fill blanket) (Stage 1) | D227: m³ | E227: =0.5*E223 -> 215
A229: 8.2.6.3 | B229: PSLB 8.2.2.3 | C229: Provision of bedding by importation from commercial or off site sources:
A231: 8.2.6.3.1 | C231: a) Selected granular and selected fill material (Bedding cradle and fill blanket) (Stage 1) | D231: m³ | E231: =0.25*E223 -> 108
A233: 8.2.6.4 | B233: 8.2.4 | C233: Concrete encasement to pipes in Class 25MPa/19mm concrete including reinforcement according to Drawing R027141 as directed by Engineer (Rate to include for any temporary formwork required). | D233: m³ | E233: 257
A235: 8.2.6.5 | B235: PSDB 8.2.2.4.1 | C235: Soilcrete encasement to pipes according to Drawing R027141 as directed by the Engineer (Rate to include for any temporary formwork required). | D235: m³ | E235: =E233 -> 257
A237: 8.2.6.6 | B237: PSDB 8.2.2.4.2 | C237: Cellular lightweight Concrete encasement to pipes according to Drawing R027141 as directed by the Engineer (Rate to include for any temporary formwork required). | D237: m³ | E237: 0
A239: 8.2.7 | B239: SABS 1200DB | C239: Finishing
A241: 8.2.7.1 | B241: 8.3.3.3 | C241: Compaction of selected fill material for the main fill to 93% Mod AASHTO in areas subjected to loads from road traffic. | D241: m3 | E241: 11
A243: 8.2.7.2 | B243: PSDB 8.3.9 | C243: Supply, mix and place soilcrete with 8% OPC with approved selected fill material in road crossings where instructed by Engineer | D243: m3 | E243: =E241 -> 11
A245: 8.2.8 | C245: Photographic records
A247: 8.2.8.1 | B247: PSDA 8.3.10 | C247: Take and provide photographic records | D247: Sum | E247: 1
B249: Carried Forward
B250: Brought Forward
A253: 8.3 | C253: SUPPLY INSTALLATION OF STEEL PIPES AND PIPE SPECIALS
A255: 8.3.1 | B255: TS5.2 | C255: Load / Unload Pipes
C257: Supply and operation of plant and the supply of labour to unload the pipes from Rand Water Emhlangeni Plant and the laydown of the pipes in the temporary laydown areas along the pipeline route and/or to certain positions along the route of the pipeline. The cost to supply and to form storage mounds and measures taken to protect the pipes during this procedure will be included in this item.
A259: 8.3.1.1 | C259: 700mm ND, Grade X42 mild steel pipe, 8mm wall thickness (CML lining, 3LPE external coating) | D259: m | E259: 494
A261: 8.3.1.2 | C261: 760mm ND, Grade X42 mild steel pipe, 11mm wall thickness (CML lining, 3LPE external coating) | D261: m | E261: 285
A263: 8.3.1.1.2 | B263: TS5.1.2 | C263: Examine the general condition and the coating of all pipes (including inspection of the coating with a suitable Holiday detector for defects) of already manufactured pipes- Item 8.3.1.1 and Item 8.3.1.2 above (at Rand Water's Emhlangeni Depot and other storage areas to the Engineer's Approval) | D263: m | E263: =E259+E261 -> 779
A265: 8.3.1.1.3 | B265: TS5.1.2 | C265: Measure, record, reconcile the OD's, ID's , thickness, ovality, grade, coating and lining of all stored pipes/flanges and submit a " Condition assessment report of the pipe inventory Rand Water's Emhlangeni Depot and other storage areas " to the Engineer for approval | D265: m | E265: =E263 -> 779
A267: 8.3.1.1.4 | B267: TS 2.9 | C267: Refurbishment of coating on damaged pipes after inspection, costs to include all plant, labour, equipment, materials,loading and unloading, transport to the repair plant, cost of lining materials, coating materials and transporting to the point of installation per TS 2.9 | D267: m2 | E267: 450
A269: 8.3.1.1.5 | B269: TS 2.9 | C269: Adding of carbomastic paint to pipe exterior for pipe to be used above ground after inspection, costs to include all plant, labour, equipment, materials,loading and unloading, transport to the repair plant, cost of lining materials, coating materials and transporting to the point of installation as per TS 2.9 | D269: m2 | E269: 950
A271: 8.3.1.1.6 | B271: TS 2.9 | C271: Stripping of CML lining and relining with Epoxy to pipes for all pipes listed under Item 8.3.1.1 and Item 8.3.1.2 above, costs to include all plant, labour, equipment, materials,loading and unloading, transport to the repair plant, cost of lining materials, coating materials and transporting to the point of installation as per TS 2.9 | D271: m2 | E271: 1,800
A273: 8.3.1.1.7 | B273: TS 2.9 | C273: Relining of pipes with Epoxy lining for all pipes listed under Item 8.3.1.1 and Item 8.3.1.2 above, costs to include all plant, labour, equipment, materials,loading and unloading, transport to the repair plant, cost of lining materials, coating materials and transporting to the point of installation as per TS 2.9 | D273: m2 | E273: 1,800
B276: Carried Forward
B277: Brought Forward
A279: 8.3.2 | B279: TS4.3 | C279: Removal / Installation of Internal Bracing
C281: Removal the supplier's internal bracing, return the supplier's bracing to the supplier's manufacturing plant, the installation of the Contractor's own temporary bracing and the removal thereof on completion of installation and backfilling. The cost to repair subsequent damage due to the removal and installation of the bracing will be included in this item. Mounds and measures taken to protect the pipes during this procedure will be included in this item.
A283: 8.3.2.1 | C283: 700mm ND, Grade X42 mild steel pipe, 8mm wall thickness | D283: m | E283: 494
A285: 8.3.2.2 | C285: 760mm ND, Grade X42 mild steel pipe, 11mm wall thickness | D285: m | E285: 285
A287: 8.3.3 | B287: TS4.4 | C287: Transporting of pipes from Temporary Laydown areas (Emhlangeni - Pipe Plant)
A289: 8.3.3.1 | C289: Supply and operation of plant and cost of labour to load pipes at temporary laydown areas, transport the pipes to the excavated trench or point for installation in existing culverts or sleeves, regardless of distance and unload the pipes. | D289: Sum | E289: 1
A291: 8.3.4 | B291: TS4.5 | C291: Install Pipes in Trenches
C293: Examine pipes prior to placing in the trench, repair all defects, placing the pipe in the prepared trench including the supply and operation of plant and supply of labour to execute the work, cleaning of joints, vertical and horizontal lining up of the pipe including the supply and operation of plant and supply of labour to execute the work, supply, installation and removal of protective measures and internal welding of the joints.
A295: 8.3.4.1 | C295: 760mm ND, Grade X42 mild steel pipe, 11mm wall thickness | D295: m | E295: 270
B298: Carried Forward
B299: Brought Forward
A301: 8.3.5 | B301: TS4.5 | C301: Install Pipes on Plinths
C303: Examine pipes prior to placing on the plinths, repair all defects, placing the pipe on the prepared plinths including the supply and operation of plant and supply of labour to execute the work, cleaning of joints, vertical and horizontal lining up of the pipe including the supply and operation of plant and supply of labour to execute the work, supply, installation and removal of protective measures and internal welding of the joints.
A305: 8.3.5.1 | C305: 700mm ND, Grade X42 mild steel pipe, 8mm wall thickness | D305: m | E305: 420
A307: 8.3.5.2 | C307: 400mm NB diameter spool pieces | D307: m | E307: 50
A309: 8.3.6 | B309: TS4.7 | C309: External Welds
C311: Supply and operation of plant and supply of material and labour to execute the completion of external welds as per as per Clause TS2.6.
A313: 8.3.6.1 | C313: 700mm ND, Grade X42 mild steel pipe, 8mm wall thickness | D313: No | E313: 30 | G313: Rate only
A315: 8.3.6.12 | C315: 760mm ND, Grade X42 mild steel pipe, 11mm wall thickness | D315: No | E315: 20 | G315: Rate only
A317: 8.3.7 | B317: TS4.8 | C317: Installation of Internal and External Field Joint Corrosion Protection
C319: Supply and operation of plant and supply of material and cost of labour to install internal and external field joint protection at welded joints as per Clause TS2.5.4, for 700/760 mm diameter Grade X42 mild steel pipe, 8mm/11mm wall thickness.
A321: 8.3.7.1 | C321: External field joint protection (Modified Bitumen Field Joint membrane). | D321: No | E321: 50
A323: 8.3.7.2 | C323: Internal field joint protection (Epoxy coating). | D323: No | E323: 50
A325: 8.3.7.3 | C325: Wrap and protect pipe flanges and mark position of all buried flanges. Co-ordinates to be provided as part of As-built | D325: No | E325: 10
A327: 8.3.8 | C327: Steel Pipe Mitre Bends | D327: No | E327: 12
A329: 8.3.8.1 | B329: TS4.9 | C329: Line-up, cut, clean joints and weld, internally and externally, mitres over 1° and up to and including 15°.
A331: 8.3.8.2 | B331: TS4.8 | C331: Supply and operate plant and supply of material and labour to apply internal field joint corrosion protection to the entire mitre as per Clause TS2.5.4 | D331: No | E331: =E327 -> 12
A333: 8.3.8.3 | B333: TS4.8 | C333: Supply and operate plant and supply of material and labour to apply external field joint corrosion protection to the entire mitre as per Clause TS2.5.4 | D333: No | E333: =E327 -> 12
B336: Carried Forward
B337: Brought Forward
A339: 8.3.9 | B339: TS4.10 | C339: Steel Pipe Fabricated Bends
C341: Supply of complete bends, transport to and unload at point of installation, line-up, install, clean joints and weld, internally and externally, bends over 15° and up to and including 90°. Supply and operate plant and supply of material and labour to apply internal and external field joint corrosion protection to the entire bend as per Clause TS2.5.4
C343: Lobster bends over 15° up to and including 30° - 2 mitres, 1 full segment.
A345: 8.3.9.1 | C345: 700mm ND, Grade X42 mild steel pipe, 8mm wall thickness | D345: No | E345: 2
C347: Lobster bends over 30° up to and including 60° - 2 mitres, 3 full segments.
A349: 8.3.9.2 | C349: 700mm ND, Grade X42 mild steel pipe, 8mm wall thickness | D349: No | E349: 2
C351: Lobster bends over 90° up to and including 105° - 2 mitres, 5 full segments.
A353: 8.3.9.3 | C353: 700mm ND, Grade X42 mild steel pipe, 8mm wall thickness | D353: No | E353: 2
A355: 8.3.10 | B355: TS4.11 | C355: Pipe Specials
C357: Supply, transport to and unload at point of installation, line-up, install, clean joints and weld, internally and externally, various pipe specials as listed below. Supply, operate plant and supply of material and labour to apply shop applied internal lining and external coating to the entire pipe special as per Clause TS2.9
A359: 8.3.10.1 | B359: TS4.13 | C359: Flanges
C361: Supply of flanges with gasket for steel pipes of the following diameters and pressure ratings to Rand Water Specifications (Refer to Dwg A11791), including installation, fitting, tightening and setting of gasket rings, flange bolts, nuts and washers:
C363: a) 700mm diameter (1500kPa) | D363: No | E363: 5
C365: Supply of flanges with gasket for cathodic insulating flanges for the following diameters, including installation, fittings, sleeves, tightening and setting of gasket rings, flange bolts, nuts and washers:
C367: b) 710mm diameter OD as per drawing A9548 | D367: No | E367: 4
A369: 8.3.10.2 | C369: Cross connection chamber Drg. R027786/16/01
C371: Item 1: 609.6 mm OD steel pipe with pauddle flange plain ended , t = 8 mm. | D371: No. | E371: 1
C373: Item 2: 609.6 mm OD steel equal Tee, plain ended, t = 8 mm. | D373: No. | E373: 1
B375: Carried Forward
B376: Brought Forward
C378: Item 3: 609.6 mm OD steel pipe , flanged one end, t = 8 mm. | D378: No. | E378: 2
C380: Item 4: 609.6 mm dia. wedge gate valve, 600 mm F/F, MAX. NON RISING SPINDLE. | D380: No. | E380: 2
C382: Item 5: 609.6 mm OD steel pipe with a puddle flange and 168.3 mm OD bypass branch with 6 mm compensation plate (w = 75 mm) with one flanged end. | D382: No. | E382: 1
C384: Item 6: 609.6 mm OD steel pipe with a puddle flange and 168.3 mm OD bypass branch with 6 mm compensation plate (w = 75 mm) with one flanged end. | D384: No. | E384: 1
C386: Item 7: DN 150 RS gate valve as per valve spec. | D386: No. | E386: 1
C388: Item 8: 168.3 mm OD 90˚ segmented bend, t = 8 mm. | D388: No. | E388: 1
C390: Item 9: 700x600 mm dia. concentirc reducer. | D390: No. | E390: 1
C392: Item 10: 80 NB flanged stub, with diaphram valve and blank flange to SANS1123 | D392: No. | E392: 4
... 22 more rows

Sheet Sch 9 WP 3B CP
G1: ='[6]Sch 1 WP 3B P&Gs'!G1 -> ZB Sludge Pipeline
A2: Tender No.: | C2: ='Sch 4 WP 3B Automation'!C2 -> RW10397155/22 | G2: Schedule 7
A3: Description: | C3: ='Sch 8 WP 3B Pipelines'!C3:F6 -> DESIGN, MANUFACTURE, SUPPLY, DELIVERY, INSTALLATION, TEST, COMMISSION AND MAINTAIN PIPE LAYING AND CIVIL WORKS FOR THE CONSTRUCTION OF 750m, 694mm ID (8mm THICK) SLUDGE STEEL PIPELINE FROM CENTRAL SLUDGE NO. 2 TO THE CROSS CONNECTION CHAMBER (SL2 PIPELINE) | G3: ='[6]Sch 1 WP 3B P&Gs'!G3 -> 2021-10-01
C8: SCHEDULE 9: CATHODIC PROTECTION
A9: Item | B9: Payment | C9: Description | D9: Unit | E9: Qty | F9: Rate | G9: Amount
A10: No | B10: Refers
A11: 9.1 | C11: Supply activities
A12: 9.1.1 | C12: SUPPLY - SACRIFICIAL ANODE CATHODIC PROTECTION
A13: 9.1.1.1 | B13: TS055 | C13: Supply 10kg high potentials magnesium anodes surrounded by gypsuim/bentonite clay backfill in a cloth bag with 10m long by 10mm² red PVC/PVC cable each | D13: no | E13: 8
A14: 9.1.1.2 | C14: Supply 36mm steel galvanized conduit with saddles and end plastic caps @ 6m/chamber | D14: m | E14: 16
A15: 9.1.1.3 | B15: Drw.27645/ 27646 | C15: Supply connection link panel for all valve chamber connections as per drawing | D15: no | E15: 2
A16: 9.1.1.4 | C16: Supply 2X16mm² black PVC/PVC pipe to anode connection cable @ 4m per chamber | D16: m | E16: 8
A17: 9.1.1.5 | B17: TS055 | C17: Supply Schottky low voltage 10A diode | D17: no | E17: 2
A18: 9.1.1.6 | B18: TS015 | C18: Supply pipe cable connection and coating repair material | D18: no | E18: 6
A19: 9.1.1.7 | C19: Supply cable lugs, cable to pipe weld and other related consumables | D19: sum | E19: 1
A20: Sub-total
A21: 9.1.2 | C21: Supply Impressed Current Cathodic Protection - ZB Sludge TRU (26°40’42.78” S 28°0’45.77” E)
A22: 9.1.2.1 | B22: TS001 | C22: Supply 100V/100A Transformer Rectifier Unit (TRU) | D22: each | E22: 1
A23: 9.1.2.2 | B23: TS037 | C23: Supply the electrical power KIOSK as per Rand Water specification. | D23: each | E23: 1
A24: 9.1.2.3 | B24: TS021 | C24: Supply Ring main Positive Cable of single core red 35mm² double insulated PVC cable. | D24: m | E24: 480
A25: 9.1.2.4 | B25: TS044 | C25: Supply concrete mass as per drawing 27645 for cable encasement | D25: m³ | E25: 17
A26: 9.1.2.5 | B26: TS049 | C26: Supply a vandal proof housing, durasafe or the steel structure | D26: each | E26: 1
A27: 9.1.2.6 | B27: TS049 | C27: Supply a double skin fence or a Clearview fence of around the TRU housing and the kiosk with the following dimension of 4.3m (breath) X 8.3m (length) X 2.4m (height). | D27: each | E27: 1
A28: 9.1.2.7 | B28: TS021 | C28: Supply 25mm² four core aluminium supply cable | D28: m | E28: 30
A29: 9.1.2.8 | B29: TS021 | C29: Supply PRE and coupon | D29: sum | E29: 1
A30: 9.1.2.9.1 | B30: TS021 | C30: Supply 10mm² monitor cable | D30: m | E30: 75
A31: 9.1.2.10 | B31: TS021 | C31: Supply 16mm² pipe cable | D31: m | E31: 150
A32: 9.1.2.11 | B32: TS005 | C32: Supply 70mm² bare copper earth cable to be installed around the TRU and also supply four earth rods. | D32: sum | E32: 1
A33: Sub-total
A34: 9.1.3 | C34: ZB Sludge TRU - Horizontal Anode Groundbed GB Start: 26°40’40.50” S 28°00’48.93” E GB End: 26°40’39.13” S 28°00’45.83” E
A35: 9.1.3.1 | B35: TS002 | C35: Supply 2m canistor MMO anodes X 200mm diameter with 2m tail cable (ground bed of total length of 91m) and canisters are to be filled with Sasol calcined petroleum coke | D35: each | E35: 30
A36: 9.1.3.2 | B36: Drg. RA-22675 | C36: Supply 1000mm length X 200mm diameter X 1mm thick galvanized steel canister spacer filled with Sasol calcined petroleum coke, installed before and in between the anodes as per drawing RA 22675. | D36: each | E36: 31
A37: 9.1.3.3 | B37: Drg. RA-22675 | C37: Supply Sasol petrolium calcined coke breeze for anodes bacfilling. | D37: m³ | E37: 10
A38: 9.1.3.4 | C38: Supply 'Y' splicing kit for anode tail connections to the ring main cable | D38: each | E38: 30
A39: 9.1.3.5 | C39: Supply all horizontal ground bed installation consumables | D39: sum | E39: 1
A40: Sub-total
A41: 9.1.4 | C41: Supply cross bonding facilities to other Rand Water lines
A42: 9.1.4.1 | B42: TS013 | C42: Supply Crossbond Facility as per Rand Water Specification | D42: each | E42: 9
A43: 9.1.4.2 | B43: TS014 | C43: Supply PRE and Coupon | D43: each | E43: 9
B45: Carried Forward
B46: Brought Forward
A47: 1.4.3 | B47: TS021 | C47: Supply 16mm² pipe cable | D47: m | E47: 54
A48: 9.1.4.4 | B48: TS019 | C48: Service Detection, Excavation, Trenching and Backfilling | D48: sum | E48: 9
A49: 9.1.4.5 | B49: TS015 | C49: Supply cable lugs, coating make good materials and consumables | D49: sum | E49: 9
A50: Sub-total
A51: 9.1.5 | C51: Supply Continuity Bonding Across the Flanges
A52: 9.1.5.1 | C52: Supply a steel bridge piece across the flanges instead of cross-bonding with a cable for pipeline continuity. | D52: sum | E52: 42
A53: Sub-total
A54: 1.6 | C54: Supply chamber monitoring points
A55: 9.1.5.2 | B55: TS013 | C55: Supply chamber monitorng points | D55: each | E55: 2
A56: 9.1.5.3 | B56: TS014 | C56: Supply PRE and Coupon | D56: each | E56: 2
A57: 9.1.5.4 | B57: TS021 | C57: Supply 16mm² pipe cable | D57: m | E57: 8
A58: 9.1.5.5 | B58: TS019 | C58: Service Detection, Excavation, Trenching and Backfilling | D58: sum | E58: 2
A59: 9.1.5.6 | B59: TS015 | C59: Supply cable lugs, coating make good materials and consumables | D59: sum | E59: 2
A60: Sub-total
A61: 9.1.6 | C61: Suppy Insulation Flange Kits
C62: Supply Insulation Flange Kits as per Rand Water Specification and drawing No. A 9548 on the pipeline's out let, pipelines tie-in points, inlet and both sides of the megflow meter.
A63: 9.1.6.1 | B63: TS034 | C63: Supply full Insulation Flange Kit on the start and end of the pipeline | D63: each | E63: 2
A64: 9.1.6.2 | B64: TS034 | C64: Supply full Insulation Flange Kit on both side of the Magflow meter | D64: each | E64: 2
A65: 9.1.6.3 | B65: TS034 | C65: Supply full Insulation Flange Kit on both side of the actuator valve | D65: each | E65: 14
A66: Sub-total
A68: 9.2 | C68: Installlation activities
A69: 9.2.1 | C69: INSTALL - SACRIFICIAL ANODE CATHODIC PROTECTION (@ Chainages: 150 and 600)
A70: 9.2.1.1 | B70: Drw.27645/ 27646 | C70: Install magnesium anodes @ 4 per chamber as per drawing | D70: no | E70: 8
A71: 9.2.1.9.2 | B71: Drw.27645/ 27646 | C71: Install 36mm steel galvanized conduits as per drawing @ 6m per chamber | D71: Sum | E71: 2
A72: 9.2.1.3 | B72: Drw.27645/ 27646 | C72: Install link panel @ 1 per chamber as per drawing | D72: no | E72: 2
A73: 9.2.1.4 | B73: TS015 | C73: Install 2X16mm² black PVC/PVC pipe to anode connection cable @ 4m per chamber as per drawing Drw.27645/ 27646 | D73: Sum | E73: 2
A74: 9.2.1.5 | B74: TS055 | C74: Install Schottky low voltage 10A diode | D74: Sum | E74: 2
A75: 9.2.1.6 | B75: TS015 | C75: Install coating make good, one installation per pipe | D75: Sum | E75: 4
A76: 9.2.1.7 | B76: TS19 | C76: Service detection, excavations and backfill | D76: Sum | E76: 1
A77: Sub-total
B78: Carried Forward
B79: Brought Forward
A81: 9.2.2 | C81: Install ZB Sludge TRU (26°40’42.78” S 28°0’45.77” E)
A82: 9.2.2.1 | B82: TS049 | C82: Install a vandal proof housing, durasafe or the steel structure | D82: sum | E82: 1
A83: 9.2.2.2 | B83: TS001 | C83: Install 100V/100A Transformer Rectifier Unit (TRU) | D83: sum | E83: 1
A84: 9.2.2.3 | B84: TS049 | C84: Install double skin fence or Clearview fence of around the TRU housing and the kiosk with the following dimension of 4.3m (breath) X 8.3m (length) X 2.4m (height). | D84: sum | E84: 1
A85: 9.2.2.4 | B85: TS037 | C85: Install the electrical power KIOSK as per Rand Water specification. | D85: sum | E85: 1
A86: 9.2.2.5 | B86: TS021 | C86: Excavate a trench of 1.5m deep X 0.5m width X 80m long to install the ring main positive cable of single core red 35mm² double insulated PVC cable. | D86: sum | E86: 1
A87: 9.2.2.6 | B87: TS021 | C87: Excavate a trench and install a pipe cable of 2X 16mm² single core copper cable of 1.5m deep X 0.5m width X 70m long | D87: sum | E87: 1
A88: 9.2.2.7 | B88: TS021 | C88: Excavate a trench and install a supply cable of 25mm² four core aluminium cable of 1.5m deep X 0.5m width X 40m long | D88: sum | E88: 1
A89: 9.2.2.8 | B89: TS021 | C89: Install PRE and coupon | D89: sum | E89: 1
A90: 9.2.2.9 | B90: TS021 | C90: Install 10mm² monitor cable | D90: sum | E90: 1
A91: 9.2.2.10 | B91: TS021 | C91: Install 2X16mm² pipe cable | D91: sum | E91: 1
A92: 9.2.2.11 | B92: TS044 | C92: Incase the cable in a concrete mass as per drawing 27645. | D92: sum | E92: 1
A93: 9.2.2.12 | B93: TS015 | C93: Install cable lugs, consumables and repair coating | D93: sum | E93: 1
A94: 9.2.2.13 | B94: TS019 | C94: Service Detection, Backfilling and Rehabilitation of the area | D94: sum | E94: 1
A95: 9.2.2.14 | B95: TS036 | C95: Power application and installation, and the applcation of servitude. | D95: sum | E95: 1
A96: 9.2.2.15 | B96: TS005 | C96: Install 70mm² bare copper earth cable around the TRU and also install four earth rods around the TRU. | D96: sum | E96: 1
A97: Sub-total
A98: 9.2.3 | C98: Install ZB Sludge - Horizontal Anode Groundbed (GPS Coordinates TBC)
A99: 9.2.3.1 | B99: TS002 | C99: Excavate a trench of 2.5m deep X 0.5m width X 151m long for the ground bed installation. | D99: sum | E99: 1
A100: 9.2.3.2 | B100: Drg. RA-22675 | C100: Install 40 MMO anodes and 41 spacers as per drawing RA 22675. | D100: sum | E100: 1
A101: 9.2.3.3 | B101: Drg. RA-22675 | C101: Backfill the anodes with Sasol calcined petroleum coke breeze. | D101: sum | E101: 1
A102: 9.2.3.4 | C102: Connect the anodes tail cable to the ring main using the 'Y' splicing kit. | D102: sum | E102: 1
A103: 9.2.3.5 | B103: TS019 | C103: Service Detection, Backfilling and Rehabilitation of the area. | D103: sum | E103: 1
A104: Sub-total
A105: 9.2.4 | C105: Install Cross Bonding Facilities to other Rand Water Lines and B17 and Old Sludge @ 26°40’43.00”S 28°00’21.54”E
A106: 9.2.4.1 | B106: TS013 | C106: Install Crossbond Facility as per Rand Water Specification | D106: sum | E106: 9
A107: 9.2.4.2 | B107: TS014 | C107: Install PRE and Coupon | D107: sum | E107: 9
A108: 9.2.4.3 | B108: TS021 | C108: Install 16mm² pipe cable | D108: sum | E108: 9
A109: 9.2.4.4 | B109: TS019 | C109: Service Detection, Excavation, Trenching and Backfilling | D109: sum | E109: 9
A110: 9.2.4.5 | B110: TS015 | C110: Install cable lugs, coating make good materials and consumables | D110: sum | E110: 9
A111: Sub-total
B113: Carried Forward
B114: Brought Forward
A115: 9.2.5 | C115: Install Chamber Monitoring Points Facilities
A116: 9.2.5.1 | B116: TS013 | C116: Install chamber monitoring facility as per Rand Water Specification | D116: sum | E116: 2
A117: 9.2.5.2 | B117: TS014 | C117: Install PRE and Coupon | D117: sum | E117: 2
A118: 9.2.5.3 | B118: TS021 | C118: Install 16mm² pipe cable | D118: sum | E118: 2
A119: 9.2.5.4 | B119: TS019 | C119: Service Detection, Excavation, Trenching and Backfilling | D119: sum | E119: 2
A120: 9.2.5.5 | B120: TS015 | C120: Install cable lugs, coating make good materials and consumables | D120: sum | E120: 2
A121: Sub-total
A123: 9.2.6 | C123: Install Insulation Flange Kit
C124: Install Insulation Flange Kits as per Rand Water Specification and drawing No. A 9548 on the pipeline's out let, pipelines tie-in points, inlet and both sides of the megflow meter.
A125: 9.2.6.1 | B125: TS034 | C125: Install full Insulation Flange Kit on the start and end of the pipeline | D125: each | E125: 2
A126: 9.2.6.2 | B126: TS034 | C126: Install full Insulation Flange Kit on both side of the Magflow meter | D126: each | E126: 2
B127: TS034 | C127: Install full Insulation Flange Kit on both side of the actuator valve | D127: each | E127: 14
A128: Sub-total
A129: 9.2.7 | C129: Install Continuity Bonding Across the Flanges
A130: 9.2.7.1 | C130: install or weld a steel bridge piece across the flanges instead of cross-bonding with a cable for pipeline continuity. | D130: sum | E130: 42
A131: Sub-total
A132: 9.2.8 | C132: Commisioning and testing
A133: 9.2.8.1 | B133: TS024 | C133: CIPS survey after complete repair and installation of ICCP | D133: m | E133: 750
A134: 9.2.8.2 | B134: TS035 | C134: DCVG Survey and defects repairs | D134: m | E134: 750
A135: 9.2.8.3 | B135: TS023 | C135: Commissioning and Testing | D135: sum | E135: 1
A136: 9.2.8.4 | B136: TS030 | C136: Final Documentation and Handover | D136: sum | E136: 1
A149: SCHEDULE 9 CARRIED FORWARD TO SUMMARY

Sheet Sch 10 WP 3B SED
G1: ZB Sludge Pipeline
A2: Tender No.: | C2: ='Sch 9 WP 3B CP'!C2 -> RW10397155/22 | G2: Section 10 : SED
A3: Description: | C3: ='Sch 9 WP 3B CP'!C3:F6 -> DESIGN, MANUFACTURE, SUPPLY, DELIVERY, INSTALLATION, TEST, COMMISSION AND MAINTAIN PIPE LAYING AND CIVIL WORKS FOR THE CONSTRUCTION OF 750m, 694mm ID (8mm THICK) SLUDGE STEEL PIPELINE FROM CENTRAL SLUDGE NO. 2 TO THE CROSS CONNECTION CHAMBER (SL2 PIPELINE) | G3: 2021-10-01
C6: SCHEDULE 10: SOCIOECONOMIC DEVELOPMENT
A7: Item | B7: Payment | C7: Description | D7: Unit | E7: Qty | F7: Rate | G7: Amount
A8: No. | B8: Refers
A10: 10.3 | C10: SOCIO ECONOMIC DEVELOPMENT
A12: 10.3.1 | C12: SKILLS DEVELOPMENT PROGRAM
A14: 10.3.1.1 | C14: Accredited training programmes are targeted which will provide the beneficiaries with significant and recognized credit value in accordance with the National Qualification Framework (NQF). | D14: Sum | E14: 1
A16: 10.3.1.2 | C16: Contractors mark-up on Items 2.3.1.1 | D16: %
A19: 10.3.2 | C19: CORPORATE SOCIAL RESPONSIBILITY PROGRAM
A21: 10.3.10.1 | C21: Corproate Social Responsinislity programs aimed at improving the livelihood of the community | D21: Sum | E21: 1
A23: 10.3.10.2 | C23: Contractors mark-up on Items 2.3.2.1 | D23: %
A25: 10.3.3 | C25: COMMUNITY LIASON OFFICER
A27: 10.3.3.1 | C27: Community Liason Officer. A key component in aiding the realisation of the SED objectives is effective community liaison with all the relevant role-players, structures, civic organisations and the community at large. | D27: Sum | E27: 1
A29: 10.3.3.2 | C29: Contractors mark-up on Items 2.3.3.1 | D29: %
A31: 10.3.4 | C31: PARTICIPATION OF LOCAL ENTERPRISES
A33: 10.3.4.1 | C33: Work Allocated to Local Enterprises (Inclusive of P&G's and SHEQ) (Minimum 5% of Project Value) | D33: Sum | E33: 1
A35: 10.3.4.2 | C35: Contractors mark-up on Items 2.3.4.1 | D35: %
C38: SCHEDULE 10 CARRIED FORWARD TO SUMMARY

Sheet Summary - W3B
C1: ='Sch 1 WP 3B P&Gs'!G1 -> ZB Sludge Pipeline
A2: Tender No.: | B2: ='Sch 1 WP 3B P&Gs'!$C$2 -> RW10397155/22 | C2: Summary
A3: Description: | B3: ='Sch 1 WP 3B P&Gs'!$C$3 -> DESIGN, MANUFACTURE, SUPPLY, DELIVERY, INSTALLATION, TEST, COMMISSION AND MAINTAIN PIPE LAYING AND CIVIL WORKS FOR THE CONSTRUCTION OF 750m, 694mm ID (8mm THICK) SLUDGE STEEL PIPELINE FROM CENTRAL SLUDGE NO. 2 TO THE CROSS CONNECTION CHAMBER (SL2 PIPELINE) | C3: ='Sch 1 WP 3B P&Gs'!G3 -> 2021-10-01
B9: SUMMARY - WORK PACKAGE 3B
A11: Section | B11: Description | C11: Amount
B13: PACKAGE 3B
A15: SCHEDULE 1 | B15: PRELIMINARY AND GENERAL : FIXED & TIME-RELATED CHARGES
A17: SCHEDULE 2 | B17: OHS, ENVIRONMENT, QUALITY & SOCIO-ECONOMIC DEVELOPMENT
A19: SCHEDULE 3 | B19: PROVISIONAL SUMS & DAYWORKS
A21: SCHEDULE 4 | B21: AUTOMATION
A23: SCHEDULE 5 | B23: CIVIL
A25: SCHEDULE 6 | B25: ELECTRICAL
A27: SCHEDULE 7 | B27: MECHANICAL AND PROCESS
A29: SCHEDULE 8 | B29: PIPELINE
A31: SCHEDULE 9 | B31: CATHODIC PROTECTION
A33: SCHEDULE 10 | B33: SOCIOECONOMIC DEVELOPMENT
A36: SUBTOTAL A (W3B)……………………………………..……………………………………………
A39: VALUE ADDED TAX
A40: Add 15% of Subtotal A ………..…….……………………..………...……..………………
A41: (Provisional sum based on current rate of VAT)
A44: TOTAL
A47: SIGNED ON BEHALF OF TENDERER: ……………………………………………..…………………………………………….

Sheet Summary - W3
A2: Tender No.: | B2: ='Sch 1 WP 3A P&Gs'!$C$2 -> RW10397155/22 | C2: Summary
A3: Description: | B3: PANFONTEIN PROJECTS PACKAGE 3 (3A AND 3B): WORK PACKAGE 3A - EARTHWORKS, PIPE LAYING, JACKING AND ASSOCIATED CIVIL WORKS FOR A 6020M X 626MM OD STEEL PIPELINE FROM VEREENIGING PUMPING STATION TO VAAL RIVER BRIDGE CROSSING IN MACCAUVLEI (SL1 PIPELINE) WORK PACKAGE 3B – DESIGN, MANUFACTURE, SUPPLY, DELIVERY, INSTALLATION, TEST, COMMISSION AND MAINTAIN PIPE LAYING AND CIVIL WORKS FOR THE CONSTRUCTION OF 750m, 694mm ID (8mm THICK) SLUDGE STEEL PIPELINE FROM CENTRAL SLUDGE NO. 2 TO THE CROSS CONNECTION CHAMBER | C3: ='Sch 1 WP 3A P&Gs'!G3 -> 2021-10-01
B7: SUMMARY - WORK PACKAGE 3
A9: Section | B9: Description | C9: Amount
B11: PACKAGE 3A
A13: W3A | B13: SUBTOTAL A FROM SUMMARY - W3A
B15: PACKAGE 3B
A17: W3B | B17: SUBTOTAL A FROM SUMMARY - W3B
A22: SUBTOTAL A (W3) ……………………………………..……………………………………………
A25: VALUE ADDED TAX
A26: Add 15% of Subtotal A (W3) ………..…….……………………..………...……..………………
A27: (Provisional sum based on current rate of VAT)
A30: TOTAL CARRIED TO FORM C1.1, FORM OF OFFER (FOR WORK PACKAGE 3)
A34: SIGNED ON BEHALF OF TENDERER: ……………………………………………..…………………………………………….
